{"text_format":"1","workbook":"xlsx","n_sheets":1,"sheets":["Hoja1"],"not_rendered":{"charts":0,"images":3,"macros":0,"external_links":0,"defined_names":54,"comments":0,"pivot_tables":0},"unopened":[],"bounds":{"document_bytes":16777216,"sheet_cells":100000,"rows_first":2000,"rows_last":500,"rows_between":2000,"halvings":0,"cell_chars":16384,"cell_head_chars":4096},"cells_cut":0,"cells_raw":0,"read":"whole","date_system":"1900"}

{"sheet":"Hoja1","index":0,"n_rows":631,"n_cols":8,"rows_kept":631,"cut":false,"hidden":false,"merged":[[4,0,4,7],[5,0,5,7],[629,0,629,7],[630,0,630,7]]}
[]
[]
[]
[]
["INSTITUTO SUPERIOR DE FORMACION DOCENTE SALOME UREÑA"]
["RELACION DE ESTADO DE CUENTAS DE SUPLIDORES "]
[]
["Corresp. Febrero 2024",null,null,null,null,null,"Fecha de creación","2024-03-11"]
["Recinto","Fecha de Registro","No. de Factura o Comprobante","Nombre del Acreedor","Concepto"," Monto de la Deuda RD$ ","Terminos de pago (días)","Fecha de Vencimiento"]
[{"$f":"+MID(Tabla1[[#This Row],[Concepto]],1,3)","v":"REC"},"2024-01-08","B1500000025","1955 GENERAL BUSINESS BIENES Y SERV. SRL.","REC-ADQUISICION DE MATERIALES DE LIMPIEZA",104190.22,"45 Dias",{"$f":"+Tabla1[[#This Row],[Fecha de Registro]]+45","v":"2024-02-22"}]
[{"$f":"+MID(Tabla1[[#This Row],[Concepto]],1,3)","v":"REC"},"2023-12-01","B1500000062","365 Frio Movil","REC-ALQUILER DE AIRES ACONDICIONADOS, OR. 2023-00644",575840,"45 Dias",{"$f":"+Tabla1[[#This Row],[Fecha de Registro]]+45","v":"2024-01-15"}]
[{"$f":"+MID(Tabla1[[#This Row],[Concepto]],1,3)","v":"JVM"},"2017-09-20","A010010011500000609","AD MARKETING LIVE,S.R.L.","JVM-REFRIGERIO Y ALMUERZO",52392,"45 Dias",{"$f":"+Tabla1[[#This Row],[Fecha de Registro]]+45","v":"2017-11-04"}]
[{"$f":"+MID(Tabla1[[#This Row],[Concepto]],1,3)","v":"REC"},"2017-12-01","A010010011500000607","AD MARKETING LIVE,S.R.L.","REC-CATERING ACTIVIDADES VARIAS",44745.599999999999,"45 Dias",{"$f":"+Tabla1[[#This Row],[Fecha de Registro]]+45","v":"2018-01-15"}]
[{"$f":"+MID(Tabla1[[#This Row],[Concepto]],1,3)","v":"REC"},"2023-11-23","B1500000118","ADOARH","REC-ADQUISICION DE CUPOS PARA CONGRESO NACIONAL DE GESTION HUMANA",125000,"45 Dias",{"$f":"+Tabla1[[#This Row],[Fecha de Registro]]+45","v":"2024-01-07"}]
[{"$f":"+MID(Tabla1[[#This Row],[Concepto]],1,3)","v":"REC"},"2023-11-09","B1500000016","AFS INTERCULTURA, INC","REC-TERCER PAGO CONVENIO ESPECIFICO DE PROGRAMAS DE MOVILIDAD INTERNACIONAL",1791729.84,"45 Dias",{"$f":"+Tabla1[[#This Row],[Fecha de Registro]]+45","v":"2023-12-24"}]
[{"$f":"+MID(Tabla1[[#This Row],[Concepto]],1,3)","v":"FEM"},"2023-09-29","B1500000404","AGROGLOBAL EXPORT E IMPORT, SRL","FEM-ADQUISICION DE ALIMENTOS (PENDIENTE)",3600,"45 Dias",{"$f":"+Tabla1[[#This Row],[Fecha de Registro]]+45","v":"2023-11-13"}]
[{"$f":"+MID(Tabla1[[#This Row],[Concepto]],1,3)","v":"FEM"},"2023-10-13","B1500000412","AGROGLOBAL EXPORT E IMPORT, SRL","FEM-COMPRA DE ALIMENTOS (PENDIENTE)",4200,"45 Dias",{"$f":"+Tabla1[[#This Row],[Fecha de Registro]]+45","v":"2023-11-27"}]
[{"$f":"+MID(Tabla1[[#This Row],[Concepto]],1,3)","v":"FEM"},"2023-12-01","B1500000434","AGROGLOBAL EXPORT E IMPORT, SRL","FEM- COMPRA DE ALIMENTOS. (PENDIENTE DE RECIBIR)",2050,"45 Dias",{"$f":"+Tabla1[[#This Row],[Fecha de Registro]]+45","v":"2024-01-15"}]
[{"$f":"+MID(Tabla1[[#This Row],[Concepto]],1,3)","v":"FEM"},"2023-12-04","B1500000435","AGROGLOBAL EXPORT E IMPORT, SRL","FEM- COMPRA DE ALIMENTOS. (PENDIENTE DE RECIBIR)",39529.64,"45 Dias",{"$f":"+Tabla1[[#This Row],[Fecha de Registro]]+45","v":"2024-01-18"}]
[{"$f":"+MID(Tabla1[[#This Row],[Concepto]],1,3)","v":"FEM"},"2024-02-01","B1500000457","AGROGLOBAL EXPORT E IMPORT, SRL","FEM- COMPRA DE ALIMENTOS.",112800,"45 Dias",{"$f":"+Tabla1[[#This Row],[Fecha de Registro]]+45","v":"2024-03-17"}]
[{"$f":"+MID(Tabla1[[#This Row],[Concepto]],1,3)","v":"FEM"},"2024-02-20","B1500000466","AGROGLOBAL EXPORT E IMPORT, SRL","FEM- COMPRA DE ALIMENTOS. (PENDIENTE)",64800,"45 Dias",{"$f":"+Tabla1[[#This Row],[Fecha de Registro]]+45","v":"2024-04-05"}]
[{"$f":"+MID(Tabla1[[#This Row],[Concepto]],1,3)","v":"FEM"},"2018-02-15","A010010011500075097","Agua Crystal, S.A.","FEM-COMPRA DE AGUA PURIFICADA 5 GL",12150,"45 Dias",{"$f":"+Tabla1[[#This Row],[Fecha de Registro]]+45","v":"2018-04-01"}]
[{"$f":"+MID(Tabla1[[#This Row],[Concepto]],1,3)","v":"FEM"},"2018-02-21","A010010011500075240","Agua Crystal, S.A.","FEM-COMPRA DE AGUA PURIFICADA 5GL",10152,"45 Dias",{"$f":"+Tabla1[[#This Row],[Fecha de Registro]]+45","v":"2018-04-07"}]
[{"$f":"+MID(Tabla1[[#This Row],[Concepto]],1,3)","v":"FEM"},"2018-03-07","A010010011500075569","Agua Crystal, S.A.","FEM-COMPRA AGUA PURIFICADA 5GL",11124,"45 Dias",{"$f":"+Tabla1[[#This Row],[Fecha de Registro]]+45","v":"2018-04-21"}]
[{"$f":"+MID(Tabla1[[#This Row],[Concepto]],1,3)","v":"FEM"},"2022-05-04","B1500036033","Agua Crystal, S.A.","FEM-COMPRA DE AGUA",13509,"45 Dias",{"$f":"+Tabla1[[#This Row],[Fecha de Registro]]+45","v":"2022-06-18"}]
[{"$f":"+MID(Tabla1[[#This Row],[Concepto]],1,3)","v":"FEM"},"2023-03-21","B1500159063","AGUA PLANETA AZUL","FEM-ADQUISICION DE BOTELLONES DE AGUA PARA USO DEL RECINTO",12000,"45 Dias",{"$f":"+Tabla1[[#This Row],[Fecha de Registro]]+45","v":"2023-05-05"}]
[{"$f":"+MID(Tabla1[[#This Row],[Concepto]],1,3)","v":"FEM"},"2023-06-26","B1500161406","AGUA PLANETA AZUL","FEM-ADQUISICIÓN DE AGUA PARA CONSUMO DEL RECINTO",12180,"45 Dias",{"$f":"+Tabla1[[#This Row],[Fecha de Registro]]+45","v":"2023-08-10"}]
[{"$f":"+MID(Tabla1[[#This Row],[Concepto]],1,3)","v":"FEM"},"2023-11-10","B1500165675","AGUA PLANETA AZUL","FEM- COMPRA DE AGUA EMBOTELLADA (PENDIENTE DE RECIBIR)",17640,"45 Dias",{"$f":"+Tabla1[[#This Row],[Fecha de Registro]]+45","v":"2023-12-25"}]
[{"$f":"+MID(Tabla1[[#This Row],[Concepto]],1,3)","v":"FEM"},"2023-11-27","B1500165682","AGUA PLANETA AZUL","FEM- COMPRA DE AGUA EMBOTELLADA (PENDIENTE DE RECIBIR)",17040,"45 Dias",{"$f":"+Tabla1[[#This Row],[Fecha de Registro]]+45","v":"2024-01-11"}]
[{"$f":"+MID(Tabla1[[#This Row],[Concepto]],1,3)","v":"FEM"},"2023-12-05","B1500166530","AGUA PLANETA AZUL","FEM- COMPRA DE AGUA PARA EL RECINTO. (PENDIENTE DE RECIBIR)",3000,"45 Dias",{"$f":"+Tabla1[[#This Row],[Fecha de Registro]]+45","v":"2024-01-19"}]
[{"$f":"+MID(Tabla1[[#This Row],[Concepto]],1,3)","v":"FEM"},"2024-01-02","B1500166834","AGUA PLANETA AZUL","FEM- COMPRA DE AGUA PARA USO DEL RECINTO Y LOS ESTUDIANTES(PENDIENTE)",13380,"45 Dias",{"$f":"+Tabla1[[#This Row],[Fecha de Registro]]+45","v":"2024-02-16"}]
[{"$f":"+MID(Tabla1[[#This Row],[Concepto]],1,3)","v":"FEM"},"2024-01-19","B1500169343","AGUA PLANETA AZUL","FEM- COMPRA DE AGUA.(PENDIENTE)",10980,"45 Dias",{"$f":"+Tabla1[[#This Row],[Fecha de Registro]]+45","v":"2024-03-04"}]
[{"$f":"+MID(Tabla1[[#This Row],[Concepto]],1,3)","v":"FEM"},"2024-01-26","B1500171348","AGUA PLANETA AZUL","FEM- COMPRA DE AGUA.(PENDIENTE)",12660,"45 Dias",{"$f":"+Tabla1[[#This Row],[Fecha de Registro]]+45","v":"2024-03-11"}]
[{"$f":"+MID(Tabla1[[#This Row],[Concepto]],1,3)","v":"REC"},"2024-01-26","B1500172047","AGUA PLANETA AZUL","REC- COMPRA DE AGUA",6750,"45 Dias",{"$f":"+Tabla1[[#This Row],[Fecha de Registro]]+45","v":"2024-03-11"}]
[{"$f":"+MID(Tabla1[[#This Row],[Concepto]],1,3)","v":"REC"},"2024-02-01","B1500171350","AGUA PLANETA AZUL","REC- COMPRA DE AGUA",13500,"45 Dias",{"$f":"+Tabla1[[#This Row],[Fecha de Registro]]+45","v":"2024-03-17"}]
[{"$f":"+MID(Tabla1[[#This Row],[Concepto]],1,3)","v":"FEM"},"2024-02-08","B1500172260","AGUA PLANETA AZUL","FEM- COMPRA DE AGUA (PENDIENTE)",16200,"45 Dias",{"$f":"+Tabla1[[#This Row],[Fecha de Registro]]+45","v":"2024-03-24"}]
[{"$f":"+MID(Tabla1[[#This Row],[Concepto]],1,3)","v":"REC"},"2024-02-14","B1500168043","AGUA PLANETA AZUL","REC- COMPRA DE AGUA",16875,"45 Dias",{"$f":"+Tabla1[[#This Row],[Fecha de Registro]]+45","v":"2024-03-30"}]
[{"$f":"+MID(Tabla1[[#This Row],[Concepto]],1,3)","v":"FEM"},"2024-02-21","B1500172270","AGUA PLANETA AZUL","FEM- COMPRA DE AGUA (PENDIENTE)",15720,"45 Dias",{"$f":"+Tabla1[[#This Row],[Fecha de Registro]]+45","v":"2024-04-06"}]
[{"$f":"+MID(Tabla1[[#This Row],[Concepto]],1,3)","v":"REC"},"2024-02-22","B1500172531","AGUA PLANETA AZUL","REC- COMPRA DE AGUA (PENDIENTE)",16875,"45 Dias",{"$f":"+Tabla1[[#This Row],[Fecha de Registro]]+45","v":"2024-04-07"}]
[{"$f":"+MID(Tabla1[[#This Row],[Concepto]],1,3)","v":"JVM"},"2023-10-02","B1500000232","AGUAS NACIONALES DOMINIC, SRL","JVM-COMPRAS DE AGUA PARA USO DEL RECINTO",19215,"45 Dias",{"$f":"+Tabla1[[#This Row],[Fecha de Registro]]+45","v":"2023-11-16"}]
[{"$f":"+MID(Tabla1[[#This Row],[Concepto]],1,3)","v":"JVM"},"2023-10-30","B1500000233","AGUAS NACIONALES DOMINIC, SRL","JVM-COMPRAS DE AGUA PARA USO DEL RECINTO",29745,"45 Dias",{"$f":"+Tabla1[[#This Row],[Fecha de Registro]]+45","v":"2023-12-14"}]
[{"$f":"+MID(Tabla1[[#This Row],[Concepto]],1,3)","v":"JVM"},"2023-12-12","B1500000234","AGUAS NACIONALES DOMINIC, SRL","JVM-COMPRAS DE AGUA PARA USO DEL RECINTO",27855,"45 Dias",{"$f":"+Tabla1[[#This Row],[Fecha de Registro]]+45","v":"2024-01-26"}]
[{"$f":"+MID(Tabla1[[#This Row],[Concepto]],1,3)","v":"JVM"},"2024-02-02","B1500000235","AGUAS NACIONALES DOMINIC, SRL","JVM-COMPRAS DE AGUA PARA USO DEL RECINTO",25875,"45 Dias",{"$f":"+Tabla1[[#This Row],[Fecha de Registro]]+45","v":"2024-03-18"}]
[{"$f":"+MID(Tabla1[[#This Row],[Concepto]],1,3)","v":"EMH"},"2016-12-31","A010010011500000052/56/57","Albadoca , S.A.","EMH-FACT A010010011500000052/56/57 del EMH -PERIODO 2014-2015",65050,"45 Dias",{"$f":"+Tabla1[[#This Row],[Fecha de Registro]]+45","v":"2017-02-14"}]
[{"$f":"+MID(Tabla1[[#This Row],[Concepto]],1,3)","v":"EMH"},"2022-03-28","B1500000201","ALEGO COMERCIAL, SRL","EMH - SERVICIO DE MANTENIMIENTO DE VEHICULOS",134190.78,"45 Dias",{"$f":"+Tabla1[[#This Row],[Fecha de Registro]]+45","v":"2022-05-12"}]
[{"$f":"+MID(Tabla1[[#This Row],[Concepto]],1,3)","v":"FEM"},"2023-09-12","B1500000098","ALMACENES OCEAN MEAT, SRL","FEM-ADQUISICION DE ALIMENTOS PARA USO DEL RECINTO",19400,"45 Dias",{"$f":"+Tabla1[[#This Row],[Fecha de Registro]]+45","v":"2023-10-27"}]
[{"$f":"+MID(Tabla1[[#This Row],[Concepto]],1,3)","v":"FEM"},"2023-09-21","B1500000101","ALMACENES OCEAN MEAT, SRL","FEM-ADQUISICION DE ALIMENTOS PARA USO DEL RECINTO",11905,"45 Dias",{"$f":"+Tabla1[[#This Row],[Fecha de Registro]]+45","v":"2023-11-05"}]
[{"$f":"+MID(Tabla1[[#This Row],[Concepto]],1,3)","v":"FEM"},"2023-10-23","B0400000002","ALMACENES OCEAN MEAT, SRL","FEM-NOTA DE CREDITO AFECTA LA FACT.B1500000098",-2540,"45 Dias",{"$f":"+Tabla1[[#This Row],[Fecha de Registro]]+45","v":"2023-12-07"}]
[{"$f":"+MID(Tabla1[[#This Row],[Concepto]],1,3)","v":"FEM"},"2023-10-23","B1500000110","ALMACENES OCEAN MEAT, SRL","FEM-ADQUISICION DE ALIMENTOS PARA USO DEL RECINTO",53954.1,"45 Dias",{"$f":"+Tabla1[[#This Row],[Fecha de Registro]]+45","v":"2023-12-07"}]
[{"$f":"+MID(Tabla1[[#This Row],[Concepto]],1,3)","v":"FEM"},"2023-11-08","B1500000117","ALMACENES OCEAN MEAT, SRL","FEM-ADQUISICION DE ALIMENTOS PARA USO DEL RECINTO",17880,"45 Dias",{"$f":"+Tabla1[[#This Row],[Fecha de Registro]]+45","v":"2023-12-23"}]
[{"$f":"+MID(Tabla1[[#This Row],[Concepto]],1,3)","v":"FEM"},"2023-11-21","B1500000124","ALMACENES OCEAN MEAT, SRL","FEM-ADQUISICION DE ALIMENTOS PARA USO DEL RECINTO",12860,"45 Dias",{"$f":"+Tabla1[[#This Row],[Fecha de Registro]]+45","v":"2024-01-05"}]
[{"$f":"+MID(Tabla1[[#This Row],[Concepto]],1,3)","v":"FEM"},"2023-11-30","B1500000127","ALMACENES OCEAN MEAT, SRL","FEM-ADQUISICION DE ALIMENTOS PARA USO DEL RECINTO",17580,"45 Dias",{"$f":"+Tabla1[[#This Row],[Fecha de Registro]]+45","v":"2024-01-14"}]
[{"$f":"+MID(Tabla1[[#This Row],[Concepto]],1,3)","v":"FEM"},"2024-01-17","B1500000318","Ana Maria Petronila Hernández Peguero","FEM-SERVICIOS JURIDICOS",26196,"45 Dias",{"$f":"+Tabla1[[#This Row],[Fecha de Registro]]+45","v":"2024-03-02"}]
[{"$f":"+MID(Tabla1[[#This Row],[Concepto]],1,3)","v":"REC"},"2024-02-05","B1500000323","Ana Maria Petronila Hernández Peguero","REC-SERVICIOS JURIDICOS",11353.08,"45 Dias",{"$f":"+Tabla1[[#This Row],[Fecha de Registro]]+45","v":"2024-03-21"}]
[{"$f":"+MID(Tabla1[[#This Row],[Concepto]],1,3)","v":"REC"},"2024-02-06","B1500000324","Ana Maria Petronila Hernández Peguero","REC-SERVICIOS JURIDICOS",27866.880000000001,"45 Dias",{"$f":"+Tabla1[[#This Row],[Fecha de Registro]]+45","v":"2024-03-22"}]
[{"$f":"+MID(Tabla1[[#This Row],[Concepto]],1,3)","v":"REC"},"2024-02-20","B1500000327","Ana Maria Petronila Hernández Peguero","REC-NOTARIZACION DE 09 CONTRATOS (PENDIENTE)",9288.8799999999992,"45 Dias",{"$f":"+Tabla1[[#This Row],[Fecha de Registro]]+45","v":"2024-04-05"}]
[{"$f":"+MID(Tabla1[[#This Row],[Concepto]],1,3)","v":"REC"},"2024-02-22","B1500000326","Ana Maria Petronila Hernández Peguero","REC-SERVICIOS JURIDICOS (PENDIENTE)",27866.880000000001,"45 Dias",{"$f":"+Tabla1[[#This Row],[Fecha de Registro]]+45","v":"2024-04-07"}]
[{"$f":"+MID(Tabla1[[#This Row],[Concepto]],1,3)","v":"FEM"},"2024-01-04","B1500000062","ANTELO DOMINICANA SRL","FEM-ALIMENTOS P/ LOS ESTUDIANTES(PENDIENTE)",9265,"45 Dias",{"$f":"+Tabla1[[#This Row],[Fecha de Registro]]+45","v":"2024-02-18"}]
[{"$f":"+MID(Tabla1[[#This Row],[Concepto]],1,3)","v":"REC"},"2023-10-03","B1500000010","APPETITUS RD, SRL","REC-SERVICIO DE CATERING PARA  ACTIVIDADES A REALIZAR POR LA DIRECCIÓN DE EXTENSIÓN EN LOS RECIN...",17700,"45 Dias",{"$f":"+Tabla1[[#This Row],[Fecha de Registro]]+45","v":"2023-11-17"}]
[{"$f":"+MID(Tabla1[[#This Row],[Concepto]],1,3)","v":"REC"},"2023-11-15","B1500000018","APPETITUS RD, SRL","REC-SERVICIO DE CATERING PARA ACTIVIDAD DE DIPLOMADO DE LIDERAZGO",314927.84000000003,"45 Dias",{"$f":"+Tabla1[[#This Row],[Fecha de Registro]]+45","v":"2023-12-30"}]
[{"$f":"+MID(Tabla1[[#This Row],[Concepto]],1,3)","v":"REC"},"2023-11-15","B1500000017","APPETITUS RD, SRL","REC-SERVICIO DE CATERING PARA ACTIVIDAD DE DIPLOMADO DE LIDERAZGO",330447.2,"45 Dias",{"$f":"+Tabla1[[#This Row],[Fecha de Registro]]+45","v":"2023-12-30"}]
[{"$f":"+MID(Tabla1[[#This Row],[Concepto]],1,3)","v":"FEM"},"2023-11-15","B1500000019","APPETITUS RD, SRL","FEM-SERVICIO DE CATERING",269276,"45 Dias",{"$f":"+Tabla1[[#This Row],[Fecha de Registro]]+45","v":"2023-12-30"}]
[{"$f":"+MID(Tabla1[[#This Row],[Concepto]],1,3)","v":"REC"},"2023-12-06","B1500000024","APPETITUS RD, SRL","REC-SERVICIO DE CATERING",259600,"45 Dias",{"$f":"+Tabla1[[#This Row],[Fecha de Registro]]+45","v":"2024-01-20"}]
[{"$f":"+MID(Tabla1[[#This Row],[Concepto]],1,3)","v":"REC"},"2023-12-06","B1500000023","APPETITUS RD, SRL","REC- CONTRATACIÓN DE REFRIGERIO Y ALMUERZO PARA LA REALIZACIÓN DE ACTIVIDADES RECTORÍA ORDEN NO....",20650,"45 Dias",{"$f":"+Tabla1[[#This Row],[Fecha de Registro]]+45","v":"2024-01-20"}]
[{"$f":"+MID(Tabla1[[#This Row],[Concepto]],1,3)","v":"REC"},"2023-12-08","B1500000025","APPETITUS RD, SRL","REC- SERVICIO CATERING. (PENDIENTE DE RECIBIR)",486042,"45 Dias",{"$f":"+Tabla1[[#This Row],[Fecha de Registro]]+45","v":"2024-01-22"}]
[{"$f":"+MID(Tabla1[[#This Row],[Concepto]],1,3)","v":"FEM"},"2023-12-12","B1500000026","APPETITUS RD, SRL","FEM-SERVICIO DE CATERING  ORDEN 2023-00590",230383.2,"45 Dias",{"$f":"+Tabla1[[#This Row],[Fecha de Registro]]+45","v":"2024-01-26"}]
[{"$f":"+MID(Tabla1[[#This Row],[Concepto]],1,3)","v":"FEM"},"2024-01-02","B1500000027","APPETITUS RD, SRL","FEM-SERVICIO DE CATERING",212400,"45 Dias",{"$f":"+Tabla1[[#This Row],[Fecha de Registro]]+45","v":"2024-02-16"}]
[{"$f":"+MID(Tabla1[[#This Row],[Concepto]],1,3)","v":"EMH"},"2024-02-15","B1500000031","APPETITUS RD, SRL","EMH-SERVICIO DE CATERING",320488,"45 Dias",{"$f":"+Tabla1[[#This Row],[Fecha de Registro]]+45","v":"2024-03-31"}]
[{"$f":"+MID(Tabla1[[#This Row],[Concepto]],1,3)","v":"REC"},"2024-02-15","B1500000030","APPETITUS RD, SRL","REC- SERVICIOS DE REFRIGERIOS Y ALMUERZO PARA ACTIVIDADES DE INTEGRACION",98235,"45 Dias",{"$f":"+Tabla1[[#This Row],[Fecha de Registro]]+45","v":"2024-03-31"}]
[{"$f":"+MID(Tabla1[[#This Row],[Concepto]],1,3)","v":"REC"},"2024-02-21","B0400000002","APPETITUS RD, SRL","REC-NOTA DE CREDITO AFECTA FACT. B1500000025",-15000,"45 Dias",{"$f":"+Tabla1[[#This Row],[Fecha de Registro]]+45","v":"2024-04-06"}]
[{"$f":"+MID(Tabla1[[#This Row],[Concepto]],1,3)","v":"FEM"},"2024-02-28","B1500000032","APPETITUS RD, SRL","FEM--SERVICIO DE CATERING (PENDIENTE)",293182.8,"45 Dias",{"$f":"+Tabla1[[#This Row],[Fecha de Registro]]+45","v":"2024-04-13"}]
[{"$f":"+MID(Tabla1[[#This Row],[Concepto]],1,3)","v":"REC"},"2024-02-28","B1500000033","APPETITUS RD, SRL","REC- SERVICIOS DE CATERING. (PENDIENTE DE RECIBIR)",737169.9,"45 Dias",{"$f":"+Tabla1[[#This Row],[Fecha de Registro]]+45","v":"2024-04-13"}]
[{"$f":"+MID(Tabla1[[#This Row],[Concepto]],1,3)","v":"REC"},"2024-02-29","B1500000029","APPETITUS RD, SRL","REC- SERVICIOS DE REFRIGERIOS Y ALMUERZO PARA ACTIVIDADES DE INTEGRACION",50150,"45 Dias",{"$f":"+Tabla1[[#This Row],[Fecha de Registro]]+45","v":"2024-04-14"}]
[{"$f":"+MID(Tabla1[[#This Row],[Concepto]],1,3)","v":"REC"},"2015-09-18","A010010011500000050","Asoc.Dom.de Rectores de Universidades","REC-PARTICIPACION DE 5 COLABORADORES SEMINARIO REFORMA CURRICULAR. 17 SEPT. 2016",20000,"45 Dias",{"$f":"+Tabla1[[#This Row],[Fecha de Registro]]+45","v":"2015-11-02"}]
[{"$f":"+MID(Tabla1[[#This Row],[Concepto]],1,3)","v":"FEM"},"2024-02-16","B1500000129","Augustos DS, SRL","FEM-COMPRA DE ALIMENTOS (PENDIENTE)",21968,"45 Dias",{"$f":"+Tabla1[[#This Row],[Fecha de Registro]]+45","v":"2024-04-01"}]
[{"$f":"+MID(Tabla1[[#This Row],[Concepto]],1,3)","v":"FEM"},"2024-02-16","B1500000128","Augustos DS, SRL","FEM-COMPRA DE ALIMENTOS (PENDIENTE)",248561.3,"45 Dias",{"$f":"+Tabla1[[#This Row],[Fecha de Registro]]+45","v":"2024-04-01"}]
[{"$f":"+MID(Tabla1[[#This Row],[Concepto]],1,3)","v":"EMH"},"2023-10-30","B1500002261","CANTABRIA BRAND REPRESENTATIVE, SRL","EMH-SERVICIO DE CATERING",24780,"45 Dias",{"$f":"+Tabla1[[#This Row],[Fecha de Registro]]+45","v":"2023-12-14"}]
[{"$f":"+MID(Tabla1[[#This Row],[Concepto]],1,3)","v":"REC"},"2023-08-02","B1500000423","Capacitacion Especializada (CAES)","REC-SERVICIO DE CAPACITACION",64800,"45 Dias",{"$f":"+Tabla1[[#This Row],[Fecha de Registro]]+45","v":"2023-09-16"}]
[{"$f":"+MID(Tabla1[[#This Row],[Concepto]],1,3)","v":"REC"},"2023-08-15","B1500000428","Capacitacion Especializada (CAES)","REC-SERVICIO DE CAPACITACION (PENDIENTE DE RECIBIR)",185900,"45 Dias",{"$f":"+Tabla1[[#This Row],[Fecha de Registro]]+45","v":"2023-09-29"}]
[{"$f":"+MID(Tabla1[[#This Row],[Concepto]],1,3)","v":"REC"},"2024-02-26","E450000001313","Cecomsa, S.A.","REC-ADQUISIICON DE EQUIPOS INFORMATICOS",1094619.28,"45 Dias",{"$f":"+Tabla1[[#This Row],[Fecha de Registro]]+45","v":"2024-04-11"}]
[{"$f":"+MID(Tabla1[[#This Row],[Concepto]],1,3)","v":"REC"},"2024-02-26","E450000001311","Cecomsa, S.A.","REC-ADQUISIICON DE EQUIPOS INFORMATICOS",28187468.77,"45 Dias",{"$f":"+Tabla1[[#This Row],[Fecha de Registro]]+45","v":"2024-04-11"}]
[{"$f":"+MID(Tabla1[[#This Row],[Concepto]],1,3)","v":"JVM"},"2020-01-29","B1500000245","CENPA COMERCIAL , SRL","JVM-COMPRA DE ALIMENTOS (PENDIENTE ESPERA DE EXPEDIENTE)",39189.120000000003,"45 Dias",{"$f":"+Tabla1[[#This Row],[Fecha de Registro]]+45","v":"2020-03-14"}]
[{"$f":"+MID(Tabla1[[#This Row],[Concepto]],1,3)","v":"FEM"},"2020-01-29","B1500000248","CENPA COMERCIAL , SRL","FEM-COMPRA DE ALIMENTOS (PENDIENTE ESPERA DE EXPEDIENTE)",8760,"45 Dias",{"$f":"+Tabla1[[#This Row],[Fecha de Registro]]+45","v":"2020-03-14"}]
[{"$f":"+MID(Tabla1[[#This Row],[Concepto]],1,3)","v":"JVM"},"2023-09-04","B1500000496","CENPA COMERCIAL , SRL","JVM-ADQUISICION DE ALIMENTOS Y BEBIDAS PARA LOS RECINTOS. ISFODOSU-852-2019",91549.759999999995,"45 Dias",{"$f":"+Tabla1[[#This Row],[Fecha de Registro]]+45","v":"2023-10-19"}]
[{"$f":"+MID(Tabla1[[#This Row],[Concepto]],1,3)","v":"JVM"},"2023-10-02","B1500000497","CENPA COMERCIAL , SRL","JVM-COMPRA DE ALIMENTOS MASIVA",94107.56,"45 Dias",{"$f":"+Tabla1[[#This Row],[Fecha de Registro]]+45","v":"2023-11-16"}]
[{"$f":"+MID(Tabla1[[#This Row],[Concepto]],1,3)","v":"EMH"},"2023-10-06","B1500000498","CENPA COMERCIAL , SRL","EMH-ADQUISICION DE ALIMENTOS Y BEBIDAS PARA LOS RECINTOS. ISFODOSU-852-2019",180000,"45 Dias",{"$f":"+Tabla1[[#This Row],[Fecha de Registro]]+45","v":"2023-11-20"}]
[{"$f":"+MID(Tabla1[[#This Row],[Concepto]],1,3)","v":"JVM"},"2023-10-25","B1500000499","CENPA COMERCIAL , SRL","JVM-ADQUISICION DE ALIMENTOS Y BEBIDAS",56946.400000000001,"45 Dias",{"$f":"+Tabla1[[#This Row],[Fecha de Registro]]+45","v":"2023-12-09"}]
[{"$f":"+MID(Tabla1[[#This Row],[Concepto]],1,3)","v":"EMH"},"2023-11-13","B1500000500","CENPA COMERCIAL , SRL","EMH-ADQUISICION DE ALIMENTOS Y BEBIDAS",144000,"45 Dias",{"$f":"+Tabla1[[#This Row],[Fecha de Registro]]+45","v":"2023-12-28"}]
[{"$f":"+MID(Tabla1[[#This Row],[Concepto]],1,3)","v":"JVM"},"2023-11-14","B1500000501","CENPA COMERCIAL , SRL","JVM-ADQUISICION DE ALIMENTOS(PENDIENTE DE RECIBIR)",127859.28,"45 Dias",{"$f":"+Tabla1[[#This Row],[Fecha de Registro]]+45","v":"2023-12-29"}]
[{"$f":"+MID(Tabla1[[#This Row],[Concepto]],1,3)","v":"JVM"},"2023-11-27","B1500000502","CENPA COMERCIAL , SRL","JVM-ADQUISICION DE ALIMENTOS Y BEBIDAS",105607.52,"45 Dias",{"$f":"+Tabla1[[#This Row],[Fecha de Registro]]+45","v":"2024-01-11"}]
[{"$f":"+MID(Tabla1[[#This Row],[Concepto]],1,3)","v":"FEM"},"2023-12-12","B1500000503","CENPA COMERCIAL , SRL","FEM-ADQUISICION DE ALIMENTOS Y BEBIDAS",6300,"45 Dias",{"$f":"+Tabla1[[#This Row],[Fecha de Registro]]+45","v":"2024-01-26"}]
[{"$f":"+MID(Tabla1[[#This Row],[Concepto]],1,3)","v":"EMH"},"2023-12-12","B1500000504","CENPA COMERCIAL , SRL","EMH-ADQUISICION DE ALIMENTOS Y BEBIDAS",247097.60000000001,"45 Dias",{"$f":"+Tabla1[[#This Row],[Fecha de Registro]]+45","v":"2024-01-26"}]
[{"$f":"+MID(Tabla1[[#This Row],[Concepto]],1,3)","v":"JVM"},"2023-12-15","B1500000505","CENPA COMERCIAL , SRL","JVM-ADQUISICION DE ALIMENTOS Y BEBIDAS  MASIVA (PENDIENTE DE RECIBIR)",57337.91,"45 Dias",{"$f":"+Tabla1[[#This Row],[Fecha de Registro]]+45","v":"2024-01-29"}]
[{"$f":"+MID(Tabla1[[#This Row],[Concepto]],1,3)","v":"JVM"},"2023-12-20","B0300000010","CENPA COMERCIAL , SRL","JVM-N/D AFACTA LA FACTURA NCF B1500000496",532.79999999999995,"45 Dias",{"$f":"+Tabla1[[#This Row],[Fecha de Registro]]+45","v":"2024-02-03"}]
[{"$f":"+MID(Tabla1[[#This Row],[Concepto]],1,3)","v":"EMH"},"2023-11-14","B1500002487","CENTRO XPERT , SRL","EMH-ADQUISICION DE TONER PARA LAS OPERACIONES DEL RECINTO",808050.07,"45 Dias",{"$f":"+Tabla1[[#This Row],[Fecha de Registro]]+45","v":"2023-12-29"}]
[{"$f":"+MID(Tabla1[[#This Row],[Concepto]],1,3)","v":"REC"},"2024-01-15","B1500002747","CENTROXPERT,  SRL","REC-ADQUISICION DE EQUIPOS INFORMATICOS",367114.95,"45 Dias",{"$f":"+Tabla1[[#This Row],[Fecha de Registro]]+45","v":"2024-02-29"}]
[{"$f":"+MID(Tabla1[[#This Row],[Concepto]],1,3)","v":"REC"},"2021-08-19","B1500000009","CHECKPOINT DOMINICANA SRL","REC-COMPRA DE DISPENSADOR DE GEL CON TERMOMETRO Y LUZ ",45878.400000000001,"45 Dias",{"$f":"+Tabla1[[#This Row],[Fecha de Registro]]+45","v":"2021-10-03"}]
[{"$f":"+MID(Tabla1[[#This Row],[Concepto]],1,3)","v":"EMH"},"2016-12-31","A010010011500000011","Cigoil Caribe, S.A.","EMH-FACT A010010011500000011 DEL EMH / D/F 16/11/2015",15939,"45 Dias",{"$f":"+Tabla1[[#This Row],[Fecha de Registro]]+45","v":"2017-02-14"}]
[{"$f":"+MID(Tabla1[[#This Row],[Concepto]],1,3)","v":"FEM"},"2016-12-31","A020020021500000020","Circuit Worl, srl","FEM-FACT A020020021500000020 DEL FEM D/F 25/02/2015",61900.02,"45 Dias",{"$f":"+Tabla1[[#This Row],[Fecha de Registro]]+45","v":"2017-02-14"}]
[{"$f":"+MID(Tabla1[[#This Row],[Concepto]],1,3)","v":"REC"},"2024-01-25","B1500000026","COBROS EMPRESARIALES Y BANCARIOS COBRIA,","REC-SERVICIO DE NOTIFICACIÓN",29700.6,"45 Dias",{"$f":"+Tabla1[[#This Row],[Fecha de Registro]]+45","v":"2024-03-10"}]
[{"$f":"+MID(Tabla1[[#This Row],[Concepto]],1,3)","v":"REC"},"2024-02-07","B1500000027","COBROS EMPRESARIALES Y BANCARIOS COBRIA,","REC-SERVICIO DE NOTIFICACIÓN",9900.2000000000007,"45 Dias",{"$f":"+Tabla1[[#This Row],[Fecha de Registro]]+45","v":"2024-03-23"}]
[{"$f":"+MID(Tabla1[[#This Row],[Concepto]],1,3)","v":"PRU"},"2023-12-29","CINV002383","COLLEGE BOARD","PRUEBAS ELASH 1 Y PAA G3 NOV. 2023, A USD 22,963.94 A UNA TASA DE RD$ 57.85",1328463.93,"45 Dias",{"$f":"+Tabla1[[#This Row],[Fecha de Registro]]+45","v":"2024-02-12"}]
[{"$f":"+MID(Tabla1[[#This Row],[Concepto]],1,3)","v":"LNM"},"2023-02-02","B1500000147","COMERCIAL CODI, SRL","LNM- COMPRA DE ALIMENTOS PARA ESTUDIANTES",100473.27,"45 Dias",{"$f":"+Tabla1[[#This Row],[Fecha de Registro]]+45","v":"2023-03-19"}]
[{"$f":"+MID(Tabla1[[#This Row],[Concepto]],1,3)","v":"EMH"},"2023-03-01","B1500000150","COMERCIAL CODI, SRL","EMH-ADQUISICION DE ALIMENTOS PARA USO DEL RECINTO. OR-2022-00590",34350,"45 Dias",{"$f":"+Tabla1[[#This Row],[Fecha de Registro]]+45","v":"2023-04-15"}]
[{"$f":"+MID(Tabla1[[#This Row],[Concepto]],1,3)","v":"UM-"},"2023-04-18","B1500000151","COMERCIAL CODI, SRL","UM-ADQUISICION DE ALIMENTOS PARA USO DEL RECINTO. OR-2023-00033",16200,"45 Dias",{"$f":"+Tabla1[[#This Row],[Fecha de Registro]]+45","v":"2023-06-02"}]
[{"$f":"+MID(Tabla1[[#This Row],[Concepto]],1,3)","v":"UM-"},"2023-05-04","B1500000152","COMERCIAL CODI, SRL","UM-ADQUISICION DE ALIMENTOS PARA USO DEL RECINTO. OR-2023-00033",11400,"45 Dias",{"$f":"+Tabla1[[#This Row],[Fecha de Registro]]+45","v":"2023-06-18"}]
[{"$f":"+MID(Tabla1[[#This Row],[Concepto]],1,3)","v":"UM-"},"2023-06-01","B1500000154","COMERCIAL CODI, SRL","UM-ADQUISICION DE VIVERES PARA CONSUMO DE LOS ESTUDIANTES",11400,"45 Dias",{"$f":"+Tabla1[[#This Row],[Fecha de Registro]]+45","v":"2023-07-16"}]
[{"$f":"+MID(Tabla1[[#This Row],[Concepto]],1,3)","v":"EMH"},"2023-06-01","B1500000156","COMERCIAL CODI, SRL","EMH-ADQUISICION DE ALIMENTOS PARA CONSUMO DE LOS ESTUDIANTES",32330,"45 Dias",{"$f":"+Tabla1[[#This Row],[Fecha de Registro]]+45","v":"2023-07-16"}]
[{"$f":"+MID(Tabla1[[#This Row],[Concepto]],1,3)","v":"JVM"},"2023-06-01","B1500000155","COMERCIAL CODI, SRL","JVM- COMPRA DE ALIMENTOS PARA EL RECINTO OR-2022-00599 (PENDIENTE POR RECIBIR)",40676,"45 Dias",{"$f":"+Tabla1[[#This Row],[Fecha de Registro]]+45","v":"2023-07-16"}]
[{"$f":"+MID(Tabla1[[#This Row],[Concepto]],1,3)","v":"UM-"},"2023-06-07","B1500000157","COMERCIAL CODI, SRL","UM- COMPRA DE ALIMENTOS. (PENDIENTE DE RECIBIR)",12800,"45 Dias",{"$f":"+Tabla1[[#This Row],[Fecha de Registro]]+45","v":"2023-07-22"}]
[{"$f":"+MID(Tabla1[[#This Row],[Concepto]],1,3)","v":"JVM"},"2023-07-03","B1500000159","COMERCIAL CODI, SRL","JVM- COMPRA DE ALIMENTOS PARA EL RECINTO",55400,"45 Dias",{"$f":"+Tabla1[[#This Row],[Fecha de Registro]]+45","v":"2023-08-17"}]
[{"$f":"+MID(Tabla1[[#This Row],[Concepto]],1,3)","v":"JVM"},"2023-07-19","B1500000160","COMERCIAL CODI, SRL","JVM- COMPRA DE ALIMENTOS PARA EL RECINTO OR. 2022-599",34400,"45 Dias",{"$f":"+Tabla1[[#This Row],[Fecha de Registro]]+45","v":"2023-09-02"}]
[{"$f":"+MID(Tabla1[[#This Row],[Concepto]],1,3)","v":"REC"},"2024-02-19","B1500000089","COMERCIAL PEREZ LUCIANO","REC-ADQUISICION SUMINSTRO DE OFICINA USO RECTORIA Y EL FEM",132731.4,"45 Dias",{"$f":"+Tabla1[[#This Row],[Fecha de Registro]]+45","v":"2024-04-04"}]
[{"$f":"+MID(Tabla1[[#This Row],[Concepto]],1,3)","v":"EPH"},"2023-12-13","B1500000531","COMERCIALIZADORA LANIPSE","EPH-COMPRA DE ALIMENTOS",14536,"45 Dias",{"$f":"+Tabla1[[#This Row],[Fecha de Registro]]+45","v":"2024-01-27"}]
[{"$f":"+MID(Tabla1[[#This Row],[Concepto]],1,3)","v":"EMH"},"2024-01-23","B1500000556","COMERCIALIZADORA LANIPSE","EMH-COMPRA DE ALIMENTOS",37647.01,"45 Dias",{"$f":"+Tabla1[[#This Row],[Fecha de Registro]]+45","v":"2024-03-08"}]
[{"$f":"+MID(Tabla1[[#This Row],[Concepto]],1,3)","v":"EPH"},"2024-02-21","B1500000570","COMERCIALIZADORA LANIPSE","EPH-COMPRA DE ALIMENTOS (AGUA)",15548,"45 Dias",{"$f":"+Tabla1[[#This Row],[Fecha de Registro]]+45","v":"2024-04-06"}]
[{"$f":"+MID(Tabla1[[#This Row],[Concepto]],1,3)","v":"REC"},"2024-02-10","E450000035411","Compañía Dominicana de Teléfono","REC-SERVICIOS DE COMUNICACION, TELEFONO  CTA. 705001061",458450.55,"45 Dias",{"$f":"+Tabla1[[#This Row],[Fecha de Registro]]+45","v":"2024-03-26"}]
[{"$f":"+MID(Tabla1[[#This Row],[Concepto]],1,3)","v":"REC"},"2024-02-10","E450000035483","Compañía Dominicana de Teléfono","REC-SERVICIOS DE COMUNICACION, TELEFONO LOCAL CTA. 734699053",32129.4,"45 Dias",{"$f":"+Tabla1[[#This Row],[Fecha de Registro]]+45","v":"2024-03-26"}]
[{"$f":"+MID(Tabla1[[#This Row],[Concepto]],1,3)","v":"REC"},"2024-02-10","E450000035441","Compañía Dominicana de Teléfono","REC-SERVICIOS DE COMUNICACION,  CTA. 711982560",1773441.05,"45 Dias",{"$f":"+Tabla1[[#This Row],[Fecha de Registro]]+45","v":"2024-03-26"}]
[{"$f":"+MID(Tabla1[[#This Row],[Concepto]],1,3)","v":"REC"},"2024-02-27","E450000037013","Compañía Dominicana de Teléfono","REC-SERVICIOS DE COMUNICACION, TELEFONO  CTA. 705001061",103044.5,"45 Dias",{"$f":"+Tabla1[[#This Row],[Fecha de Registro]]+45","v":"2024-04-12"}]
[{"$f":"+MID(Tabla1[[#This Row],[Concepto]],1,3)","v":"FEM"},"2024-02-20","B1500004229","Compu Office Dominicana SRL","FEM- COMPRA DE TONERS (PENDIENTE)",243916.59,"45 Dias",{"$f":"+Tabla1[[#This Row],[Fecha de Registro]]+45","v":"2024-04-05"}]
[{"$f":"+MID(Tabla1[[#This Row],[Concepto]],1,3)","v":"FEM"},"2023-10-02","B1500000268","CONGESUR CONGELADOS DEL SUR","FEM-ADQUISICION DE ALIMENTOS PARA USO DEL RECINTO",48867.199999999997,"45 Dias",{"$f":"+Tabla1[[#This Row],[Fecha de Registro]]+45","v":"2023-11-16"}]
[{"$f":"+MID(Tabla1[[#This Row],[Concepto]],1,3)","v":"FEM"},"2023-10-16","B1500000269","CONGESUR CONGELADOS DEL SUR","FEM-ADQUISICION DE ALIMENTOS PARA USO DEL RECINTO",29370.32,"45 Dias",{"$f":"+Tabla1[[#This Row],[Fecha de Registro]]+45","v":"2023-11-30"}]
[{"$f":"+MID(Tabla1[[#This Row],[Concepto]],1,3)","v":"FEM"},"2023-10-16","B1500000270","CONGESUR CONGELADOS DEL SUR","FEM-ADQUISICION DE ALIMENTOS PARA USO DEL RECINTO",4760,"45 Dias",{"$f":"+Tabla1[[#This Row],[Fecha de Registro]]+45","v":"2023-11-30"}]
[{"$f":"+MID(Tabla1[[#This Row],[Concepto]],1,3)","v":"FEM"},"2023-10-27","B1500000271","CONGESUR CONGELADOS DEL SUR","FEM-ADQUISICION DE ALIMENTOS PARA USO DEL RECINTO",61385.56,"45 Dias",{"$f":"+Tabla1[[#This Row],[Fecha de Registro]]+45","v":"2023-12-11"}]
[{"$f":"+MID(Tabla1[[#This Row],[Concepto]],1,3)","v":"FEM"},"2023-10-30","B1500000272","CONGESUR CONGELADOS DEL SUR","FEM-ADQUISICION DE ALIMENTOS PARA USO DEL RECINTO",12852,"45 Dias",{"$f":"+Tabla1[[#This Row],[Fecha de Registro]]+45","v":"2023-12-14"}]
[{"$f":"+MID(Tabla1[[#This Row],[Concepto]],1,3)","v":"FEM"},"2023-11-28","B1500000274","CONGESUR CONGELADOS DEL SUR","FEM-ADQUISICION DE ALIMENTOS PARA USO DEL RECINTO",14280,"45 Dias",{"$f":"+Tabla1[[#This Row],[Fecha de Registro]]+45","v":"2024-01-12"}]
[{"$f":"+MID(Tabla1[[#This Row],[Concepto]],1,3)","v":"FEM"},"2023-12-07","B1500000275","CONGESUR CONGELADOS DEL SUR","FEM-ADQUISICIÒN DE ALIMENTOS ORDEN 2023-00430",38706.839999999997,"45 Dias",{"$f":"+Tabla1[[#This Row],[Fecha de Registro]]+45","v":"2024-01-21"}]
[{"$f":"+MID(Tabla1[[#This Row],[Concepto]],1,3)","v":"FEM"},"2023-12-17","B0400000013","CONGESUR CONGELADOS DEL SUR","FEM- NC AFECTA NCF: B1500000269, POR ERROR EN PRECIO. (PENDIENTE DE RECIBIR)",-2375.7600000000002,"45 Dias",{"$f":"+Tabla1[[#This Row],[Fecha de Registro]]+45","v":"2024-01-31"}]
[{"$f":"+MID(Tabla1[[#This Row],[Concepto]],1,3)","v":"FEM"},"2024-01-08","B1500000278","CONGESUR CONGELADOS DEL SUR","FEM-ADQUISICIÒN DE ALIMENTOS",18207,"45 Dias",{"$f":"+Tabla1[[#This Row],[Fecha de Registro]]+45","v":"2024-02-22"}]
[{"$f":"+MID(Tabla1[[#This Row],[Concepto]],1,3)","v":"FEM"},"2024-02-02","B1500000279","CONGESUR CONGELADOS DEL SUR","FEM-ADQUISICIÒN DE ALIMENTOS (PENDIENTE)",42767.92,"45 Dias",{"$f":"+Tabla1[[#This Row],[Fecha de Registro]]+45","v":"2024-03-18"}]
[{"$f":"+MID(Tabla1[[#This Row],[Concepto]],1,3)","v":"JVM"},"2023-10-02","B1500000006","CRISTIAN MANUEL NUÑEZ TAVERAS","JVM- ADQUISICION DE SERVICIO DE MANTENIMIENTO DE PUERTAS DE LOS BAÑOS OFICINAS ADM.",205320,"45 Dias",{"$f":"+Tabla1[[#This Row],[Fecha de Registro]]+45","v":"2023-11-16"}]
[{"$f":"+MID(Tabla1[[#This Row],[Concepto]],1,3)","v":"EMH"},"2024-01-26","B1500000235","DAMIAN MIGUEL ANGEL TAVARES REYES","EMH-SERVICIOS DE TRANSPORTE PARA LAS DIVERSAS ACTIVIDADES DEL RECINTO",128594.75,"45 Dias",{"$f":"+Tabla1[[#This Row],[Fecha de Registro]]+45","v":"2024-03-11"}]
[{"$f":"+MID(Tabla1[[#This Row],[Concepto]],1,3)","v":"EPH"},"2024-02-26","B1500000238","DAMIAN MIGUEL ANGEL TAVARES REYES","EPH-SERVICIOS DE TRANSPORTE PARA LAS DIVERSAS ACTIVIDADES DEL RECINTO",128594.75,"45 Dias",{"$f":"+Tabla1[[#This Row],[Fecha de Registro]]+45","v":"2024-04-11"}]
[{"$f":"+MID(Tabla1[[#This Row],[Concepto]],1,3)","v":"FEM"},"2023-02-06","B1500000154","DEALCORP INVESMENT, SRL","FEM-COMPRA DE ALIMENTOS PARA USO DEL RECINTO",81624.5,"45 Dias",{"$f":"+Tabla1[[#This Row],[Fecha de Registro]]+45","v":"2023-03-23"}]
[{"$f":"+MID(Tabla1[[#This Row],[Concepto]],1,3)","v":"FEM"},"2023-03-06","B1500000156","DEALCORP INVESMENT, SRL","FEM-ADQUISICION DE INSUMOS ALIMENTICIOS PARA USO DEL RECINTO",82902.5,"45 Dias",{"$f":"+Tabla1[[#This Row],[Fecha de Registro]]+45","v":"2023-04-20"}]
[{"$f":"+MID(Tabla1[[#This Row],[Concepto]],1,3)","v":"FEM"},"2023-04-21","B1500000158","DEALCORP INVESMENT, SRL","FEM-ADQUISICION DE INSUMOS ALIMENTICIOS PARA USO DEL RECINTO (PENDIENTE ESPERA DE EXPEDIENTE)",54850,"45 Dias",{"$f":"+Tabla1[[#This Row],[Fecha de Registro]]+45","v":"2023-06-05"}]
[{"$f":"+MID(Tabla1[[#This Row],[Concepto]],1,3)","v":"FEM"},"2023-05-15","B0400000003","DEALCORP INVESMENT, SRL","FEM-NOTA DE CREDITO AFECTA FACTURA B1500000154",-7940,"45 Dias",{"$f":"+Tabla1[[#This Row],[Fecha de Registro]]+45","v":"2023-06-29"}]
[{"$f":"+MID(Tabla1[[#This Row],[Concepto]],1,3)","v":"FEM"},"2023-05-15","B0400000004","DEALCORP INVESMENT, SRL","FEM- NC AFECTA NCF: B1500000156",-270,"45 Dias",{"$f":"+Tabla1[[#This Row],[Fecha de Registro]]+45","v":"2023-06-29"}]
[{"$f":"+MID(Tabla1[[#This Row],[Concepto]],1,3)","v":"EPH"},"2024-02-05","B1500000664","DI PARTES Y MECANICA DIESEL SRL","EPH-SERVICIO DE MANTENIMIENTO Y/O REPARACION DE LA FLOTILLA VEHICULAR DEL RECINTO",39471,"45 Dias",{"$f":"+Tabla1[[#This Row],[Fecha de Registro]]+45","v":"2024-03-21"}]
[{"$f":"+MID(Tabla1[[#This Row],[Concepto]],1,3)","v":"EPH"},"2024-02-05","B1500000665","DI PARTES Y MECANICA DIESEL SRL","EPH-SERVICIO DE MANTENIMIENTO Y/O REPARACION DE LA FLOTILLA VEHICULAR DEL RECINTO",112454,"45 Dias",{"$f":"+Tabla1[[#This Row],[Fecha de Registro]]+45","v":"2024-03-21"}]
[{"$f":"+MID(Tabla1[[#This Row],[Concepto]],1,3)","v":"LNM"},"2024-02-14","B1500000666","DI PARTES Y MECANICA DIESEL SRL","LNM-SERVICIO DE MANTENIMIENTO Y/O REPARACION DE LA FLOTILLAS VEHICULAR DEL RECINTO",13806,"45 Dias",{"$f":"+Tabla1[[#This Row],[Fecha de Registro]]+45","v":"2024-03-30"}]
[{"$f":"+MID(Tabla1[[#This Row],[Concepto]],1,3)","v":"FEM"},"2024-01-30","B1500000202","Difo Electromecanica, SRL","FEM-ADQUISICION DE AIRES ACONDICIONADOS Y CONDENSADORES",983500.02,"45 Dias",{"$f":"+Tabla1[[#This Row],[Fecha de Registro]]+45","v":"2024-03-15"}]
[{"$f":"+MID(Tabla1[[#This Row],[Concepto]],1,3)","v":"JVM"},"2024-02-14","B1500000208","Difo Electromecanica, SRL","JVM-SERVICIO DE MANTENIMIENTO Y REPARACION DE PLANTA ELECTRICA",110000,"45 Dias",{"$f":"+Tabla1[[#This Row],[Fecha de Registro]]+45","v":"2024-03-30"}]
[{"$f":"+MID(Tabla1[[#This Row],[Concepto]],1,3)","v":"REC"},"2024-02-29","B1500000210","Difo Electromecanica, SRL","REC-SERVICIO DE MANTENIMIENTO CUARTO FRIO",12500,"45 Dias",{"$f":"+Tabla1[[#This Row],[Fecha de Registro]]+45","v":"2024-04-14"}]
[{"$f":"+MID(Tabla1[[#This Row],[Concepto]],1,3)","v":"REC"},"2024-02-29","B1500000211","Difo Electromecanica, SRL","REC-SERVICIO DE MANTENIMIENTO PREVENTIVO Y CORRECTIVO ACONDICIONADORES DE AIRE",189500,"45 Dias",{"$f":"+Tabla1[[#This Row],[Fecha de Registro]]+45","v":"2024-04-14"}]
[{"$f":"+MID(Tabla1[[#This Row],[Concepto]],1,3)","v":"REC"},"2023-12-01","B1500000055","DISTRIBUIDORA CEBALLOS TAVERAS, SRL","REC-SERVICIO DE CATERING PARA  ACTIVIDADES DEL DIA DE LA SALUD. OR. 2023-00665",433357.95,"45 Dias",{"$f":"+Tabla1[[#This Row],[Fecha de Registro]]+45","v":"2024-01-15"}]
[{"$f":"+MID(Tabla1[[#This Row],[Concepto]],1,3)","v":"REC"},"2024-01-24","B1500031045","DISTRIBUIDORES INTERN. PETROLEO, S.A.","REC- COMPRA DE TICKETS DE COMBUSTIBLE.",950000,"45 Dias",{"$f":"+Tabla1[[#This Row],[Fecha de Registro]]+45","v":"2024-03-09"}]
[{"$f":"+MID(Tabla1[[#This Row],[Concepto]],1,3)","v":"JVM"},"2024-01-30","B15000376","DITA SERVICES SRL","JVM-ADQUISICION DE SERVICIOS DE TRATAMIENTO PROFUNDO DE COMEJEN Y TERMITAS FUMIGACION",17645.54,"45 Dias",{"$f":"+Tabla1[[#This Row],[Fecha de Registro]]+45","v":"2024-03-15"}]
[{"$f":"+MID(Tabla1[[#This Row],[Concepto]],1,3)","v":"JVM"},"2024-02-05","B1500000382","DITA SERVICES SRL","JVM-ADQUISICION DE SERVICIOS DE TRATAMIENTO PROFUNDO DE COMEJEN Y TERMITAS",425780.31,"45 Dias",{"$f":"+Tabla1[[#This Row],[Fecha de Registro]]+45","v":"2024-03-21"}]
[{"$f":"+MID(Tabla1[[#This Row],[Concepto]],1,3)","v":"JVM"},"2024-02-05","B1500000358","DITA SERVICES SRL","JVM-SERVICIO DE FUMIGACION (PENDIENTE)",17645.54,"45 Dias",{"$f":"+Tabla1[[#This Row],[Fecha de Registro]]+45","v":"2024-03-21"}]
[{"$f":"+MID(Tabla1[[#This Row],[Concepto]],1,3)","v":"EMH"},"2023-08-14","B1500000347","DR. JOSE PIO SANTANA HERRERA","EMH-NOTARIZACION DE CONTRATOS",54280,"45 Dias",{"$f":"+Tabla1[[#This Row],[Fecha de Registro]]+45","v":"2023-09-28"}]
[{"$f":"+MID(Tabla1[[#This Row],[Concepto]],1,3)","v":"EMH"},"2023-12-19","B1500000412","DR. JOSE PIO SANTANA HERRERA","EMH-NOTARIZACION DE CONTRATOS (PENDIENTE DE RECIBIR)",25370,"45 Dias",{"$f":"+Tabla1[[#This Row],[Fecha de Registro]]+45","v":"2024-02-02"}]
[{"$f":"+MID(Tabla1[[#This Row],[Concepto]],1,3)","v":"EMH"},"2024-02-15","B1500000222","DSETA  GROUP, SRL","EMH- MANT. DE ASCENSORES FEB. 2024",9333.4,"45 Dias",{"$f":"+Tabla1[[#This Row],[Fecha de Registro]]+45","v":"2024-03-31"}]
[{"$f":"+MID(Tabla1[[#This Row],[Concepto]],1,3)","v":"REC"},"2023-06-15","B1500000109","ELDRY KAMILLE BELTRE RAMIREZ","REC- (COMPROBANTE DUPLICADO EMITIDO A OTRA INSTITUCIÓN) SERVICIO DE CATERING PARA REALIZACION DE...",168150,"45 Dias",{"$f":"+Tabla1[[#This Row],[Fecha de Registro]]+45","v":"2023-07-30"}]
[{"$f":"+MID(Tabla1[[#This Row],[Concepto]],1,3)","v":"JVM"},"2023-03-06","B1500000028","ELVIRA POLANCO DIAZ","JVM-ADQUISICION DE CATEERING PARA  ACTIVIDADES DEL RECINTO",15133.5,"45 Dias",{"$f":"+Tabla1[[#This Row],[Fecha de Registro]]+45","v":"2023-04-20"}]
[{"$f":"+MID(Tabla1[[#This Row],[Concepto]],1,3)","v":"EMH"},"2023-09-18","B1500000037","ELVIRA POLANCO DIAZ","EMH-ADQUISICION DE CATERING",498432,"45 Dias",{"$f":"+Tabla1[[#This Row],[Fecha de Registro]]+45","v":"2023-11-02"}]
[{"$f":"+MID(Tabla1[[#This Row],[Concepto]],1,3)","v":"EMH"},"2023-09-29","B1500000040","ELVIRA POLANCO DIAZ","EMH-ADQUISICION DE CATERING",43612,"45 Dias",{"$f":"+Tabla1[[#This Row],[Fecha de Registro]]+45","v":"2023-11-13"}]
[{"$f":"+MID(Tabla1[[#This Row],[Concepto]],1,3)","v":"UM-"},"2024-02-15","B1500008945","Empresas Miltin SRL","UM-ADQUISICION DE GAS PROPANO PARA EL RECINTO",63648,"45 Dias",{"$f":"+Tabla1[[#This Row],[Fecha de Registro]]+45","v":"2024-03-31"}]
[{"$f":"+MID(Tabla1[[#This Row],[Concepto]],1,3)","v":"UM-"},"2024-02-15","B1500008946","Empresas Miltin SRL","UM-ADQUISICION DE GAS PROPANO PARA EL RECINTO",61600,"45 Dias",{"$f":"+Tabla1[[#This Row],[Fecha de Registro]]+45","v":"2024-03-31"}]
[{"$f":"+MID(Tabla1[[#This Row],[Concepto]],1,3)","v":"UM-"},"2024-02-15","B1500008947","Empresas Miltin SRL","UM-ADQUISICION DE GASOIL PARA USO EN LA PLANTA ELECTRICA",110800,"45 Dias",{"$f":"+Tabla1[[#This Row],[Fecha de Registro]]+45","v":"2024-03-31"}]
[{"$f":"+MID(Tabla1[[#This Row],[Concepto]],1,3)","v":"REC"},"2020-09-21","B1500000077","ESPECIALIDADES GRAFICAS MORAN & ASOC","REC  SERVICIO DE IMPRESION INFORME EJECUTIVO 2013-2019",178864.4,"45 Dias",{"$f":"+Tabla1[[#This Row],[Fecha de Registro]]+45","v":"2020-11-05"}]
[{"$f":"+MID(Tabla1[[#This Row],[Concepto]],1,3)","v":"REC"},"2023-12-04","B1500000101","ETIQUETAS Y MARCADORES MELO, SRL","REC- MONTAJE DE EVENTO SEMANA DE LA SALUD EN EL RECINTO EMH, SEGÚN ORD. 2023-00661.",723871,"45 Dias",{"$f":"+Tabla1[[#This Row],[Fecha de Registro]]+45","v":"2024-01-18"}]
[{"$f":"+MID(Tabla1[[#This Row],[Concepto]],1,3)","v":"REC"},"2023-12-10","B1500000102","ETIQUETAS Y MARCADORES MELO, SRL","REC- MONTAJE DE EVENTO SEMANA DE LA SALUD EN EL RECINTO EMH, SEGÚN ORD. 2023-00650.",270810,"45 Dias",{"$f":"+Tabla1[[#This Row],[Fecha de Registro]]+45","v":"2024-01-24"}]
[{"$f":"+MID(Tabla1[[#This Row],[Concepto]],1,3)","v":"LNM"},"2023-10-05","B1500000621","EVENTOS SONIA & FELIX, SRL","LNM-SERVICIOS DE CATERING",17552.5,"45 Dias",{"$f":"+Tabla1[[#This Row],[Fecha de Registro]]+45","v":"2023-11-19"}]
[{"$f":"+MID(Tabla1[[#This Row],[Concepto]],1,3)","v":"LNM"},"2023-10-11","B1500000624","EVENTOS SONIA & FELIX, SRL","LNM-SERVICIOS DE CATERING",27789,"45 Dias",{"$f":"+Tabla1[[#This Row],[Fecha de Registro]]+45","v":"2023-11-25"}]
[{"$f":"+MID(Tabla1[[#This Row],[Concepto]],1,3)","v":"LNM"},"2023-10-12","B1500000625","EVENTOS SONIA & FELIX, SRL","LNM-SERVICIOS DE CATERING",18496.5,"45 Dias",{"$f":"+Tabla1[[#This Row],[Fecha de Registro]]+45","v":"2023-11-26"}]
[{"$f":"+MID(Tabla1[[#This Row],[Concepto]],1,3)","v":"LNM"},"2023-10-19","B1500000626","EVENTOS SONIA & FELIX, SRL","LNM-SERVICIOS DE CATERING",10620,"45 Dias",{"$f":"+Tabla1[[#This Row],[Fecha de Registro]]+45","v":"2023-12-03"}]
[{"$f":"+MID(Tabla1[[#This Row],[Concepto]],1,3)","v":"LNM"},"2023-10-26","B1500000631","EVENTOS SONIA & FELIX, SRL","LNM-SERVICIOS DE CATERING",53395,"45 Dias",{"$f":"+Tabla1[[#This Row],[Fecha de Registro]]+45","v":"2023-12-10"}]
[{"$f":"+MID(Tabla1[[#This Row],[Concepto]],1,3)","v":"LNM"},"2023-11-03","B1500000633","EVENTOS SONIA & FELIX, SRL","LNM-SERVICIOS DE CATERING",37170,"45 Dias",{"$f":"+Tabla1[[#This Row],[Fecha de Registro]]+45","v":"2023-12-18"}]
[{"$f":"+MID(Tabla1[[#This Row],[Concepto]],1,3)","v":"LNM"},"2023-11-09","B1500000636","EVENTOS SONIA & FELIX, SRL","LNM-SERVICIOS DE CATERING",136880,"45 Dias",{"$f":"+Tabla1[[#This Row],[Fecha de Registro]]+45","v":"2023-12-24"}]
[{"$f":"+MID(Tabla1[[#This Row],[Concepto]],1,3)","v":"LNM"},"2023-11-17","B1500000641","EVENTOS SONIA & FELIX, SRL","LNM-SERVICIOS DE CATERING ORDEN 2023-00207",14868,"45 Dias",{"$f":"+Tabla1[[#This Row],[Fecha de Registro]]+45","v":"2024-01-01"}]
[{"$f":"+MID(Tabla1[[#This Row],[Concepto]],1,3)","v":"LNM"},"2023-11-24","B1500000645","EVENTOS SONIA & FELIX, SRL","LNM-SERVICIOS DE CATERING",51772.5,"45 Dias",{"$f":"+Tabla1[[#This Row],[Fecha de Registro]]+45","v":"2024-01-08"}]
[{"$f":"+MID(Tabla1[[#This Row],[Concepto]],1,3)","v":"LNM"},"2023-11-28","B1500000646","EVENTOS SONIA & FELIX, SRL","LNM-SERVICIOS DE CATERING",92925,"45 Dias",{"$f":"+Tabla1[[#This Row],[Fecha de Registro]]+45","v":"2024-01-12"}]
[{"$f":"+MID(Tabla1[[#This Row],[Concepto]],1,3)","v":"LNM"},"2023-11-29","B1500000647","EVENTOS SONIA & FELIX, SRL","LNM-SERVICIOS DE CATERING",18585,"45 Dias",{"$f":"+Tabla1[[#This Row],[Fecha de Registro]]+45","v":"2024-01-13"}]
[{"$f":"+MID(Tabla1[[#This Row],[Concepto]],1,3)","v":"LNM"},"2023-12-06","B1500000650","EVENTOS SONIA & FELIX, SRL","LNM-SERVICIOS DE CATERING",17700,"45 Dias",{"$f":"+Tabla1[[#This Row],[Fecha de Registro]]+45","v":"2024-01-20"}]
[{"$f":"+MID(Tabla1[[#This Row],[Concepto]],1,3)","v":"LNM"},"2023-12-07","B1500000651","EVENTOS SONIA & FELIX, SRL","LNM-SERVICIOS DE CATERING",17700,"45 Dias",{"$f":"+Tabla1[[#This Row],[Fecha de Registro]]+45","v":"2024-01-21"}]
[{"$f":"+MID(Tabla1[[#This Row],[Concepto]],1,3)","v":"REC"},"2024-01-19","B1500000668","EVENTOS SONIA & FELIX, SRL","REC- ALQUILER DE MESAS",31152,"45 Dias",{"$f":"+Tabla1[[#This Row],[Fecha de Registro]]+45","v":"2024-03-04"}]
[{"$f":"+MID(Tabla1[[#This Row],[Concepto]],1,3)","v":"REC"},"2024-01-05","B1500000193","EXIMEDIA, SRL","REC-CAPACITACIONES PARA EMPLEADOS DEL ISFODOSU",67500,"45 Dias",{"$f":"+Tabla1[[#This Row],[Fecha de Registro]]+45","v":"2024-02-19"}]
[{"$f":"+MID(Tabla1[[#This Row],[Concepto]],1,3)","v":"REC"},"2024-02-09","B1500000196","EXIMEDIA, SRL","REC-CAPACITACIONES PARA EMPLEADOS DEL ISFODOSU",13000,"45 Dias",{"$f":"+Tabla1[[#This Row],[Fecha de Registro]]+45","v":"2024-03-25"}]
[{"$f":"+MID(Tabla1[[#This Row],[Concepto]],1,3)","v":"LNM"},"2016-12-31","A030030010100059788","Ezequiel Bionegym . srl","LNM-FACTAS VARIAS DE Ezequiel Bionegym . srl / LNNM/PERIODO 2015",20975,"45 Dias",{"$f":"+Tabla1[[#This Row],[Fecha de Registro]]+45","v":"2017-02-14"}]
[{"$f":"+MID(Tabla1[[#This Row],[Concepto]],1,3)","v":"REC"},"2020-08-03","B1500000095","FAMA ELEVATOR SERVICE, SRL","REC- SERVICIO DE MANTENIMIENTO DE ASCENSORES",8024,"45 Dias",{"$f":"+Tabla1[[#This Row],[Fecha de Registro]]+45","v":"2020-09-17"}]
[{"$f":"+MID(Tabla1[[#This Row],[Concepto]],1,3)","v":"EMH"},"2023-12-11","B1500000233","FIS SOLUCIONES, SRL.","EMH-COMPRA DEALIMENTOS PARA CONSUMO DE LOS ESTUDIANTES Y COLABORADORES",29900,"45 Dias",{"$f":"+Tabla1[[#This Row],[Fecha de Registro]]+45","v":"2024-01-25"}]
[{"$f":"+MID(Tabla1[[#This Row],[Concepto]],1,3)","v":"JVM"},"2023-12-08","B1500000032","FUDIMAT, SRL","JVM-ADQUISICION DE ALIMENTOS PARA LOS ESTUDIANTES",63030.1,"45 Dias",{"$f":"+Tabla1[[#This Row],[Fecha de Registro]]+45","v":"2024-01-22"}]
[{"$f":"+MID(Tabla1[[#This Row],[Concepto]],1,3)","v":"JVM"},"2024-02-29","B1500000054","FUDIMAT, SRL","JVM-ADQUISICION DE ALIMENTOS PARA LOS ESTUDIANTES (PENDIENTE)",66146.080000000002,"45 Dias",{"$f":"+Tabla1[[#This Row],[Fecha de Registro]]+45","v":"2024-04-14"}]
[{"$f":"+MID(Tabla1[[#This Row],[Concepto]],1,3)","v":"JVM"},"2023-07-31","B1500000177","FUMISMART, SRL","JVM- FUMIGACION, JUNIO 2023",14258.34,"45 Dias",{"$f":"+Tabla1[[#This Row],[Fecha de Registro]]+45","v":"2023-09-14"}]
[{"$f":"+MID(Tabla1[[#This Row],[Concepto]],1,3)","v":"REC"},"2024-01-31","24/0101/0070","FUNDACION DE INV. DE LA UNIV. SEVILLA","REC-CORRESPONDIENTE  PAGO AL CONVENIO CI-0000415-2023. EUR1,689.76 A UNA TASA DE RD$65.5774",110810.07,"45 Dias",{"$f":"+Tabla1[[#This Row],[Fecha de Registro]]+45","v":"2024-03-16"}]
[{"$f":"+MID(Tabla1[[#This Row],[Concepto]],1,3)","v":"REC"},"2024-01-31","24/0082/0071","FUNDACION DE INV. DE LA UNIV. SEVILLA","REC-CORRESPONDIENTE  PAGO AL CONVENIO CI-0000415-2023. EUR1,268.00 A UNA TASA DE RD$65.5774",83152.14,"45 Dias",{"$f":"+Tabla1[[#This Row],[Fecha de Registro]]+45","v":"2024-03-16"}]
[{"$f":"+MID(Tabla1[[#This Row],[Concepto]],1,3)","v":"REC"},"2016-05-30","A010010011500000049","Fundación Educativa Oriental","REC-COSTO CUATRIMESTRE MAYO-AGOSTO 2016 ESTUDIANTE EDDY A. ALMONTE",14450,"45 Dias",{"$f":"+Tabla1[[#This Row],[Fecha de Registro]]+45","v":"2016-07-14"}]
[{"$f":"+MID(Tabla1[[#This Row],[Concepto]],1,3)","v":"REC"},"2016-05-30","A010010011500000050","Fundación Educativa Oriental","REC-COSTO CUATRIMESTRE MAYO-AGOSTO 2016 ESTUDIANTE JUAN D. MOLINEAUX",13700,"45 Dias",{"$f":"+Tabla1[[#This Row],[Fecha de Registro]]+45","v":"2016-07-14"}]
[{"$f":"+MID(Tabla1[[#This Row],[Concepto]],1,3)","v":"REC"},"2024-02-12","B1500000488","GARENA, SRL","REC-MATERIALES DE LIMPIEZA Y COCINA (PENDIENTE)",9794,"45 Dias",{"$f":"+Tabla1[[#This Row],[Fecha de Registro]]+45","v":"2024-03-28"}]
[{"$f":"+MID(Tabla1[[#This Row],[Concepto]],1,3)","v":"FEM"},"2024-02-12","B1500000489","GARENA, SRL","FEM--MATERIALES DE LIMPIEZA  (PENDIENTE)",97486.88,"45 Dias",{"$f":"+Tabla1[[#This Row],[Fecha de Registro]]+45","v":"2024-03-28"}]
[{"$f":"+MID(Tabla1[[#This Row],[Concepto]],1,3)","v":"FEM"},"2023-10-27","B1500017535","Gas Antillanos","FEM- COMPRA DE GAS PARA EL RECINTO. (PENDIENTE)",1741.2,"45 Dias",{"$f":"+Tabla1[[#This Row],[Fecha de Registro]]+45","v":"2023-12-11"}]
[{"$f":"+MID(Tabla1[[#This Row],[Concepto]],1,3)","v":"FEM"},"2024-02-05","B0400025487","Gas Antillanos","FEM-N/C AFECTA FACT. B1500018319",918.68,"45 Dias",{"$f":"+Tabla1[[#This Row],[Fecha de Registro]]+45","v":"2024-03-21"}]
[{"$f":"+MID(Tabla1[[#This Row],[Concepto]],1,3)","v":"FEM"},"2024-02-05","B1500018319","Gas Antillanos","FEM-ADQUISICIO  DE GPL (PENDIENTE)",30454.240000000002,"45 Dias",{"$f":"+Tabla1[[#This Row],[Fecha de Registro]]+45","v":"2024-03-21"}]
[{"$f":"+MID(Tabla1[[#This Row],[Concepto]],1,3)","v":"EPH"},"2024-02-26","B1500002197","Gasolinera Franco Bido , SRL","EPH-ADQUISICION DE TICKETS PREPAGOS DE COMBUSTIBLES",165000,"45 Dias",{"$f":"+Tabla1[[#This Row],[Fecha de Registro]]+45","v":"2024-04-11"}]
[{"$f":"+MID(Tabla1[[#This Row],[Concepto]],1,3)","v":"FEM"},"2024-02-02","B1500000308","Grant P.K. Diesel, EIRL","FEM-COMPRA DE GASOIL PREMIUM PARA USO DEL RECINTO (PENDIENTE)",87440,"45 Dias",{"$f":"+Tabla1[[#This Row],[Fecha de Registro]]+45","v":"2024-03-18"}]
[{"$f":"+MID(Tabla1[[#This Row],[Concepto]],1,3)","v":"FEM"},"2024-02-02","B1500000307","Grant P.K. Diesel, EIRL","FEM-COMPRA DE GASOIL PREMIUM PARA USO DEL RECINTO (PENDIENTE)",59022,"45 Dias",{"$f":"+Tabla1[[#This Row],[Fecha de Registro]]+45","v":"2024-03-18"}]
[{"$f":"+MID(Tabla1[[#This Row],[Concepto]],1,3)","v":"FEM"},"2023-03-06","B1500000113","GRUPO ANTACE, SRL.","FEM-ADQUISICION DE INSUMOS ALIMENTICIOS PARA USO DEL RECINTO",6500,"45 Dias",{"$f":"+Tabla1[[#This Row],[Fecha de Registro]]+45","v":"2023-04-20"}]
[{"$f":"+MID(Tabla1[[#This Row],[Concepto]],1,3)","v":"FEM"},"2023-03-06","B1500000114","GRUPO ANTACE, SRL.","FEM-ADQUISICION DE INSUMOS ALIMENTICIOS PARA USO DEL RECINTO",2310,"45 Dias",{"$f":"+Tabla1[[#This Row],[Fecha de Registro]]+45","v":"2023-04-20"}]
[{"$f":"+MID(Tabla1[[#This Row],[Concepto]],1,3)","v":"REC"},"2023-06-05","B1500000102","GRUPO DE INVERSIONES READ DOMINGUEZ","REC-SERVICIO DE ALOJAMIENTOS PARA COLABORADORES DEL ISFODOSU",72872.600000000006,"45 Dias",{"$f":"+Tabla1[[#This Row],[Fecha de Registro]]+45","v":"2023-07-20"}]
[{"$f":"+MID(Tabla1[[#This Row],[Concepto]],1,3)","v":"REC"},"2023-07-03","B1500000105","GRUPO DE INVERSIONES READ DOMINGUEZ","REC-SERVICIO DE ALOJAMIENTOS PARA COLABORADORES DEL ISFODOSU",2072.73,"45 Dias",{"$f":"+Tabla1[[#This Row],[Fecha de Registro]]+45","v":"2023-08-17"}]
[{"$f":"+MID(Tabla1[[#This Row],[Concepto]],1,3)","v":"REC"},"2023-08-07","B1500000106","GRUPO DE INVERSIONES READ DOMINGUEZ","REC-SERVICIO DE ALOJAMIENTOS PARA COLABORADORES DEL ISFODOSU",97163.67,"45 Dias",{"$f":"+Tabla1[[#This Row],[Fecha de Registro]]+45","v":"2023-09-21"}]
[{"$f":"+MID(Tabla1[[#This Row],[Concepto]],1,3)","v":"REC"},"2023-09-15","B1500000109","GRUPO DE INVERSIONES READ DOMINGUEZ","REC-SERVICIO DE ALOJAMIENTO ORDEN 2023-00068 PENDIENTE DE RECIBIR",425090.18,"45 Dias",{"$f":"+Tabla1[[#This Row],[Fecha de Registro]]+45","v":"2023-10-30"}]
[{"$f":"+MID(Tabla1[[#This Row],[Concepto]],1,3)","v":"REC"},"2023-09-15","B1500000108","GRUPO DE INVERSIONES READ DOMINGUEZ","REC-SERVICIO DE ALOJAMIENTO ORDEN 2023-00068 PENDIENTE DE RECIBIR",242908.67,"45 Dias",{"$f":"+Tabla1[[#This Row],[Fecha de Registro]]+45","v":"2023-10-30"}]
[{"$f":"+MID(Tabla1[[#This Row],[Concepto]],1,3)","v":"REC"},"2023-09-18","B1500000110","GRUPO DE INVERSIONES READ DOMINGUEZ","REC-SERVICIO DE ALOJAMIENTO ORDEN 2023-00068",12145.43,"45 Dias",{"$f":"+Tabla1[[#This Row],[Fecha de Registro]]+45","v":"2023-11-02"}]
[{"$f":"+MID(Tabla1[[#This Row],[Concepto]],1,3)","v":"REC"},"2023-10-09","B1500000111","GRUPO DE INVERSIONES READ DOMINGUEZ","REC-SERVICIO DE ALOJAMIENTO ORDEN 2023-00068",109308.9,"45 Dias",{"$f":"+Tabla1[[#This Row],[Fecha de Registro]]+45","v":"2023-11-23"}]
[{"$f":"+MID(Tabla1[[#This Row],[Concepto]],1,3)","v":"REC"},"2023-10-24","B1500000112","GRUPO DE INVERSIONES READ DOMINGUEZ","REC-SERVICIO DE ALOJAMIENTO ORDEN 2023-00068 PENDIENTE DE RECIBIR",109308.9,"45 Dias",{"$f":"+Tabla1[[#This Row],[Fecha de Registro]]+45","v":"2023-12-08"}]
[{"$f":"+MID(Tabla1[[#This Row],[Concepto]],1,3)","v":"REC"},"2023-10-30","B1500000113","GRUPO DE INVERSIONES READ DOMINGUEZ","REC-SERVICIO DE ALOJAMIENTO ORDEN 2023-00068 PENDIENTE DE RECIBIR",54654.45,"45 Dias",{"$f":"+Tabla1[[#This Row],[Fecha de Registro]]+45","v":"2023-12-14"}]
[{"$f":"+MID(Tabla1[[#This Row],[Concepto]],1,3)","v":"UM-"},"2024-02-16","1228-1-24","GRUPO DE INVERSIONES READ DOMINGUEZ","UM-PAGO FACT. NCF B1500000115, SERVICIO DE ALOJAMIENTO PARA VICERRECTOR INTERINO DEL RECINTO - O...",-105479.03999999999,"45 Dias",{"$f":"+Tabla1[[#This Row],[Fecha de Registro]]+45","v":"2024-04-01"}]
[{"$f":"+MID(Tabla1[[#This Row],[Concepto]],1,3)","v":"JVM"},"2024-02-02","B1500000030","GRUPO DESA, SRL","JVM-ADQUISICION DE SERVICIO DE MANTENIMIENTO IMPERMEABILIZACION DE LONA ASFALTICA",198240,"45 Dias",{"$f":"+Tabla1[[#This Row],[Fecha de Registro]]+45","v":"2024-03-18"}]
[{"$f":"+MID(Tabla1[[#This Row],[Concepto]],1,3)","v":"REC"},"2023-12-22","B1500000052","GRUPO X-P3 SRL","REC-SERVICIOS DE FOTOGRAFIA ",50000,"45 Dias",{"$f":"+Tabla1[[#This Row],[Fecha de Registro]]+45","v":"2024-02-05"}]
[{"$f":"+MID(Tabla1[[#This Row],[Concepto]],1,3)","v":"FEM"},"2023-03-02","B150000020","GTG Industrial, SRL","FEM- ADQUISICION DE ACCESORIOS INFORMATICOS",266975,"45 Dias",{"$f":"+Tabla1[[#This Row],[Fecha de Registro]]+45","v":"2023-04-16"}]
[{"$f":"+MID(Tabla1[[#This Row],[Concepto]],1,3)","v":"REC"},"2024-01-11","B1500003900","GTG Industrial, SRL","REC-ADQUISICION DE ARTICULOS DE LIMPIEZAS Y UTENSULIOS PARA EL COMEDOR",304661.84000000003,"45 Dias",{"$f":"+Tabla1[[#This Row],[Fecha de Registro]]+45","v":"2024-02-25"}]
[{"$f":"+MID(Tabla1[[#This Row],[Concepto]],1,3)","v":"REC"},"2024-01-16","B1500003912","GTG Industrial, SRL","REC-ADQUISICION DE ARTICULOS DE LIMPIEZAS Y UTENSULIOS PARA EL COMEDOR",35164,"45 Dias",{"$f":"+Tabla1[[#This Row],[Fecha de Registro]]+45","v":"2024-03-01"}]
[{"$f":"+MID(Tabla1[[#This Row],[Concepto]],1,3)","v":"FEM"},"2024-02-06","B1500003942","GTG Industrial, SRL","FEM-ADQUISICION DE ARTICULOS DE LIMPIEZAS (PENDIENTE)",121669.8,"45 Dias",{"$f":"+Tabla1[[#This Row],[Fecha de Registro]]+45","v":"2024-03-22"}]
[{"$f":"+MID(Tabla1[[#This Row],[Concepto]],1,3)","v":"LNN"},"2023-12-15","B1500000024","HEICES CONSULTING","LNN-CAPACITACION PERSONAL ADMINISTRATIVO",258570,"45 Dias",{"$f":"+Tabla1[[#This Row],[Fecha de Registro]]+45","v":"2024-01-29"}]
[{"$f":"+MID(Tabla1[[#This Row],[Concepto]],1,3)","v":"LNM"},"2023-01-20","B1500001259","Hermosillo Comercial, SRL","LNM- COMPRA DE ALIMENTOS.",316064.51,"45 Dias",{"$f":"+Tabla1[[#This Row],[Fecha de Registro]]+45","v":"2023-03-06"}]
[{"$f":"+MID(Tabla1[[#This Row],[Concepto]],1,3)","v":"FEM"},"2023-02-13","B1500001271","Hermosillo Comercial, SRL","FEM- COMPRA DE ALIMENTOS P/ LOS ESTUDIANTES",94681.75,"45 Dias",{"$f":"+Tabla1[[#This Row],[Fecha de Registro]]+45","v":"2023-03-30"}]
[{"$f":"+MID(Tabla1[[#This Row],[Concepto]],1,3)","v":"LNM"},"2023-02-16","B1500001277","Hermosillo Comercial, SRL","LNM- COMPRA DE ALIMENTOS P/ LOS ESTUDIANTES",495810.02,"45 Dias",{"$f":"+Tabla1[[#This Row],[Fecha de Registro]]+45","v":"2023-04-02"}]
[{"$f":"+MID(Tabla1[[#This Row],[Concepto]],1,3)","v":"EMH"},"2023-03-04","B1500001261","Hermosillo Comercial, SRL","EMH-ADQUISICION DE ALIMENTOS PARA USO DEL RECINTO. OR-2019-0009",13200,"45 Dias",{"$f":"+Tabla1[[#This Row],[Fecha de Registro]]+45","v":"2023-04-18"}]
[{"$f":"+MID(Tabla1[[#This Row],[Concepto]],1,3)","v":"JVM"},"2023-03-06","B1500001278","Hermosillo Comercial, SRL","JVM-COMPRA DE ALIMENTACION MASIVA",311177.2,"45 Dias",{"$f":"+Tabla1[[#This Row],[Fecha de Registro]]+45","v":"2023-04-20"}]
[{"$f":"+MID(Tabla1[[#This Row],[Concepto]],1,3)","v":"UM-"},"2023-03-07","B1500001273","Hermosillo Comercial, SRL","UM-COMPRA DE ALIMENTOS PARA EL RECINTO,  ALIMENTACION MASIVA LPN-2019-0009",152701.72,"45 Dias",{"$f":"+Tabla1[[#This Row],[Fecha de Registro]]+45","v":"2023-04-21"}]
[{"$f":"+MID(Tabla1[[#This Row],[Concepto]],1,3)","v":"FEM"},"2023-03-10","B1500001283","Hermosillo Comercial, SRL","FEM-ADQUISICION DE ALIMENTOS PARA USO DEL RECINTO",49858.8,"45 Dias",{"$f":"+Tabla1[[#This Row],[Fecha de Registro]]+45","v":"2023-04-24"}]
[{"$f":"+MID(Tabla1[[#This Row],[Concepto]],1,3)","v":"UM-"},"2023-03-14","B1500001284","Hermosillo Comercial, SRL","UM-COMPRA DE ALIMENTOS PARA EL RECINTO",110846.39,"45 Dias",{"$f":"+Tabla1[[#This Row],[Fecha de Registro]]+45","v":"2023-04-28"}]
[{"$f":"+MID(Tabla1[[#This Row],[Concepto]],1,3)","v":"LNM"},"2023-03-15","B1500001285","Hermosillo Comercial, SRL","LNM-COMPRA DE ALIMENTOS PARA USO DEL RECINTO. REF. NO. ISFODOSU-CCC-LPN-09-2019",196790.31,"45 Dias",{"$f":"+Tabla1[[#This Row],[Fecha de Registro]]+45","v":"2023-04-29"}]
[{"$f":"+MID(Tabla1[[#This Row],[Concepto]],1,3)","v":"EMH"},"2023-03-15","B1500001286","Hermosillo Comercial, SRL","EMH-ADQUISICION DE ALIMENTOS PARA USO DEL RECINTO",88049.65,"45 Dias",{"$f":"+Tabla1[[#This Row],[Fecha de Registro]]+45","v":"2023-04-29"}]
[{"$f":"+MID(Tabla1[[#This Row],[Concepto]],1,3)","v":"FEM"},"2023-03-15","B1500001287","Hermosillo Comercial, SRL","FEM-ADQUISICION DE INSUMOS ALIMENTICIOS PARA USO DEL RECINTO",100500,"45 Dias",{"$f":"+Tabla1[[#This Row],[Fecha de Registro]]+45","v":"2023-04-29"}]
[{"$f":"+MID(Tabla1[[#This Row],[Concepto]],1,3)","v":"LNM"},"2023-03-22","B1500001292","Hermosillo Comercial, SRL","LNM-COMPRA DE ALIMENTOS PARA USO DEL RECINTO. SEGUN REF. NO. ISFODOSU-CCC-LPN-09-2019",168958.72,"45 Dias",{"$f":"+Tabla1[[#This Row],[Fecha de Registro]]+45","v":"2023-05-06"}]
[{"$f":"+MID(Tabla1[[#This Row],[Concepto]],1,3)","v":"FEM"},"2023-03-23","B0400000070","Hermosillo Comercial, SRL","FEM-EXCESO DE TRES MUFFINS DE ACUERDO A CANTIDAD DE LA ORDEN NCFB1500001271",-82.98,"45 Dias",{"$f":"+Tabla1[[#This Row],[Fecha de Registro]]+45","v":"2023-05-07"}]
[{"$f":"+MID(Tabla1[[#This Row],[Concepto]],1,3)","v":"JVM"},"2023-03-30","B1500001293","Hermosillo Comercial, SRL","JVM-ADQUISICION DE ALIMENTOS PARA USO DEL RECINTO",75799.199999999997,"45 Dias",{"$f":"+Tabla1[[#This Row],[Fecha de Registro]]+45","v":"2023-05-14"}]
[{"$f":"+MID(Tabla1[[#This Row],[Concepto]],1,3)","v":"LNM"},"2023-04-11","B1500001294","Hermosillo Comercial, SRL","LNM-COMPRA DE ALIMENTOS ALIMENTACION MASIVA 09-2019",171205.82,"45 Dias",{"$f":"+Tabla1[[#This Row],[Fecha de Registro]]+45","v":"2023-05-26"}]
[{"$f":"+MID(Tabla1[[#This Row],[Concepto]],1,3)","v":"FEM"},"2023-04-11","B1500004823","Hermosillo Comercial, SRL","FEM-COMPRA DE ALIMENTOS ORDEN 2022-00644",15210,"45 Dias",{"$f":"+Tabla1[[#This Row],[Fecha de Registro]]+45","v":"2023-05-26"}]
[{"$f":"+MID(Tabla1[[#This Row],[Concepto]],1,3)","v":"EMH"},"2023-04-11","B1500001295","Hermosillo Comercial, SRL","EMH-COMPRA DE ALIMENTOS",79949.649999999994,"45 Dias",{"$f":"+Tabla1[[#This Row],[Fecha de Registro]]+45","v":"2023-05-26"}]
[{"$f":"+MID(Tabla1[[#This Row],[Concepto]],1,3)","v":"LNM"},"2023-05-02","B1500001302","Hermosillo Comercial, SRL","LNM-ADQUISICION DE ALIMENTOS Y BEBIDAS PARA USO DEL RECINTO.",53050,"45 Dias",{"$f":"+Tabla1[[#This Row],[Fecha de Registro]]+45","v":"2023-06-16"}]
[{"$f":"+MID(Tabla1[[#This Row],[Concepto]],1,3)","v":"LNM"},"2023-05-05","B1500001303","Hermosillo Comercial, SRL","LNM-ADQUISICION DE ALIMENTOS Y BEBIDAS PARA USO DEL RECINTO.",71327.25,"45 Dias",{"$f":"+Tabla1[[#This Row],[Fecha de Registro]]+45","v":"2023-06-19"}]
[{"$f":"+MID(Tabla1[[#This Row],[Concepto]],1,3)","v":"UM-"},"2023-05-09","B1500001305","Hermosillo Comercial, SRL","UM-ADQUISICION DE ALIMENTOS Y BEBIDAS PARA USO DEL RECINTO.",94505.02,"45 Dias",{"$f":"+Tabla1[[#This Row],[Fecha de Registro]]+45","v":"2023-06-23"}]
[{"$f":"+MID(Tabla1[[#This Row],[Concepto]],1,3)","v":"LNM"},"2023-05-10","B1500001310","Hermosillo Comercial, SRL","LNM-ADQUISICION DE ALIMENTOS Y BEBIDAS PARA USO DEL RECINTO.",65857.25,"45 Dias",{"$f":"+Tabla1[[#This Row],[Fecha de Registro]]+45","v":"2023-06-24"}]
[{"$f":"+MID(Tabla1[[#This Row],[Concepto]],1,3)","v":"FEM"},"2023-05-23","B1500001311","Hermosillo Comercial, SRL","FEM- COMPRA DE ALIMENTOS PARA EL RECINTO",95575,"45 Dias",{"$f":"+Tabla1[[#This Row],[Fecha de Registro]]+45","v":"2023-07-07"}]
[{"$f":"+MID(Tabla1[[#This Row],[Concepto]],1,3)","v":"LNM"},"2023-05-23","B1500001312","Hermosillo Comercial, SRL","LNM- COMPRA DE ALIMENTOS PARA EL RECINTO",128651.75,"45 Dias",{"$f":"+Tabla1[[#This Row],[Fecha de Registro]]+45","v":"2023-07-07"}]
[{"$f":"+MID(Tabla1[[#This Row],[Concepto]],1,3)","v":"LNN"},"2023-06-05","B1500001327","Hermosillo Comercial, SRL","LNNM-ADQUISICION DE ALIMENTOS PARA LOS ESTUDIANTES OR-2022-555",114137.23,"45 Dias",{"$f":"+Tabla1[[#This Row],[Fecha de Registro]]+45","v":"2023-07-20"}]
[{"$f":"+MID(Tabla1[[#This Row],[Concepto]],1,3)","v":"FEM"},"2023-06-07","B1500001315","Hermosillo Comercial, SRL","FEM- COMPRA DE ALIMENTOS PARA EL RECINTO",6900,"45 Dias",{"$f":"+Tabla1[[#This Row],[Fecha de Registro]]+45","v":"2023-07-22"}]
[{"$f":"+MID(Tabla1[[#This Row],[Concepto]],1,3)","v":"UM-"},"2023-06-12","B1500001319","Hermosillo Comercial, SRL","UM- COMPRA DE ALIMENTOS PARA EL RECINTO",13773.1,"45 Dias",{"$f":"+Tabla1[[#This Row],[Fecha de Registro]]+45","v":"2023-07-27"}]
[{"$f":"+MID(Tabla1[[#This Row],[Concepto]],1,3)","v":"JVM"},"2023-06-12","B1500001318","Hermosillo Comercial, SRL","JVM- COMPRA DE ALIMENTOS PARA EL RECINTO",87744.8,"45 Dias",{"$f":"+Tabla1[[#This Row],[Fecha de Registro]]+45","v":"2023-07-27"}]
[{"$f":"+MID(Tabla1[[#This Row],[Concepto]],1,3)","v":"FEM"},"2023-06-13","B1500001320","Hermosillo Comercial, SRL","FEM-ADQUISICION DE ALIMENTOS MASIVA, LNP-2019-0009",20700,"45 Dias",{"$f":"+Tabla1[[#This Row],[Fecha de Registro]]+45","v":"2023-07-28"}]
[{"$f":"+MID(Tabla1[[#This Row],[Concepto]],1,3)","v":"LNN"},"2023-06-13","B1500001316","Hermosillo Comercial, SRL","LNNM-ADQUISICION DE ALIMENTOS PARA LOS ESTUDIANTES",362516.57,"45 Dias",{"$f":"+Tabla1[[#This Row],[Fecha de Registro]]+45","v":"2023-07-28"}]
[{"$f":"+MID(Tabla1[[#This Row],[Concepto]],1,3)","v":"FEM"},"2023-06-23","B1500001322","Hermosillo Comercial, SRL","FEM-ADQUISICION DE ALIMENTOS MASIVA, ORDEN -2019-0009",1920,"45 Dias",{"$f":"+Tabla1[[#This Row],[Fecha de Registro]]+45","v":"2023-08-07"}]
[{"$f":"+MID(Tabla1[[#This Row],[Concepto]],1,3)","v":"LNN"},"2023-06-23","B1500001323","Hermosillo Comercial, SRL","LNNM-ADQUISICION DE ALIMENTOS PARA LOS ESTUDIANTES 2019-0850",66506.61,"45 Dias",{"$f":"+Tabla1[[#This Row],[Fecha de Registro]]+45","v":"2023-08-07"}]
[{"$f":"+MID(Tabla1[[#This Row],[Concepto]],1,3)","v":"LNN"},"2023-07-04","B1500001332","Hermosillo Comercial, SRL","LNNM-ADQUISICION DE ALIMENTOS PARA LOS ESTUDIANTES",30380,"45 Dias",{"$f":"+Tabla1[[#This Row],[Fecha de Registro]]+45","v":"2023-08-18"}]
[{"$f":"+MID(Tabla1[[#This Row],[Concepto]],1,3)","v":"LNM"},"2023-07-07","B0400000073","Hermosillo Comercial, SRL","LNM- NCF: AFECTA NCF: B1500001327",-114365.84,"45 Dias",{"$f":"+Tabla1[[#This Row],[Fecha de Registro]]+45","v":"2023-08-21"}]
[{"$f":"+MID(Tabla1[[#This Row],[Concepto]],1,3)","v":"LNN"},"2023-07-07","B1500001335","Hermosillo Comercial, SRL","LNNM-ADQUISICION DE ALIMENTOS PARA LOS ESTUDIANTES",60892.6,"45 Dias",{"$f":"+Tabla1[[#This Row],[Fecha de Registro]]+45","v":"2023-08-21"}]
[{"$f":"+MID(Tabla1[[#This Row],[Concepto]],1,3)","v":"LNN"},"2023-07-11","B1500001338","Hermosillo Comercial, SRL","LNNM-ADQUISICION DE ALIMENTOS PARA LOS ESTUDIANTES (PENDIENTE DE RECIBIR)",104806.25,"45 Dias",{"$f":"+Tabla1[[#This Row],[Fecha de Registro]]+45","v":"2023-08-25"}]
[{"$f":"+MID(Tabla1[[#This Row],[Concepto]],1,3)","v":"FEM"},"2023-07-11","B1500001339","Hermosillo Comercial, SRL","FEM-ADQUISICION DE ALIMENTOS PARA LOS ESTUDIANTES (PENDIENTE DE RECIBIR)",9750,"45 Dias",{"$f":"+Tabla1[[#This Row],[Fecha de Registro]]+45","v":"2023-08-25"}]
[{"$f":"+MID(Tabla1[[#This Row],[Concepto]],1,3)","v":"JVM"},"2023-07-12","B1500001342","Hermosillo Comercial, SRL","JVM-ADQUISICION DE ALIMENTOS PARA LOS ESTUDIANTES",85849.72,"45 Dias",{"$f":"+Tabla1[[#This Row],[Fecha de Registro]]+45","v":"2023-08-26"}]
[{"$f":"+MID(Tabla1[[#This Row],[Concepto]],1,3)","v":"LNN"},"2023-07-13","B1500001331","Hermosillo Comercial, SRL","LNNM-ADQUISICION DE ALIMENTOS PARA LOS ESTUDIANTES",2880,"45 Dias",{"$f":"+Tabla1[[#This Row],[Fecha de Registro]]+45","v":"2023-08-27"}]
[{"$f":"+MID(Tabla1[[#This Row],[Concepto]],1,3)","v":"UM-"},"2023-07-20","B1500001343","Hermosillo Comercial, SRL","UM-ADQUISICION DE ALIMENTOS MASIVA, LNP-2019-0009",8999.99,"45 Dias",{"$f":"+Tabla1[[#This Row],[Fecha de Registro]]+45","v":"2023-09-03"}]
[{"$f":"+MID(Tabla1[[#This Row],[Concepto]],1,3)","v":"LNN"},"2023-07-24","B1500001346","Hermosillo Comercial, SRL","LNNM-ADQUISICION DE ALIMENTOS PARA LOS ESTUDIANTES (PENDIENTE DE RECIBIR)",120480.72,"45 Dias",{"$f":"+Tabla1[[#This Row],[Fecha de Registro]]+45","v":"2023-09-07"}]
[{"$f":"+MID(Tabla1[[#This Row],[Concepto]],1,3)","v":"LNM"},"2023-08-07","B1500001350","Hermosillo Comercial, SRL","LNM-ADQUISICION DE ALIMENTOS PARA LOS ESTUDIANTES",20130,"45 Dias",{"$f":"+Tabla1[[#This Row],[Fecha de Registro]]+45","v":"2023-09-21"}]
[{"$f":"+MID(Tabla1[[#This Row],[Concepto]],1,3)","v":"LNM"},"2023-08-09","B1500001352","Hermosillo Comercial, SRL","LNM-ADQUISICION DE ALIMENTOS PARA LOS ESTUDIANTES",2100,"45 Dias",{"$f":"+Tabla1[[#This Row],[Fecha de Registro]]+45","v":"2023-09-23"}]
[{"$f":"+MID(Tabla1[[#This Row],[Concepto]],1,3)","v":"FEM"},"2023-08-09","B1500001351","Hermosillo Comercial, SRL","FEM-ADQUISICION DE ALIMENTOS PARA LOS ESTUDIANTES",27576,"45 Dias",{"$f":"+Tabla1[[#This Row],[Fecha de Registro]]+45","v":"2023-09-23"}]
[{"$f":"+MID(Tabla1[[#This Row],[Concepto]],1,3)","v":"LNM"},"2023-09-04","B1500001362","Hermosillo Comercial, SRL","LNM-ADQUISICION DE ALIMENTOS PARA LOS ESTUDIANTES",45860,"45 Dias",{"$f":"+Tabla1[[#This Row],[Fecha de Registro]]+45","v":"2023-10-19"}]
[{"$f":"+MID(Tabla1[[#This Row],[Concepto]],1,3)","v":"FEM"},"2023-09-04","B1500001360","Hermosillo Comercial, SRL","FEM-ADQUISICION DE ALIMENTOS PARA LOS ESTUDIANTES",1908,"45 Dias",{"$f":"+Tabla1[[#This Row],[Fecha de Registro]]+45","v":"2023-10-19"}]
[{"$f":"+MID(Tabla1[[#This Row],[Concepto]],1,3)","v":"FEM"},"2023-09-19","B1500001363","Hermosillo Comercial, SRL","FEM-ADQUISICION DE ALIMENTOS PARA LOS ESTUDIANTES",18595.5,"45 Dias",{"$f":"+Tabla1[[#This Row],[Fecha de Registro]]+45","v":"2023-11-03"}]
[{"$f":"+MID(Tabla1[[#This Row],[Concepto]],1,3)","v":"FEM"},"2023-09-19","B1500001365","Hermosillo Comercial, SRL","FEM-ADQUISICION DE ALIMENTOS PARA LOS ESTUDIANTES",103556.04,"45 Dias",{"$f":"+Tabla1[[#This Row],[Fecha de Registro]]+45","v":"2023-11-03"}]
[{"$f":"+MID(Tabla1[[#This Row],[Concepto]],1,3)","v":"LNM"},"2023-09-19","B1500001367","Hermosillo Comercial, SRL","LNM-ADQUISICION DE ALIMENTOS PARA LOS ESTUDIANTES",26820.03,"45 Dias",{"$f":"+Tabla1[[#This Row],[Fecha de Registro]]+45","v":"2023-11-03"}]
[{"$f":"+MID(Tabla1[[#This Row],[Concepto]],1,3)","v":"JVM"},"2023-10-06","B1500001373","Hermosillo Comercial, SRL","JVM-ADQUISICION DE ALIMENTOS PARA LOS ESTUDIANTES",110220.85,"45 Dias",{"$f":"+Tabla1[[#This Row],[Fecha de Registro]]+45","v":"2023-11-20"}]
[{"$f":"+MID(Tabla1[[#This Row],[Concepto]],1,3)","v":"LNM"},"2023-10-06","B1500001372","Hermosillo Comercial, SRL","LNM-ADQUISICION DE ALIMENTOS PARA LOS ESTUDIANTES LPN-09-2019",7219,"45 Dias",{"$f":"+Tabla1[[#This Row],[Fecha de Registro]]+45","v":"2023-11-20"}]
[{"$f":"+MID(Tabla1[[#This Row],[Concepto]],1,3)","v":"FEM"},"2023-10-06","B1500001370","Hermosillo Comercial, SRL","FEM-ADQUISICION DE ALIMENTOS PARA LOS ESTUDIANTES",50811.96,"45 Dias",{"$f":"+Tabla1[[#This Row],[Fecha de Registro]]+45","v":"2023-11-20"}]
[{"$f":"+MID(Tabla1[[#This Row],[Concepto]],1,3)","v":"FEM"},"2023-10-06","B1500001371","Hermosillo Comercial, SRL","FEM-ADQUISICION DE ALIMENTOS PARA LOS ESTUDIANTES (PENDIENTE)",9700.1,"45 Dias",{"$f":"+Tabla1[[#This Row],[Fecha de Registro]]+45","v":"2023-11-20"}]
[{"$f":"+MID(Tabla1[[#This Row],[Concepto]],1,3)","v":"LNM"},"2023-10-16","B0400000078","Hermosillo Comercial, SRL","LNM-N/C AFECTA FACT. B1500001352",-2100,"45 Dias",{"$f":"+Tabla1[[#This Row],[Fecha de Registro]]+45","v":"2023-11-30"}]
[{"$f":"+MID(Tabla1[[#This Row],[Concepto]],1,3)","v":"FEM"},"2023-10-16","B1500001380","Hermosillo Comercial, SRL","FEM-ADQUISICION DE ALIMENTOS PARA LOS ESTUDIANTES (PENDIENTE)",13301,"45 Dias",{"$f":"+Tabla1[[#This Row],[Fecha de Registro]]+45","v":"2023-11-30"}]
[{"$f":"+MID(Tabla1[[#This Row],[Concepto]],1,3)","v":"FEM"},"2023-10-19","B0400000079","Hermosillo Comercial, SRL","FEM-N/C AFECTA FACT. B1500001363",-5750,"45 Dias",{"$f":"+Tabla1[[#This Row],[Fecha de Registro]]+45","v":"2023-12-03"}]
[{"$f":"+MID(Tabla1[[#This Row],[Concepto]],1,3)","v":"JVM"},"2023-10-25","B1500000554","Hermosillo Comercial, SRL","JVM-ADQUISICION DE ALIMENTOS PARA LOS ESTUDIANTES",71592.960000000006,"45 Dias",{"$f":"+Tabla1[[#This Row],[Fecha de Registro]]+45","v":"2023-12-09"}]
[{"$f":"+MID(Tabla1[[#This Row],[Concepto]],1,3)","v":"FEM"},"2023-11-21","B1500001386","Hermosillo Comercial, SRL","FEM-COMPRA DE ALIMENTOS (PENDIENTE)",50400,"45 Dias",{"$f":"+Tabla1[[#This Row],[Fecha de Registro]]+45","v":"2024-01-05"}]
[{"$f":"+MID(Tabla1[[#This Row],[Concepto]],1,3)","v":"FEM"},"2023-11-21","B1500001387","Hermosillo Comercial, SRL","FEM-COMPRA DE ALIMENTOS (PENDIENTE)",105355.04,"45 Dias",{"$f":"+Tabla1[[#This Row],[Fecha de Registro]]+45","v":"2024-01-05"}]
[{"$f":"+MID(Tabla1[[#This Row],[Concepto]],1,3)","v":"FEM"},"2023-11-21","B1500001388","Hermosillo Comercial, SRL","FEM-COMPRA DE ALIMENTOS (PENDIENTE)",80748,"45 Dias",{"$f":"+Tabla1[[#This Row],[Fecha de Registro]]+45","v":"2024-01-05"}]
[{"$f":"+MID(Tabla1[[#This Row],[Concepto]],1,3)","v":"FEM"},"2023-12-11","B1500001403","Hermosillo Comercial, SRL","FEM-COMPRA DE ALIMENTOS ORD.2023-00431.",3180,"45 Dias",{"$f":"+Tabla1[[#This Row],[Fecha de Registro]]+45","v":"2024-01-25"}]
[{"$f":"+MID(Tabla1[[#This Row],[Concepto]],1,3)","v":"FEM"},"2023-12-11","B1500001402","Hermosillo Comercial, SRL","FEM-COMPRA DE ALIMENTOS",8640,"45 Dias",{"$f":"+Tabla1[[#This Row],[Fecha de Registro]]+45","v":"2024-01-25"}]
[{"$f":"+MID(Tabla1[[#This Row],[Concepto]],1,3)","v":"LNM"},"2023-12-12","B1500001389","Hermosillo Comercial, SRL","LNM-ALIMENTOS PARA LOS ESTUDIANTES",34232.43,"45 Dias",{"$f":"+Tabla1[[#This Row],[Fecha de Registro]]+45","v":"2024-01-26"}]
[{"$f":"+MID(Tabla1[[#This Row],[Concepto]],1,3)","v":"LNM"},"2023-12-12","B1500001390","Hermosillo Comercial, SRL","LNM-ALIMENTOS PARA LOS ESTUDIANTES",28024.68,"45 Dias",{"$f":"+Tabla1[[#This Row],[Fecha de Registro]]+45","v":"2024-01-26"}]
[{"$f":"+MID(Tabla1[[#This Row],[Concepto]],1,3)","v":"LNM"},"2023-12-12","B1500001391","Hermosillo Comercial, SRL","LNM-ALIMENTOS PARA LOS ESTUDIANTES",156814.9,"45 Dias",{"$f":"+Tabla1[[#This Row],[Fecha de Registro]]+45","v":"2024-01-26"}]
[{"$f":"+MID(Tabla1[[#This Row],[Concepto]],1,3)","v":"FEM"},"2023-12-14","B1500001409","Hermosillo Comercial, SRL","FEM-COMPRA DE ALIMENTOS MASIVA",106500,"45 Dias",{"$f":"+Tabla1[[#This Row],[Fecha de Registro]]+45","v":"2024-01-28"}]
[{"$f":"+MID(Tabla1[[#This Row],[Concepto]],1,3)","v":"LNM"},"2023-12-14","B1500001401","Hermosillo Comercial, SRL","LNM-ALIMENTOS PARA LOS EST.",25351,"45 Dias",{"$f":"+Tabla1[[#This Row],[Fecha de Registro]]+45","v":"2024-01-28"}]
[{"$f":"+MID(Tabla1[[#This Row],[Concepto]],1,3)","v":"FEM"},"2024-01-08","B1500001412","Hermosillo Comercial, SRL","FEM-ADQUISICION DE  ALIMENTOS ESTUDIANTES",405458,"45 Dias",{"$f":"+Tabla1[[#This Row],[Fecha de Registro]]+45","v":"2024-02-22"}]
[{"$f":"+MID(Tabla1[[#This Row],[Concepto]],1,3)","v":"FEM"},"2024-01-08","B1500001411","Hermosillo Comercial, SRL","FEM-ADQUISICION DE  ALIMENTOS ESTUDIANTES",17280,"45 Dias",{"$f":"+Tabla1[[#This Row],[Fecha de Registro]]+45","v":"2024-02-22"}]
[{"$f":"+MID(Tabla1[[#This Row],[Concepto]],1,3)","v":"LNM"},"2024-01-22","B1500001422","Hermosillo Comercial, SRL","LNM-ADQUISICION DE HARINA BLANCA DE TRIGO PARA LOS ALIMENTOS ESTUDIANTES",510,"45 Dias",{"$f":"+Tabla1[[#This Row],[Fecha de Registro]]+45","v":"2024-03-07"}]
[{"$f":"+MID(Tabla1[[#This Row],[Concepto]],1,3)","v":"FEM"},"2024-01-22","B1500001419","Hermosillo Comercial, SRL","FEM-ADQUISICION DE ALIMENTOS ESTUDIANTES (PENDIENTE)",75692,"45 Dias",{"$f":"+Tabla1[[#This Row],[Fecha de Registro]]+45","v":"2024-03-07"}]
[{"$f":"+MID(Tabla1[[#This Row],[Concepto]],1,3)","v":"FEM"},"2024-01-22","B1500001420","Hermosillo Comercial, SRL","FEM-ADQUISICION ALIMENTOS ESTUDIANTES (PENDIENTE)",17280,"45 Dias",{"$f":"+Tabla1[[#This Row],[Fecha de Registro]]+45","v":"2024-03-07"}]
[{"$f":"+MID(Tabla1[[#This Row],[Concepto]],1,3)","v":"FEM"},"2024-01-22","B1500001421","Hermosillo Comercial, SRL","FEM-ADQUISICION DE  ALIMENTOS ESTUDIANTES (PENDIENTE)",9840,"45 Dias",{"$f":"+Tabla1[[#This Row],[Fecha de Registro]]+45","v":"2024-03-07"}]
[{"$f":"+MID(Tabla1[[#This Row],[Concepto]],1,3)","v":"LNM"},"2024-01-23","B1500001424","Hermosillo Comercial, SRL","LNM-ADQUISICION DE HARINA BLANCA DE TRIGO PARA LOS ALIMENTOS ESTUDIANTES",13873.92,"45 Dias",{"$f":"+Tabla1[[#This Row],[Fecha de Registro]]+45","v":"2024-03-08"}]
[{"$f":"+MID(Tabla1[[#This Row],[Concepto]],1,3)","v":"FEM"},"2024-02-01","B1500001423","Hermosillo Comercial, SRL","FEM-COMPRA DE PROVISIONES (CONDIMENTOS) PARA USO DE LA ALIMENTACION DE LOS ESTUDIANTES (PENDIENTE)",97500,"45 Dias",{"$f":"+Tabla1[[#This Row],[Fecha de Registro]]+45","v":"2024-03-17"}]
[{"$f":"+MID(Tabla1[[#This Row],[Concepto]],1,3)","v":"LNM"},"2024-02-16","B150001428","Hermosillo Comercial, SRL","LNM-COMPRA DE PROVISIONES (CONDIMENTOS) PARA USO DE LA ALIMENTACION DE LOS ESTUDIANTES",13873.92,"45 Dias",{"$f":"+Tabla1[[#This Row],[Fecha de Registro]]+45","v":"2024-04-01"}]
[{"$f":"+MID(Tabla1[[#This Row],[Concepto]],1,3)","v":"LNM"},"2024-02-16","B1500001428","Hermosillo Comercial, SRL","LNM-COMPRA DE PROVISIONES (CONDIMENTOS) PARA USO DE LA ALIMENTACION DE LOS ESTUDIANTES (PENDIENTE)",9655.94,"45 Dias",{"$f":"+Tabla1[[#This Row],[Fecha de Registro]]+45","v":"2024-04-01"}]
[{"$f":"+MID(Tabla1[[#This Row],[Concepto]],1,3)","v":"FEM"},"2024-02-16","B1500001427","Hermosillo Comercial, SRL","FEM-COMPRA DE PROVISIONES (CONDIMENTOS) PARA USO DE LA ALIMENTACION DE LOS ESTUDIANTES (PENDIENTE)",3060,"45 Dias",{"$f":"+Tabla1[[#This Row],[Fecha de Registro]]+45","v":"2024-04-01"}]
[{"$f":"+MID(Tabla1[[#This Row],[Concepto]],1,3)","v":"FEM"},"2024-02-16","B1500001429","Hermosillo Comercial, SRL","FEM-COMPRA DE PROVISIONES (CONDIMENTOS) PARA USO DE LA ALIMENTACION DE LOS ESTUDIANTES (PENDIENTE)",403370,"45 Dias",{"$f":"+Tabla1[[#This Row],[Fecha de Registro]]+45","v":"2024-04-01"}]
[{"$f":"+MID(Tabla1[[#This Row],[Concepto]],1,3)","v":"FEM"},"2024-02-16","B1500001426","Hermosillo Comercial, SRL","FEM-COMPRA DE PROVISIONES (CONDIMENTOS) PARA USO DE LA ALIMENTACION DE LOS ESTUDIANTES (PENDIENTE)",6019.2,"45 Dias",{"$f":"+Tabla1[[#This Row],[Fecha de Registro]]+45","v":"2024-04-01"}]
[{"$f":"+MID(Tabla1[[#This Row],[Concepto]],1,3)","v":"LNM"},"2024-02-21","B1500001430","Hermosillo Comercial, SRL","LNM-COMPRA DE PROVISIONES (CONDIMENTOS) PARA USO DE LA ALIMENTACION DE LOS ESTUDIANTES (PENDIENTE)",15860.61,"45 Dias",{"$f":"+Tabla1[[#This Row],[Fecha de Registro]]+45","v":"2024-04-06"}]
[{"$f":"+MID(Tabla1[[#This Row],[Concepto]],1,3)","v":"REC"},"2024-02-28","B1500000125","HIMAL COMPAÑIA","REC-ADQUISICION DE LIBROS DE INGLES (PENDIENTE)",134640,"45 Dias",{"$f":"+Tabla1[[#This Row],[Fecha de Registro]]+45","v":"2024-04-13"}]
[{"$f":"+MID(Tabla1[[#This Row],[Concepto]],1,3)","v":"REC"},"2021-11-20","B1500000540","HOTEL COSTA LARIMAR, SRL","REC-SERVICIO DE ALOJAMIENTO PARA PARTICIPANTES DE LA PRIMERA FERIA DE BUENAS PRACTICAS",21600,"45 Dias",{"$f":"+Tabla1[[#This Row],[Fecha de Registro]]+45","v":"2022-01-04"}]
[{"$f":"+MID(Tabla1[[#This Row],[Concepto]],1,3)","v":"LNM"},"2017-12-05","A010040011500003287","Importadora de Prod. p/ Oficinas","LNM-Materiales de oficina",196.8,"45 Dias",{"$f":"+Tabla1[[#This Row],[Fecha de Registro]]+45","v":"2018-01-19"}]
[{"$f":"+MID(Tabla1[[#This Row],[Concepto]],1,3)","v":"UM-"},"2016-12-31","A030030010100051507","Imprenta  Hnos Paniagua cxa","UM-FACT VARIAS DE Imprenta Paniagua /UM/Periodo 2014",14443.2,"45 Dias",{"$f":"+Tabla1[[#This Row],[Fecha de Registro]]+45","v":"2017-02-14"}]
[{"$f":"+MID(Tabla1[[#This Row],[Concepto]],1,3)","v":"FEM"},"2019-09-16","B1500000292","Impresora Kelvis, SRL","FEM-LAMINADO DE AULAS DEL RECINTO",62776,"45 Dias",{"$f":"+Tabla1[[#This Row],[Fecha de Registro]]+45","v":"2019-10-31"}]
[{"$f":"+MID(Tabla1[[#This Row],[Concepto]],1,3)","v":"FEM"},"2019-10-07","B1500000300","Impresora Kelvis, SRL","FEM-SERVICIOS DE LAMINADO DE PUERTAS, VENTANAS Y SEÑALIZACION DE PARQUEOS",7788,"45 Dias",{"$f":"+Tabla1[[#This Row],[Fecha de Registro]]+45","v":"2019-11-21"}]
[{"$f":"+MID(Tabla1[[#This Row],[Concepto]],1,3)","v":"UM-"},"2016-12-31","A010010011500000160/172 ","Impresos  Camilo, S.A","UM-FACT A010010011500000160/172 DE impresos Camilo/UM/periodo 2011y 2012",14630.5,"45 Dias",{"$f":"+Tabla1[[#This Row],[Fecha de Registro]]+45","v":"2017-02-14"}]
[{"$f":"+MID(Tabla1[[#This Row],[Concepto]],1,3)","v":"REC"},"2024-02-08","B1500000199","Industriales Techa, SRL","REC-CONTRATACION SERVICIOS DE FUMIGACION DE LOS ESPACIOS INTERIORES Y EXTERIORES DE RECTORIA Y E...",17700,"45 Dias",{"$f":"+Tabla1[[#This Row],[Fecha de Registro]]+45","v":"2024-03-24"}]
[{"$f":"+MID(Tabla1[[#This Row],[Concepto]],1,3)","v":"REC"},"2023-12-18","B1500000564","Inst. Nacional de Adm. Publica (INAP)","REC- CURSO VIRTUAL DE DESARROLLO ORGANIZACIONAL",7236,"45 Dias",{"$f":"+Tabla1[[#This Row],[Fecha de Registro]]+45","v":"2024-02-01"}]
[{"$f":"+MID(Tabla1[[#This Row],[Concepto]],1,3)","v":"REC"},"2024-01-18","B1500000601","Inst. Nacional de Adm. Publica (INAP)","REC- CURSO VIRTUAL DIPLOMADO DERECHO ADMINISTRATIVO",27428.400000000001,"45 Dias",{"$f":"+Tabla1[[#This Row],[Fecha de Registro]]+45","v":"2024-03-03"}]
[{"$f":"+MID(Tabla1[[#This Row],[Concepto]],1,3)","v":"EPH"},"2023-12-12","B1500000042","instituto hijas de la Maria auxiliadora ,","EPH-CONTRATACION SERVICIOS DE CAPACITACION. OR-2023-00558",529100,"45 Dias",{"$f":"+Tabla1[[#This Row],[Fecha de Registro]]+45","v":"2024-01-26"}]
[{"$f":"+MID(Tabla1[[#This Row],[Concepto]],1,3)","v":"REC"},"2017-12-21","A010010011500000698","INSTITUTO POSTAL DOMINICANO","REC-SERV. DE DISTRIBUCION REVISTAS",51224,"45 Dias",{"$f":"+Tabla1[[#This Row],[Fecha de Registro]]+45","v":"2018-02-04"}]
[{"$f":"+MID(Tabla1[[#This Row],[Concepto]],1,3)","v":"REC"},"2017-12-21","A010010011500000697","INSTITUTO POSTAL DOMINICANO","REC-SERV. DE DISTRIBUCION REVISTAS",27950,"45 Dias",{"$f":"+Tabla1[[#This Row],[Fecha de Registro]]+45","v":"2018-02-04"}]
[{"$f":"+MID(Tabla1[[#This Row],[Concepto]],1,3)","v":"REC"},"2017-12-21","A010010011500000700","INSTITUTO POSTAL DOMINICANO","REC-SERV. DE DISTRIBUCION REVISTAS",24570,"45 Dias",{"$f":"+Tabla1[[#This Row],[Fecha de Registro]]+45","v":"2018-02-04"}]
[{"$f":"+MID(Tabla1[[#This Row],[Concepto]],1,3)","v":"REC"},"2017-12-21","A010010011500000701","INSTITUTO POSTAL DOMINICANO","REC-SERV. DE DISTRIBUCION REVISTAS",16250,"45 Dias",{"$f":"+Tabla1[[#This Row],[Fecha de Registro]]+45","v":"2018-02-04"}]
[{"$f":"+MID(Tabla1[[#This Row],[Concepto]],1,3)","v":"REC"},"2017-12-21","A010010011500000699","INSTITUTO POSTAL DOMINICANO","REC-SERV. DE DISTRIBUCION REVISTAS",42250,"45 Dias",{"$f":"+Tabla1[[#This Row],[Fecha de Registro]]+45","v":"2018-02-04"}]
[{"$f":"+MID(Tabla1[[#This Row],[Concepto]],1,3)","v":"EMH"},"2023-06-09","B1500001215","Inversiones DLP,SRL","EMH-COMPRA DE FRUTAS Y VEGETALES PARA ESTUDIANTES DEL RECINTO.",13859.1,"45 Dias",{"$f":"+Tabla1[[#This Row],[Fecha de Registro]]+45","v":"2023-07-24"}]
[{"$f":"+MID(Tabla1[[#This Row],[Concepto]],1,3)","v":"EMH"},"2023-07-06","B1500001258","Inversiones DLP,SRL","EMH-COMPRA DE ALIMENTOS Y BEBIDAS",1687.5,"45 Dias",{"$f":"+Tabla1[[#This Row],[Fecha de Registro]]+45","v":"2023-08-20"}]
[{"$f":"+MID(Tabla1[[#This Row],[Concepto]],1,3)","v":"EMH"},"2023-07-06","B1500001257","Inversiones DLP,SRL","EMH-COMPRA DE ALIMENTACIÓN MASIVA LPN 2019-0009",48903.26,"45 Dias",{"$f":"+Tabla1[[#This Row],[Fecha de Registro]]+45","v":"2023-08-20"}]
[{"$f":"+MID(Tabla1[[#This Row],[Concepto]],1,3)","v":"FEM"},"2023-07-06","B1500001262","Inversiones DLP,SRL","FEM-COMPRA DE ALIMENTOS Y BEBIDAS (PENDIENTE DE RECIBIR)",8050,"45 Dias",{"$f":"+Tabla1[[#This Row],[Fecha de Registro]]+45","v":"2023-08-20"}]
[{"$f":"+MID(Tabla1[[#This Row],[Concepto]],1,3)","v":"LNM"},"2023-07-25","B1500001271","Inversiones DLP,SRL","LNM-COMPRA DE ALIMENTOS",103424.93,"45 Dias",{"$f":"+Tabla1[[#This Row],[Fecha de Registro]]+45","v":"2023-09-08"}]
[{"$f":"+MID(Tabla1[[#This Row],[Concepto]],1,3)","v":"EMH"},"2023-08-11","B1500001298","Inversiones DLP,SRL","EMH-COMPRA DE ALIMENTOS",129986.39,"45 Dias",{"$f":"+Tabla1[[#This Row],[Fecha de Registro]]+45","v":"2023-09-25"}]
[{"$f":"+MID(Tabla1[[#This Row],[Concepto]],1,3)","v":"FEM"},"2023-08-11","B1500001288","Inversiones DLP,SRL","FEM-COMPRA DE ALIMENTOS",309150,"45 Dias",{"$f":"+Tabla1[[#This Row],[Fecha de Registro]]+45","v":"2023-09-25"}]
[{"$f":"+MID(Tabla1[[#This Row],[Concepto]],1,3)","v":"JVM"},"2023-09-13","B1500001323","Inversiones DLP,SRL","JVM-COMPRA DE ALIMENTOS",99551.25,"45 Dias",{"$f":"+Tabla1[[#This Row],[Fecha de Registro]]+45","v":"2023-10-28"}]
[{"$f":"+MID(Tabla1[[#This Row],[Concepto]],1,3)","v":"UM-"},"2023-09-21","B1500001335","Inversiones DLP,SRL","UM-COMPRA DE ALIMENTOS lpn 2019-0009",234166,"45 Dias",{"$f":"+Tabla1[[#This Row],[Fecha de Registro]]+45","v":"2023-11-05"}]
[{"$f":"+MID(Tabla1[[#This Row],[Concepto]],1,3)","v":"UM-"},"2023-09-21","B1500001345","Inversiones DLP,SRL","UM-COMPRA DE ALIMENTOS (PENDIENTE)",234166,"45 Dias",{"$f":"+Tabla1[[#This Row],[Fecha de Registro]]+45","v":"2023-11-05"}]
[{"$f":"+MID(Tabla1[[#This Row],[Concepto]],1,3)","v":"UM-"},"2023-10-03","B1500001350","Inversiones DLP,SRL","UM-COMPRA DE ALIMENTOS LPN-2019-0009",10440,"45 Dias",{"$f":"+Tabla1[[#This Row],[Fecha de Registro]]+45","v":"2023-11-17"}]
[{"$f":"+MID(Tabla1[[#This Row],[Concepto]],1,3)","v":"FEM"},"2023-10-23","B1500001382","Inversiones DLP,SRL","FEM-COMPRA DE ALIMENTOS (PENDIENTE)",19528.439999999999,"45 Dias",{"$f":"+Tabla1[[#This Row],[Fecha de Registro]]+45","v":"2023-12-07"}]
[{"$f":"+MID(Tabla1[[#This Row],[Concepto]],1,3)","v":"FEM"},"2023-10-23","B1500001385","Inversiones DLP,SRL","FEM-COMPRA DE ALIMENTOS",4531.25,"45 Dias",{"$f":"+Tabla1[[#This Row],[Fecha de Registro]]+45","v":"2023-12-07"}]
[{"$f":"+MID(Tabla1[[#This Row],[Concepto]],1,3)","v":"FEM"},"2023-10-23","B1500001388","Inversiones DLP,SRL","FEM-COMPRA DE ALIMENTOS (PENDIENTE)",14392.86,"45 Dias",{"$f":"+Tabla1[[#This Row],[Fecha de Registro]]+45","v":"2023-12-07"}]
[{"$f":"+MID(Tabla1[[#This Row],[Concepto]],1,3)","v":"FEM"},"2023-10-23","B1500001389","Inversiones DLP,SRL","FEM-COMPRA DE ALIMENTOS (PENDIENTE)",9671.7999999999993,"45 Dias",{"$f":"+Tabla1[[#This Row],[Fecha de Registro]]+45","v":"2023-12-07"}]
[{"$f":"+MID(Tabla1[[#This Row],[Concepto]],1,3)","v":"EMH"},"2023-10-23","B1500001379","Inversiones DLP,SRL","EMH-COMPRA DE ALIMENTOS",202264.99,"45 Dias",{"$f":"+Tabla1[[#This Row],[Fecha de Registro]]+45","v":"2023-12-07"}]
[{"$f":"+MID(Tabla1[[#This Row],[Concepto]],1,3)","v":"JVM"},"2023-10-30","B1500001891","Inversiones DLP,SRL","JVM-COMPRA DE ALIMENTOS 00116/2023",56905,"45 Dias",{"$f":"+Tabla1[[#This Row],[Fecha de Registro]]+45","v":"2023-12-14"}]
[{"$f":"+MID(Tabla1[[#This Row],[Concepto]],1,3)","v":"UM-"},"2023-11-15","B1500001404","Inversiones DLP,SRL","UM-COMPRA DE ALIMENTOS",27300,"45 Dias",{"$f":"+Tabla1[[#This Row],[Fecha de Registro]]+45","v":"2023-12-30"}]
[{"$f":"+MID(Tabla1[[#This Row],[Concepto]],1,3)","v":"UM-"},"2023-11-15","B1500001396","Inversiones DLP,SRL","UM-COMPRA DE ALIMENTOS MASIVA",216982,"45 Dias",{"$f":"+Tabla1[[#This Row],[Fecha de Registro]]+45","v":"2023-12-30"}]
[{"$f":"+MID(Tabla1[[#This Row],[Concepto]],1,3)","v":"UM-"},"2023-12-01","B1500001433","Inversiones DLP,SRL","UM-ADQUISICION DE ARTICULOS COMESTIBLES",126762,"45 Dias",{"$f":"+Tabla1[[#This Row],[Fecha de Registro]]+45","v":"2024-01-15"}]
[{"$f":"+MID(Tabla1[[#This Row],[Concepto]],1,3)","v":"LNM"},"2023-12-01","B1500001411","Inversiones DLP,SRL","LNM-COMPRA DE ALIMENTOS LPN-2019-0009",272946.07,"45 Dias",{"$f":"+Tabla1[[#This Row],[Fecha de Registro]]+45","v":"2024-01-15"}]
[{"$f":"+MID(Tabla1[[#This Row],[Concepto]],1,3)","v":"JVM"},"2023-12-01","B1500001416","Inversiones DLP,SRL","JVM-COMPRA DE ALIMENTOS OR.2019-0009",193626.75,"45 Dias",{"$f":"+Tabla1[[#This Row],[Fecha de Registro]]+45","v":"2024-01-15"}]
[{"$f":"+MID(Tabla1[[#This Row],[Concepto]],1,3)","v":"JVM"},"2023-12-01","B1500001418","Inversiones DLP,SRL","JVM-COMPRA DE ALIMENTOS OR.2023-00115",22125,"45 Dias",{"$f":"+Tabla1[[#This Row],[Fecha de Registro]]+45","v":"2024-01-15"}]
[{"$f":"+MID(Tabla1[[#This Row],[Concepto]],1,3)","v":"JVM"},"2023-12-01","B1500001423","Inversiones DLP,SRL","JVM-ADQUISICION DE CARNES Y EMBUTIDOS PARA CONSUMO DE LOS ESTUDIANTES",33969,"45 Dias",{"$f":"+Tabla1[[#This Row],[Fecha de Registro]]+45","v":"2024-01-15"}]
[{"$f":"+MID(Tabla1[[#This Row],[Concepto]],1,3)","v":"JVM"},"2023-12-01","B1500001425","Inversiones DLP,SRL","JVM-ADQUISICION DE CEREALES Y LEGUMBRES PARA LOS ESTUDIANTES",33800,"45 Dias",{"$f":"+Tabla1[[#This Row],[Fecha de Registro]]+45","v":"2024-01-15"}]
[{"$f":"+MID(Tabla1[[#This Row],[Concepto]],1,3)","v":"FEM"},"2023-12-01","B1500001427","Inversiones DLP,SRL","FEM-ADQUISICION DE ALIMENTOS PARA CONSUMO DE LOS ESTUDIANTES",10212,"45 Dias",{"$f":"+Tabla1[[#This Row],[Fecha de Registro]]+45","v":"2024-01-15"}]
[{"$f":"+MID(Tabla1[[#This Row],[Concepto]],1,3)","v":"FEM"},"2023-12-01","B1500001431","Inversiones DLP,SRL","FEM-ADQUISICION DE ALIMENTOS PARA CONSUMO DE LOS ESTUDIANTES",14618.75,"45 Dias",{"$f":"+Tabla1[[#This Row],[Fecha de Registro]]+45","v":"2024-01-15"}]
[{"$f":"+MID(Tabla1[[#This Row],[Concepto]],1,3)","v":"FEM"},"2023-12-01","B1500001428","Inversiones DLP,SRL","FEM-ADQUISICION DE ALIMENTOS PARA CONSUMO DE LOS ESTUDIANTES",2968.75,"45 Dias",{"$f":"+Tabla1[[#This Row],[Fecha de Registro]]+45","v":"2024-01-15"}]
[{"$f":"+MID(Tabla1[[#This Row],[Concepto]],1,3)","v":"FEM"},"2023-12-01","B1500001429","Inversiones DLP,SRL","FEM-ADQUISICION ALIMENTOS PARA CONSUMO DE LOS ESTUDIANTES",78992.5,"45 Dias",{"$f":"+Tabla1[[#This Row],[Fecha de Registro]]+45","v":"2024-01-15"}]
[{"$f":"+MID(Tabla1[[#This Row],[Concepto]],1,3)","v":"FEM"},"2023-12-01","B1500001426","Inversiones DLP,SRL","FEM-ADQUISICION DE ALIMENTOS PARA CONSUMO DE LOS ESTUDIANTES",487.5,"45 Dias",{"$f":"+Tabla1[[#This Row],[Fecha de Registro]]+45","v":"2024-01-15"}]
[{"$f":"+MID(Tabla1[[#This Row],[Concepto]],1,3)","v":"JVM"},"2023-12-01","B1500001421","Inversiones DLP,SRL","JVM-ADQUISICION DE CARNES PARA CONSUMO DE LOS ESTUDIANTES",83122,"45 Dias",{"$f":"+Tabla1[[#This Row],[Fecha de Registro]]+45","v":"2024-01-15"}]
[{"$f":"+MID(Tabla1[[#This Row],[Concepto]],1,3)","v":"EMH"},"2023-12-05","B1500001447","Inversiones DLP,SRL","EMH-ADQUISICION DE CARNES Y EMBUTIDOS PARA CONSUMO DE LOS ESTUDIANTES",709278.14,"45 Dias",{"$f":"+Tabla1[[#This Row],[Fecha de Registro]]+45","v":"2024-01-19"}]
[{"$f":"+MID(Tabla1[[#This Row],[Concepto]],1,3)","v":"EMH"},"2023-12-05","B1500001448","Inversiones DLP,SRL","EMH-ADQUISICION DE ALIMENTOS PARA CONSUMO DE LOS ESTUDIANTES",962.5,"45 Dias",{"$f":"+Tabla1[[#This Row],[Fecha de Registro]]+45","v":"2024-01-19"}]
[{"$f":"+MID(Tabla1[[#This Row],[Concepto]],1,3)","v":"FEM"},"2023-12-12","B1500001450","Inversiones DLP,SRL","FEM-ADQUISICION DE CARNES Y EMBUTIDOS PARA CONSUMO DE LOS ESTUDIANTES",16915.580000000002,"45 Dias",{"$f":"+Tabla1[[#This Row],[Fecha de Registro]]+45","v":"2024-01-26"}]
[{"$f":"+MID(Tabla1[[#This Row],[Concepto]],1,3)","v":"JVM"},"2024-02-14","B1500001469","Inversiones DLP,SRL","JVM-ADQUISICION DE CARNES Y EMBUTIDOS PARA CONSUMO DE LOS ESTUDIANTES",21840,"45 Dias",{"$f":"+Tabla1[[#This Row],[Fecha de Registro]]+45","v":"2024-03-30"}]
[{"$f":"+MID(Tabla1[[#This Row],[Concepto]],1,3)","v":"JVM"},"2024-02-14","B1500001471","Inversiones DLP,SRL","JVM-ADQUISICION DE CEREALES U LEGUMBRES",67600,"45 Dias",{"$f":"+Tabla1[[#This Row],[Fecha de Registro]]+45","v":"2024-03-30"}]
[{"$f":"+MID(Tabla1[[#This Row],[Concepto]],1,3)","v":"JVM"},"2024-02-14","B1500001468","Inversiones DLP,SRL","JVM-ADQUISICION DE ALIMENTOS Y BEBIDAS",38500,"45 Dias",{"$f":"+Tabla1[[#This Row],[Fecha de Registro]]+45","v":"2024-03-30"}]
[{"$f":"+MID(Tabla1[[#This Row],[Concepto]],1,3)","v":"JVM"},"2024-02-14","B1500001467","Inversiones DLP,SRL","JVM-ADQUISICION DE ALIMENTOS Y BEBIDAS",36084.400000000001,"45 Dias",{"$f":"+Tabla1[[#This Row],[Fecha de Registro]]+45","v":"2024-03-30"}]
[{"$f":"+MID(Tabla1[[#This Row],[Concepto]],1,3)","v":"JVM"},"2024-02-14","B1500001470","Inversiones DLP,SRL","JVM-ADQUISICION DE ALIMENTOS Y BEBIDAS",39093.599999999999,"45 Dias",{"$f":"+Tabla1[[#This Row],[Fecha de Registro]]+45","v":"2024-03-30"}]
[{"$f":"+MID(Tabla1[[#This Row],[Concepto]],1,3)","v":"FEM"},"2023-07-11","B1500000258","INVERSIONES ND & ASOCIADOS SRL","FEM- COMPRA DE ALIMENTOS",5807.16,"45 Dias",{"$f":"+Tabla1[[#This Row],[Fecha de Registro]]+45","v":"2023-08-25"}]
[{"$f":"+MID(Tabla1[[#This Row],[Concepto]],1,3)","v":"FEM"},"2023-10-16","B1500001878","INVERSIONES ND & ASOCIADOS SRL","FEM- COMPRA DE ALIMENTOS",13250,"45 Dias",{"$f":"+Tabla1[[#This Row],[Fecha de Registro]]+45","v":"2023-11-30"}]
[{"$f":"+MID(Tabla1[[#This Row],[Concepto]],1,3)","v":"JVM"},"2023-10-30","B1500001891","INVERSIONES ND & ASOCIADOS SRL","JVM- COMPRA DE ALIMENTOS",56905,"45 Dias",{"$f":"+Tabla1[[#This Row],[Fecha de Registro]]+45","v":"2023-12-14"}]
[{"$f":"+MID(Tabla1[[#This Row],[Concepto]],1,3)","v":"FEM"},"2023-11-03","B1500001897","INVERSIONES ND & ASOCIADOS SRL","FEM- COMPRA DE ALIMENTOS",20312.5,"45 Dias",{"$f":"+Tabla1[[#This Row],[Fecha de Registro]]+45","v":"2023-12-18"}]
[{"$f":"+MID(Tabla1[[#This Row],[Concepto]],1,3)","v":"FEM"},"2023-12-13","B1500001939","INVERSIONES ND & ASOCIADOS SRL","FEM- COMPRA DE ALIMENTOS",28885,"45 Dias",{"$f":"+Tabla1[[#This Row],[Fecha de Registro]]+45","v":"2024-01-27"}]
[{"$f":"+MID(Tabla1[[#This Row],[Concepto]],1,3)","v":"JVM"},"2024-01-23","B1500001985","INVERSIONES ND & ASOCIADOS SRL","JVM- COMPRA DE ALIMENTOS PARA CONSUMO DEL RECINTO",210681.22,"45 Dias",{"$f":"+Tabla1[[#This Row],[Fecha de Registro]]+45","v":"2024-03-08"}]
[{"$f":"+MID(Tabla1[[#This Row],[Concepto]],1,3)","v":"FEM"},"2024-01-25","B1500001991","INVERSIONES ND & ASOCIADOS SRL","FEM- COMPRA DE ALIMENTOS PARA CONSUMO DEL RECINTO",26500,"45 Dias",{"$f":"+Tabla1[[#This Row],[Fecha de Registro]]+45","v":"2024-03-10"}]
[{"$f":"+MID(Tabla1[[#This Row],[Concepto]],1,3)","v":"FEM"},"2024-02-02","B1500001997","INVERSIONES ND & ASOCIADOS SRL","FEM- COMPRA DE ALIMENTOS PARA CONSUMO DEL RECINTO",60937.5,"45 Dias",{"$f":"+Tabla1[[#This Row],[Fecha de Registro]]+45","v":"2024-03-18"}]
[{"$f":"+MID(Tabla1[[#This Row],[Concepto]],1,3)","v":"JVM"},"2024-02-15","1033-1-24","INVERSIONES ND & ASOCIADOS SRL","JVM-PAGO FACT. NCF B1500001891, ADQ. ALIMENTOS PARA ESTUDIANTES - ORDEN 2023-00116",-56905,"45 Dias",{"$f":"+Tabla1[[#This Row],[Fecha de Registro]]+45","v":"2024-03-31"}]
[{"$f":"+MID(Tabla1[[#This Row],[Concepto]],1,3)","v":"FEM"},"2024-02-26","B1500002017","INVERSIONES ND & ASOCIADOS SRL","FEM- COMPRA DE ALIMENTOS PARA CONSUMO DEL RECINTO (PENDIENTE)",57449.48,"45 Dias",{"$f":"+Tabla1[[#This Row],[Fecha de Registro]]+45","v":"2024-04-11"}]
[{"$f":"+MID(Tabla1[[#This Row],[Concepto]],1,3)","v":"UM-"},"2016-12-31","A01001001150002309","Inversiones Toledo Marte SRL","UM-fact A01001001150002309/ Inversiones Toledo /UM/periodo 2015",26007,"45 Dias",{"$f":"+Tabla1[[#This Row],[Fecha de Registro]]+45","v":"2017-02-14"}]
[{"$f":"+MID(Tabla1[[#This Row],[Concepto]],1,3)","v":"REC"},"2022-01-31","B1500000077","INVERSIONES VERADALIA SRL","REC- SERVICIO FUMIGACION PAR AREAS EXTERIOR E INTERIOR DE RECTORIA",6844,"45 Dias",{"$f":"+Tabla1[[#This Row],[Fecha de Registro]]+45","v":"2022-03-17"}]
[{"$f":"+MID(Tabla1[[#This Row],[Concepto]],1,3)","v":"REC"},"2022-03-10","B1500000084","INVERSIONES VERADALIA SRL","REC - SERVICIO FUMIGACION PAR AREAS EXTERIOR E INTERIOR DE RECTORIA",6844,"45 Dias",{"$f":"+Tabla1[[#This Row],[Fecha de Registro]]+45","v":"2022-04-24"}]
[{"$f":"+MID(Tabla1[[#This Row],[Concepto]],1,3)","v":"REC"},"2022-03-25","B1500000086","INVERSIONES VERADALIA SRL","REC - SERVICIO FUMIGACION PAR AREAS EXTERIOR E INTERIOR DE RECTORIA",6844,"45 Dias",{"$f":"+Tabla1[[#This Row],[Fecha de Registro]]+45","v":"2022-05-09"}]
[{"$f":"+MID(Tabla1[[#This Row],[Concepto]],1,3)","v":"REC"},"2022-05-17","B1500000092","INVERSIONES VERADALIA SRL","REC-SERVICIO DE FUMIGACION",6844,"45 Dias",{"$f":"+Tabla1[[#This Row],[Fecha de Registro]]+45","v":"2022-07-01"}]
[{"$f":"+MID(Tabla1[[#This Row],[Concepto]],1,3)","v":"REC"},"2022-06-14","B1500000097","INVERSIONES VERADALIA SRL","REC-SERVICIO DE FUMIGACION JUNIO",6844,"45 Dias",{"$f":"+Tabla1[[#This Row],[Fecha de Registro]]+45","v":"2022-07-29"}]
[{"$f":"+MID(Tabla1[[#This Row],[Concepto]],1,3)","v":"REC"},"2022-07-11","B1500000100","INVERSIONES VERADALIA SRL","REC-SERVICIO DE FUMIGACION JULIO",6844,"45 Dias",{"$f":"+Tabla1[[#This Row],[Fecha de Registro]]+45","v":"2022-08-25"}]
[{"$f":"+MID(Tabla1[[#This Row],[Concepto]],1,3)","v":"REC"},"2021-06-08","B1500000328","J.C.Q, INGENIERIA EN ASENSORES, SRL","REC-SERVICIO DE MANTENIMIENTO DE ASCENSORES",9468.32,"45 Dias",{"$f":"+Tabla1[[#This Row],[Fecha de Registro]]+45","v":"2021-07-23"}]
[{"$f":"+MID(Tabla1[[#This Row],[Concepto]],1,3)","v":"LNM"},"2021-09-03","B1500000355","J.C.Q, INGENIERIA EN ASENSORES, SRL","LNM- MANT. Y REP. DE ASCENSORES (PENDIENTE DE RECIBIR)",4734.16,"45 Dias",{"$f":"+Tabla1[[#This Row],[Fecha de Registro]]+45","v":"2021-10-18"}]
[{"$f":"+MID(Tabla1[[#This Row],[Concepto]],1,3)","v":"REC"},"2021-10-06","B1500000363","J.C.Q, INGENIERIA EN ASENSORES, SRL","REC-SERVICIO DE MANTENIMIENTO DE ASCENSORES",14202.48,"45 Dias",{"$f":"+Tabla1[[#This Row],[Fecha de Registro]]+45","v":"2021-11-20"}]
[{"$f":"+MID(Tabla1[[#This Row],[Concepto]],1,3)","v":"FEM"},"2024-02-06","B1500000990","J.C.Q, INGENIERIA EN ASENSORES, SRL","FEM- MANTENIMIENTO ASCENSORES (PENDIENTE)",6490,"45 Dias",{"$f":"+Tabla1[[#This Row],[Fecha de Registro]]+45","v":"2024-03-22"}]
[{"$f":"+MID(Tabla1[[#This Row],[Concepto]],1,3)","v":"FEM"},"2023-12-18","B1500002292","JARDIN ILUSIONES SRL","FEM- COMPRA DE ARREGLOS. (PENDIENTE DE RECIBIR)",116820,"45 Dias",{"$f":"+Tabla1[[#This Row],[Fecha de Registro]]+45","v":"2024-02-01"}]
[{"$f":"+MID(Tabla1[[#This Row],[Concepto]],1,3)","v":"FEM"},"2024-01-02","B1500002312","JARDIN ILUSIONES SRL","FEM- COMPRA DE ARREGLOS. (PENDIENTE DE RECIBIR)",8260,"45 Dias",{"$f":"+Tabla1[[#This Row],[Fecha de Registro]]+45","v":"2024-02-16"}]
[{"$f":"+MID(Tabla1[[#This Row],[Concepto]],1,3)","v":"FEM"},"2024-01-24","B1500002346","JARDIN ILUSIONES SRL","FEM- COMPRA DEORQUIDEAS PARA SER OBSEQUIDA A PANELISTA CHARLA  ACTIVIDAD ACADEMICA. (PENDIENTE D...",13924,"45 Dias",{"$f":"+Tabla1[[#This Row],[Fecha de Registro]]+45","v":"2024-03-09"}]
[{"$f":"+MID(Tabla1[[#This Row],[Concepto]],1,3)","v":"FEM"},"2024-02-01","B0400000058","JARDIN ILUSIONES SRL","FEM-N/C AFECTA FACT. B1500002523",-10443,"45 Dias",{"$f":"+Tabla1[[#This Row],[Fecha de Registro]]+45","v":"2024-03-17"}]
[{"$f":"+MID(Tabla1[[#This Row],[Concepto]],1,3)","v":"FEM"},"2024-02-26","B1500002396","JARDIN ILUSIONES SRL","FEM- COMPRA DEORQUIDEAS PARA SER OBSEQUIDA A PANELISTA CHARLA  ACTIVIDAD ACADEMICA. (PENDIENTE D...",10620,"45 Dias",{"$f":"+Tabla1[[#This Row],[Fecha de Registro]]+45","v":"2024-04-11"}]
[{"$f":"+MID(Tabla1[[#This Row],[Concepto]],1,3)","v":"EPH"},"2024-02-13","B1500000110","JUAN CARLOS ALBA ALBA","EPH-SERVICIO DE NOTARIZACION DE CONTRATOS DE ESTUDIANTES",19617.5,"45 Dias",{"$f":"+Tabla1[[#This Row],[Fecha de Registro]]+45","v":"2024-03-29"}]
[{"$f":"+MID(Tabla1[[#This Row],[Concepto]],1,3)","v":"JVM"},"2023-11-09","B1500000314","KUKIRA SERVICIOS MULTIPLES","JVM-ADQUISICION DE SERVICIOS DE CATERING PARA  ACTIVIDADES DEL RECINTO. OR-2023-00497",142190,"45 Dias",{"$f":"+Tabla1[[#This Row],[Fecha de Registro]]+45","v":"2023-12-24"}]
[{"$f":"+MID(Tabla1[[#This Row],[Concepto]],1,3)","v":"JVM"},"2024-01-03","B0400000005","KUKIRA SERVICIOS MULTIPLES","JVM-NOTA DE CREDITO AFECTA FACT. B1500000314",-120500,"45 Dias",{"$f":"+Tabla1[[#This Row],[Fecha de Registro]]+45","v":"2024-02-17"}]
[{"$f":"+MID(Tabla1[[#This Row],[Concepto]],1,3)","v":"JVM"},"2024-02-20","B1500000318","KUKIRA SERVICIOS MULTIPLES","JVM-ADQUISICION DE SERVICIOS DE CATERING PARA  ACTIVIDADES DEL RECINTO.",142192,"45 Dias",{"$f":"+Tabla1[[#This Row],[Fecha de Registro]]+45","v":"2024-04-05"}]
[{"$f":"+MID(Tabla1[[#This Row],[Concepto]],1,3)","v":"REC"},"2023-12-13","B1500000249","LA COCINA GUSTAER, SRL","REC- SERVICIOS DE REFRIGERIOS.  (PENDIENTE DE RECIBIR)",211099.55,"45 Dias",{"$f":"+Tabla1[[#This Row],[Fecha de Registro]]+45","v":"2024-01-27"}]
[{"$f":"+MID(Tabla1[[#This Row],[Concepto]],1,3)","v":"EPH"},"2024-01-02","B1500000202","LABORATORIO DIESEL MONUMENTAL, SRL","EPH-SERVICIO DE INSTALACION DE TRANSMISION NUEVA PARA VEHICULO ASIGNADO A LA VICERRECTORA DEL RE...",694253,"45 Dias",{"$f":"+Tabla1[[#This Row],[Fecha de Registro]]+45","v":"2024-02-16"}]
[{"$f":"+MID(Tabla1[[#This Row],[Concepto]],1,3)","v":"REC"},"2023-10-20","B1500002819","Lb Eventos Sociales SRL","REC-ADQUISICION DE SERVICIO DE CATERING PARA  ACTIVIDADES DEL ISFODOSU OR. 2023-00547",47141,"45 Dias",{"$f":"+Tabla1[[#This Row],[Fecha de Registro]]+45","v":"2023-12-04"}]
[{"$f":"+MID(Tabla1[[#This Row],[Concepto]],1,3)","v":"JVM"},"2019-03-12","B1500000006","LEONARDO LUCIANO REYES","JVM-MANTENIMIENTO PLANTA ELECTRICA",34810,"45 Dias",{"$f":"+Tabla1[[#This Row],[Fecha de Registro]]+45","v":"2019-04-26"}]
[{"$f":"+MID(Tabla1[[#This Row],[Concepto]],1,3)","v":"REC"},"2023-12-04","B1500000079","LEXI LEGAL, RISK & MANAGEMENT SOLUTIONS","REC-SERVICIO DE CAPACITACION PARA EMPLEADOS DEL ISFODOSU OR. 2023-00572",345500,"45 Dias",{"$f":"+Tabla1[[#This Row],[Fecha de Registro]]+45","v":"2024-01-18"}]
[{"$f":"+MID(Tabla1[[#This Row],[Concepto]],1,3)","v":"EMH"},"2024-02-05","B1500000598","LUFISA COMERCIAL SRL","EMH-ALIMENTOS Y BEBIDAS P/LOS ESTUDIANTES",69643.600000000006,"45 Dias",{"$f":"+Tabla1[[#This Row],[Fecha de Registro]]+45","v":"2024-03-21"}]
[{"$f":"+MID(Tabla1[[#This Row],[Concepto]],1,3)","v":"JVM"},"2022-11-30","B1500004830","MACORISANA DE COMBUSTIBLE , SRL","JVM-ADQUISICION DE GASOIL PARA PLANTA ELECTRICA DEL RECINTO",27670,"45 Dias",{"$f":"+Tabla1[[#This Row],[Fecha de Registro]]+45","v":"2023-01-14"}]
[{"$f":"+MID(Tabla1[[#This Row],[Concepto]],1,3)","v":"JVM"},"2023-03-01","B1500004987","MACORISANA DE COMBUSTIBLE , SRL","JVM-ADQUISICION DE GASOIL PARA PLANTA ELECTRICA DEL RECINTO",36165,"45 Dias",{"$f":"+Tabla1[[#This Row],[Fecha de Registro]]+45","v":"2023-04-15"}]
[{"$f":"+MID(Tabla1[[#This Row],[Concepto]],1,3)","v":"JVM"},"2023-09-04","B1500000414","MAIKOL JOSE DE LA ROSA RAMIREZ","JVM-COMPRA DE ALIMENTOS PARA LOS ESTUDIANTES",3160,"45 Dias",{"$f":"+Tabla1[[#This Row],[Fecha de Registro]]+45","v":"2023-10-19"}]
[{"$f":"+MID(Tabla1[[#This Row],[Concepto]],1,3)","v":"JVM"},"2023-10-02","B1500000428","MAIKOL JOSE DE LA ROSA RAMIREZ","JVM-COMPRA DE ALIMENTOS Y BEBIDAS",3910,"45 Dias",{"$f":"+Tabla1[[#This Row],[Fecha de Registro]]+45","v":"2023-11-16"}]
[{"$f":"+MID(Tabla1[[#This Row],[Concepto]],1,3)","v":"FEM"},"2023-10-30","B1500000460","MAIKOL JOSE DE LA ROSA RAMIREZ","FEM-COMPRA DE ALIMENTOS PARA LOS ESTUDIANTES",22575,"45 Dias",{"$f":"+Tabla1[[#This Row],[Fecha de Registro]]+45","v":"2023-12-14"}]
[{"$f":"+MID(Tabla1[[#This Row],[Concepto]],1,3)","v":"FEM"},"2023-10-30","B1500000459","MAIKOL JOSE DE LA ROSA RAMIREZ","FEM-COMPRA DE ALIMENTOS PARA LOS ESTUDIANTES (PENDIENTE)",41625,"45 Dias",{"$f":"+Tabla1[[#This Row],[Fecha de Registro]]+45","v":"2023-12-14"}]
[{"$f":"+MID(Tabla1[[#This Row],[Concepto]],1,3)","v":"JVM"},"2023-10-30","B1500000461","MAIKOL JOSE DE LA ROSA RAMIREZ","JVM-ADQUISICION DE ALIMENTOS",7115,"45 Dias",{"$f":"+Tabla1[[#This Row],[Fecha de Registro]]+45","v":"2023-12-14"}]
[{"$f":"+MID(Tabla1[[#This Row],[Concepto]],1,3)","v":"JVM"},"2023-12-04","B1500000484","MAIKOL JOSE DE LA ROSA RAMIREZ","JVM-ADQUISICION DE ALIMENTOS",1950,"45 Dias",{"$f":"+Tabla1[[#This Row],[Fecha de Registro]]+45","v":"2024-01-18"}]
[{"$f":"+MID(Tabla1[[#This Row],[Concepto]],1,3)","v":"JVM"},"2023-12-04","B1500000486","MAIKOL JOSE DE LA ROSA RAMIREZ","JVM-ADQUISICION DE ALIMENTOS",59800,"45 Dias",{"$f":"+Tabla1[[#This Row],[Fecha de Registro]]+45","v":"2024-01-18"}]
[{"$f":"+MID(Tabla1[[#This Row],[Concepto]],1,3)","v":"FEM"},"2023-12-04","B1500000491","MAIKOL JOSE DE LA ROSA RAMIREZ","FEM - ALIMENTOS ORDEN 2023-00308",15650,"45 Dias",{"$f":"+Tabla1[[#This Row],[Fecha de Registro]]+45","v":"2024-01-18"}]
[{"$f":"+MID(Tabla1[[#This Row],[Concepto]],1,3)","v":"JVM"},"2023-12-11","B1500000500","MAIKOL JOSE DE LA ROSA RAMIREZ","JVM-ADQUISICION DE ALIMENTOS",29200,"45 Dias",{"$f":"+Tabla1[[#This Row],[Fecha de Registro]]+45","v":"2024-01-25"}]
[{"$f":"+MID(Tabla1[[#This Row],[Concepto]],1,3)","v":"JVM"},"2023-12-11","B1500000498","MAIKOL JOSE DE LA ROSA RAMIREZ","JVM-ADQUISICION DE ALIMENTOS",1485,"45 Dias",{"$f":"+Tabla1[[#This Row],[Fecha de Registro]]+45","v":"2024-01-25"}]
[{"$f":"+MID(Tabla1[[#This Row],[Concepto]],1,3)","v":"FEM"},"2024-01-04","B1500000512","MAIKOL JOSE DE LA ROSA RAMIREZ","FEM-ADQUISICION DE ALIMENTOS(PENDIENTE)",11175,"45 Dias",{"$f":"+Tabla1[[#This Row],[Fecha de Registro]]+45","v":"2024-02-18"}]
[{"$f":"+MID(Tabla1[[#This Row],[Concepto]],1,3)","v":"FEM"},"2024-01-04","B1500000513","MAIKOL JOSE DE LA ROSA RAMIREZ","FEM-ADQUISICION DE ALIMENTOS(PENDIENTE)",13950,"45 Dias",{"$f":"+Tabla1[[#This Row],[Fecha de Registro]]+45","v":"2024-02-18"}]
[{"$f":"+MID(Tabla1[[#This Row],[Concepto]],1,3)","v":"FEM"},"2024-01-30","B1500000539","MAIKOL JOSE DE LA ROSA RAMIREZ","FEM-ADQUISICION DE ALIMENTOS",3575,"45 Dias",{"$f":"+Tabla1[[#This Row],[Fecha de Registro]]+45","v":"2024-03-15"}]
[{"$f":"+MID(Tabla1[[#This Row],[Concepto]],1,3)","v":"FEM"},"2024-01-30","B1500000538","MAIKOL JOSE DE LA ROSA RAMIREZ","FEM-ADQUISICION DE ALIMENTOS(PENDIENTE)",18100,"45 Dias",{"$f":"+Tabla1[[#This Row],[Fecha de Registro]]+45","v":"2024-03-15"}]
[{"$f":"+MID(Tabla1[[#This Row],[Concepto]],1,3)","v":"FEM"},"2024-02-05","B1500000536","MAIKOL JOSE DE LA ROSA RAMIREZ","FEM-ADQUISICION DE ALIMENTOS",105150,"45 Dias",{"$f":"+Tabla1[[#This Row],[Fecha de Registro]]+45","v":"2024-03-21"}]
[{"$f":"+MID(Tabla1[[#This Row],[Concepto]],1,3)","v":"JVM"},"2024-02-05","B1500000537","MAIKOL JOSE DE LA ROSA RAMIREZ","JVM-ADQUISICION DE ALIMENTOS",98515,"45 Dias",{"$f":"+Tabla1[[#This Row],[Fecha de Registro]]+45","v":"2024-03-21"}]
[{"$f":"+MID(Tabla1[[#This Row],[Concepto]],1,3)","v":"JVM"},"2024-02-26","B1500000560","MAIKOL JOSE DE LA ROSA RAMIREZ","JVM-ADQUISICION DE ALIMENTOS",54900,"45 Dias",{"$f":"+Tabla1[[#This Row],[Fecha de Registro]]+45","v":"2024-04-11"}]
[{"$f":"+MID(Tabla1[[#This Row],[Concepto]],1,3)","v":"JVM"},"2024-02-26","B1500000561","MAIKOL JOSE DE LA ROSA RAMIREZ","JVM-ADQUISICION DE ALIMENTOS",85435,"45 Dias",{"$f":"+Tabla1[[#This Row],[Fecha de Registro]]+45","v":"2024-04-11"}]
[{"$f":"+MID(Tabla1[[#This Row],[Concepto]],1,3)","v":"FEM"},"2024-02-26","B1500000558","MAIKOL JOSE DE LA ROSA RAMIREZ","FEM-ADQUISICION DE ALIMENTOS (PENDIENTE)",25400,"45 Dias",{"$f":"+Tabla1[[#This Row],[Fecha de Registro]]+45","v":"2024-04-11"}]
[{"$f":"+MID(Tabla1[[#This Row],[Concepto]],1,3)","v":"FEM"},"2024-02-26","B1500000559","MAIKOL JOSE DE LA ROSA RAMIREZ","FEM-ADQUISICION DE ALIMENTOS (PENDIENTE)",13130,"45 Dias",{"$f":"+Tabla1[[#This Row],[Fecha de Registro]]+45","v":"2024-04-11"}]
[{"$f":"+MID(Tabla1[[#This Row],[Concepto]],1,3)","v":"REC"},"2024-02-13","B1500000221","MANAGEMENT CONSULTING GROUP","REC-SERVICIOS DE ASISTENCIA Y ACOMPAÑAMIENTO EN LA EVALUACION DE MEDIOS DEL PLAN ESTRATEGICO INS...",189654.37,"45 Dias",{"$f":"+Tabla1[[#This Row],[Fecha de Registro]]+45","v":"2024-03-29"}]
[{"$f":"+MID(Tabla1[[#This Row],[Concepto]],1,3)","v":"LNM"},"2023-12-15","B1500000199","Manuel Ant.Rosario Almanzar","LNM-COMPRA DE PROVISIONES PARA USO DE LA  ALIMENTACIÓN",242371.42,"45 Dias",{"$f":"+Tabla1[[#This Row],[Fecha de Registro]]+45","v":"2024-01-29"}]
[{"$f":"+MID(Tabla1[[#This Row],[Concepto]],1,3)","v":"LNM"},"2023-12-15","B1500000198","Manuel Ant.Rosario Almanzar","LNM-COMPRA DE PROVISIONES PARA USO DE LA  ALIMENTACIÓN",68805.5,"45 Dias",{"$f":"+Tabla1[[#This Row],[Fecha de Registro]]+45","v":"2024-01-29"}]
[{"$f":"+MID(Tabla1[[#This Row],[Concepto]],1,3)","v":"LNM"},"2023-12-15","B1500000197","Manuel Ant.Rosario Almanzar","LNM-COMPRA DE PROVISIONES PARA USO DE LA  ALIMENTACIÓN",24426,"45 Dias",{"$f":"+Tabla1[[#This Row],[Fecha de Registro]]+45","v":"2024-01-29"}]
[{"$f":"+MID(Tabla1[[#This Row],[Concepto]],1,3)","v":"LNM"},"2024-01-30","B1500000200","Manuel Ant.Rosario Almanzar","LNM-COMPRA DE PROVISIONES PARA USO DE LA  ALIMENTACIÓN",34862,"45 Dias",{"$f":"+Tabla1[[#This Row],[Fecha de Registro]]+45","v":"2024-03-15"}]
[{"$f":"+MID(Tabla1[[#This Row],[Concepto]],1,3)","v":"LNM"},"2024-01-30","B1500000201","Manuel Ant.Rosario Almanzar","LNM-COMPRA DE PROVISIONES PARA USO DE LA  ALIMENTACIÓN",37526.5,"45 Dias",{"$f":"+Tabla1[[#This Row],[Fecha de Registro]]+45","v":"2024-03-15"}]
[{"$f":"+MID(Tabla1[[#This Row],[Concepto]],1,3)","v":"LNM"},"2024-01-30","B1500000202","Manuel Ant.Rosario Almanzar","LNM-COMPRA DE PROVISIONES PARA USO DE LA  ALIMENTACIÓN",82297.02,"45 Dias",{"$f":"+Tabla1[[#This Row],[Fecha de Registro]]+45","v":"2024-03-15"}]
[{"$f":"+MID(Tabla1[[#This Row],[Concepto]],1,3)","v":"EMH"},"2016-12-31","A010010010100000008","Marita Gourmet, SRL","EMH-fact A010010010100000008/EMH/PERIODO 2011",28855,"45 Dias",{"$f":"+Tabla1[[#This Row],[Fecha de Registro]]+45","v":"2017-02-14"}]
[{"$f":"+MID(Tabla1[[#This Row],[Concepto]],1,3)","v":"REC"},"2023-07-07","B1500000887","MARTINEZ TORRES TRAVELING","REC-SERVICIO DE CATERING P/DIFERENTES ACTIVIDADES",207986.8,"45 Dias",{"$f":"+Tabla1[[#This Row],[Fecha de Registro]]+45","v":"2023-08-21"}]
[{"$f":"+MID(Tabla1[[#This Row],[Concepto]],1,3)","v":"REC"},"2023-08-02","B1500000909","MARTINEZ TORRES TRAVELING","REC- ALMUERZOS Y REFRIGERIOS PARA  ACTIVIDADES VARIAS",127593.4,"45 Dias",{"$f":"+Tabla1[[#This Row],[Fecha de Registro]]+45","v":"2023-09-16"}]
[{"$f":"+MID(Tabla1[[#This Row],[Concepto]],1,3)","v":"REC"},"2023-09-06","B1500000926","MARTINEZ TORRES TRAVELING","REC- ALMUERZOS Y REFRIGERIOS PARA  ACTIVIDADES VARIAS",24697.4,"45 Dias",{"$f":"+Tabla1[[#This Row],[Fecha de Registro]]+45","v":"2023-10-21"}]
[{"$f":"+MID(Tabla1[[#This Row],[Concepto]],1,3)","v":"JVM"},"2024-01-30","B1500000385","MAXX ESTINTORES SRL","JVM - SERVICIO DE MANTENIMIENTO Y RECARGA DE EXTINTORES",114979.2,"45 Dias",{"$f":"+Tabla1[[#This Row],[Fecha de Registro]]+45","v":"2024-03-15"}]
[{"$f":"+MID(Tabla1[[#This Row],[Concepto]],1,3)","v":"EMH"},"2023-12-06","B1500000645","MERCA DEL ATLANTICO, SRL","EMH-ADQUISICION DE SERVICIO DE CATERING ORDEN 2023-00320",25960.240000000002,"45 Dias",{"$f":"+Tabla1[[#This Row],[Fecha de Registro]]+45","v":"2024-01-20"}]
[{"$f":"+MID(Tabla1[[#This Row],[Concepto]],1,3)","v":"JVM"},"2023-12-08","B1500000052","MInerva Altagracia Hirujo Tamariz","JVM - NOTARIZACION DE 102 CONTRATOS. OR-2020-0128",43660,"45 Dias",{"$f":"+Tabla1[[#This Row],[Fecha de Registro]]+45","v":"2024-01-22"}]
[{"$f":"+MID(Tabla1[[#This Row],[Concepto]],1,3)","v":"REC"},"2023-10-25","B1500000023","MINERVA EMILIA PEREYRA PEREZ","REC-CONSULTORIA EDITORIAL 40% 2DA ETAPA DEL TRABAJO PARA LA PRODUCCION DE LA SERIE COLECCION CLA...",542800,"45 Dias",{"$f":"+Tabla1[[#This Row],[Fecha de Registro]]+45","v":"2023-12-09"}]
[{"$f":"+MID(Tabla1[[#This Row],[Concepto]],1,3)","v":"EMH"},"2023-10-03","B1500000034","MINERVINO, SRL","EMH-COMPRA DE BACALAO PARA USO DEL RECINTO",92335.16,"45 Dias",{"$f":"+Tabla1[[#This Row],[Fecha de Registro]]+45","v":"2023-11-17"}]
[{"$f":"+MID(Tabla1[[#This Row],[Concepto]],1,3)","v":"EMH"},"2023-10-11","B1500000037","MINERVINO, SRL","EMH-COMPRA DE ALIMENTOS PARA USO DEL RECINTO",151690,"45 Dias",{"$f":"+Tabla1[[#This Row],[Fecha de Registro]]+45","v":"2023-11-25"}]
[{"$f":"+MID(Tabla1[[#This Row],[Concepto]],1,3)","v":"EMH"},"2023-10-23","B1500000040","MINERVINO, SRL","EMH-COMPRA DE ALIMENTOS PARA USO DEL RECINTO",25747.96,"45 Dias",{"$f":"+Tabla1[[#This Row],[Fecha de Registro]]+45","v":"2023-12-07"}]
[{"$f":"+MID(Tabla1[[#This Row],[Concepto]],1,3)","v":"EMH"},"2023-10-26","B1500000045","MINERVINO, SRL","EMH-COMPRA DE BACALAO PARA USO DEL RECINTO",168236.72,"45 Dias",{"$f":"+Tabla1[[#This Row],[Fecha de Registro]]+45","v":"2023-12-10"}]
[{"$f":"+MID(Tabla1[[#This Row],[Concepto]],1,3)","v":"EMH"},"2024-02-12","B1500000070","MINERVINO, SRL","EMH-COMPRA DE ALIMENTOS",104065.84,"45 Dias",{"$f":"+Tabla1[[#This Row],[Fecha de Registro]]+45","v":"2024-03-28"}]
[{"$f":"+MID(Tabla1[[#This Row],[Concepto]],1,3)","v":"UM-"},"2023-06-27","B1500000081","MONCALI, SRL","UM-COMPRA DE ALIMENTOS PARA USO DEL RECINTO ORDEN 2023-00215 (PENDIENTE POR RECIBIR)",78800,"45 Dias",{"$f":"+Tabla1[[#This Row],[Fecha de Registro]]+45","v":"2023-08-11"}]
[{"$f":"+MID(Tabla1[[#This Row],[Concepto]],1,3)","v":"UM-"},"2023-11-01","B1500000114","MONCALI, SRL","UM-COMPRA DE ALIMENTOS PARA USO DEL RECINTO",34216.5,"45 Dias",{"$f":"+Tabla1[[#This Row],[Fecha de Registro]]+45","v":"2023-12-16"}]
[{"$f":"+MID(Tabla1[[#This Row],[Concepto]],1,3)","v":"UM-"},"2024-01-15","B1500000151","MONCALI, SRL","UM-COMPRA DE ALIMENTOS PARA USO DEL RECINTO",50907.25,"45 Dias",{"$f":"+Tabla1[[#This Row],[Fecha de Registro]]+45","v":"2024-02-29"}]
[{"$f":"+MID(Tabla1[[#This Row],[Concepto]],1,3)","v":"UM-"},"2024-01-16","B1500000152","MONCALI, SRL","UM-COMPRA DE ALIMENTOS PARA USO DEL RECINTO (PENDIENTE)",591593,"45 Dias",{"$f":"+Tabla1[[#This Row],[Fecha de Registro]]+45","v":"2024-03-01"}]
[{"$f":"+MID(Tabla1[[#This Row],[Concepto]],1,3)","v":"LNM"},"2024-02-23","B1500001145","Muebles y Equipos p/Oficina Leon Gonzalez","LNM-ADQUISICION DE MUEBLES PARA LAS OFICINAS DEL RECINTO (PENDIENTE)",563945.6,"45 Dias",{"$f":"+Tabla1[[#This Row],[Fecha de Registro]]+45","v":"2024-04-08"}]
[{"$f":"+MID(Tabla1[[#This Row],[Concepto]],1,3)","v":"FEM"},"2016-11-30","A010010011500000060","MULTFOODS GM DOMINICANA","FEM-SERVICIOS DE CATERING",15888.4,"45 Dias",{"$f":"+Tabla1[[#This Row],[Fecha de Registro]]+45","v":"2017-01-14"}]
[{"$f":"+MID(Tabla1[[#This Row],[Concepto]],1,3)","v":"UM-"},"2017-06-21","A010010011500001029","Multimpresos OHPE, SRL","UM-60 SERIGRAFIADOS DE POLO SHIRT",31860,"45 Dias",{"$f":"+Tabla1[[#This Row],[Fecha de Registro]]+45","v":"2017-08-05"}]
[{"$f":"+MID(Tabla1[[#This Row],[Concepto]],1,3)","v":"UM-"},"2017-10-11","A010010011500001075","Multimpresos OHPE, SRL","UM-125 serigrafía de polo t-shirt",70062.5,"45 Dias",{"$f":"+Tabla1[[#This Row],[Fecha de Registro]]+45","v":"2017-11-25"}]
[{"$f":"+MID(Tabla1[[#This Row],[Concepto]],1,3)","v":"EPH"},"2016-12-31","A010010011500002309","Negociado de vehiculo SRL","EPH-PARA INGRESAR LA CX P NEGOCIADO DE VEHIC.  AL 31/12/2016 -EPH",15725.31,"45 Dias",{"$f":"+Tabla1[[#This Row],[Fecha de Registro]]+45","v":"2017-02-14"}]
[{"$f":"+MID(Tabla1[[#This Row],[Concepto]],1,3)","v":"FEM"},"2023-11-16","B1500000319","NEOAGRO, SRL","FEM-COMPRA DE ALIMENTO (PENDIENTE)",18726.75,"45 Dias",{"$f":"+Tabla1[[#This Row],[Fecha de Registro]]+45","v":"2023-12-31"}]
[{"$f":"+MID(Tabla1[[#This Row],[Concepto]],1,3)","v":"FEM"},"2024-01-08","B1500000335","NEOAGRO, SRL","FEM-COMPRA DE ALIMENTO (PENDIENTE)",18726.75,"45 Dias",{"$f":"+Tabla1[[#This Row],[Fecha de Registro]]+45","v":"2024-02-22"}]
[{"$f":"+MID(Tabla1[[#This Row],[Concepto]],1,3)","v":"FEM"},"2024-02-01","B040000016","NEOAGRO, SRL","FEM-N/C AFECTA FACTURA B1500000335",-276.75,"45 Dias",{"$f":"+Tabla1[[#This Row],[Fecha de Registro]]+45","v":"2024-03-17"}]
[{"$f":"+MID(Tabla1[[#This Row],[Concepto]],1,3)","v":"EMH"},"2024-02-15","B1500000350","NEOAGRO, SRL","EMH-COMPRA DE ALIMENTO (PENDIENTE)",38375,"45 Dias",{"$f":"+Tabla1[[#This Row],[Fecha de Registro]]+45","v":"2024-03-31"}]
[{"$f":"+MID(Tabla1[[#This Row],[Concepto]],1,3)","v":"EMH"},"2024-02-21","B1500000353","NEOAGRO, SRL","EMH-COMPRA DE ALIMENTO (PENDIENTE)",18200,"45 Dias",{"$f":"+Tabla1[[#This Row],[Fecha de Registro]]+45","v":"2024-04-06"}]
[{"$f":"+MID(Tabla1[[#This Row],[Concepto]],1,3)","v":"EMH"},"2024-02-21","B1500000354","NEOAGRO, SRL","EMH-COMPRA DE ALIMENTO (PENDIENTE)",27877.5,"45 Dias",{"$f":"+Tabla1[[#This Row],[Fecha de Registro]]+45","v":"2024-04-06"}]
[{"$f":"+MID(Tabla1[[#This Row],[Concepto]],1,3)","v":"REC"},"2023-11-07","B1500000406","Nestevez Servicios de comunicación SRL","REC- CONDUCCION POR ACTO DE INVESTIDURA ORDINARIA EN SANTIAGO, OCTUBRE 2023",70000,"45 Dias",{"$f":"+Tabla1[[#This Row],[Fecha de Registro]]+45","v":"2023-12-22"}]
[{"$f":"+MID(Tabla1[[#This Row],[Concepto]],1,3)","v":"REC"},"2023-11-07","B1500000407","Nestevez Servicios de comunicación SRL","REC- CONDUCCION POR ACTO DE INVESTIDURA ORDINARIA EN SAN JUAN DE LA MAGUANA, OCTUBRE 2023",70000,"45 Dias",{"$f":"+Tabla1[[#This Row],[Fecha de Registro]]+45","v":"2023-12-22"}]
[{"$f":"+MID(Tabla1[[#This Row],[Concepto]],1,3)","v":"REC"},"2023-11-07","B1500000408","Nestevez Servicios de comunicación SRL","REC- CONDUCCION DEL RECITAL POETICO EN HONOR A SALOME URENA EN EL AUDITORIO DEL ISFODOSU, OCTUBR...",40000,"45 Dias",{"$f":"+Tabla1[[#This Row],[Fecha de Registro]]+45","v":"2023-12-22"}]
[{"$f":"+MID(Tabla1[[#This Row],[Concepto]],1,3)","v":"REC"},"2023-11-10","B1500000405","Nestevez Servicios de comunicación SRL","REC- CONDUCCION POR ACTO DE INVESTIDURA ORDINARIA OCTUBRE 2023",70000,"45 Dias",{"$f":"+Tabla1[[#This Row],[Fecha de Registro]]+45","v":"2023-12-25"}]
[{"$f":"+MID(Tabla1[[#This Row],[Concepto]],1,3)","v":"REC"},"2024-01-22","B1500000455","Nestevez Servicios de comunicación SRL","REC-SERVICIO DE MAESTRIA DE CEREMONIAS PARA LA CONDUCCION DE LAS ACTIVIDADES REALIZADAS EN EL IS...",70000,"45 Dias",{"$f":"+Tabla1[[#This Row],[Fecha de Registro]]+45","v":"2024-03-07"}]
[{"$f":"+MID(Tabla1[[#This Row],[Concepto]],1,3)","v":"REC"},"2023-06-02","B1500000707","OFICENTRO ORIENTAL","REC- IMPRESIONES VARIAS.",115204.82,"45 Dias",{"$f":"+Tabla1[[#This Row],[Fecha de Registro]]+45","v":"2023-07-17"}]
[{"$f":"+MID(Tabla1[[#This Row],[Concepto]],1,3)","v":"REC"},"2023-07-09","B1500000729","OFICENTRO ORIENTAL","REC- IMPRESIONES Y ENCUADERNACION P/DIVERSAS ACTIVIDADES",17499.75,"45 Dias",{"$f":"+Tabla1[[#This Row],[Fecha de Registro]]+45","v":"2023-08-23"}]
[{"$f":"+MID(Tabla1[[#This Row],[Concepto]],1,3)","v":"REC"},"2023-07-09","B1500000731","OFICENTRO ORIENTAL","REC- IMPRESIONES Y COPIAS.",81341.289999999994,"45 Dias",{"$f":"+Tabla1[[#This Row],[Fecha de Registro]]+45","v":"2023-08-23"}]
[{"$f":"+MID(Tabla1[[#This Row],[Concepto]],1,3)","v":"REC"},"2023-07-09","B1500000730","OFICENTRO ORIENTAL","REC- IMPRESIONES Y COPIAS.",26374,"45 Dias",{"$f":"+Tabla1[[#This Row],[Fecha de Registro]]+45","v":"2023-08-23"}]
[{"$f":"+MID(Tabla1[[#This Row],[Concepto]],1,3)","v":"REC"},"2023-07-09","B1500000728","OFICENTRO ORIENTAL","REC- IMPRESIONES Y COPIAS.",314160.55,"45 Dias",{"$f":"+Tabla1[[#This Row],[Fecha de Registro]]+45","v":"2023-08-23"}]
[{"$f":"+MID(Tabla1[[#This Row],[Concepto]],1,3)","v":"REC"},"2023-07-17","B1500000737","OFICENTRO ORIENTAL","REC- IMPRESIONES VARIAS. (PENDIENTE DE RECIBIR)",7023.6,"45 Dias",{"$f":"+Tabla1[[#This Row],[Fecha de Registro]]+45","v":"2023-08-31"}]
[{"$f":"+MID(Tabla1[[#This Row],[Concepto]],1,3)","v":"REC"},"2023-07-23","B1500000741","OFICENTRO ORIENTAL","REC-IMPRESIONES Y ENCUADERNADOS DIVERSOS",27052.799999999999,"45 Dias",{"$f":"+Tabla1[[#This Row],[Fecha de Registro]]+45","v":"2023-09-06"}]
[{"$f":"+MID(Tabla1[[#This Row],[Concepto]],1,3)","v":"REC"},"2023-10-04","B1500000790","OFICENTRO ORIENTAL","REC-CONTRATACION DE SERVICIOS DE IMPRESION Y ENCUADERNACION",184705.33,"45 Dias",{"$f":"+Tabla1[[#This Row],[Fecha de Registro]]+45","v":"2023-11-18"}]
[{"$f":"+MID(Tabla1[[#This Row],[Concepto]],1,3)","v":"JVM"},"2023-10-04","B1500000787","OFICENTRO ORIENTAL","JVM-ADQUISICON DE SERVICIO DE IMPRESION PARA DIVERSAS ACTIVIDADES",2750,"45 Dias",{"$f":"+Tabla1[[#This Row],[Fecha de Registro]]+45","v":"2023-11-18"}]
[{"$f":"+MID(Tabla1[[#This Row],[Concepto]],1,3)","v":"FEM"},"2024-02-26","B1500000863","OFICENTRO ORIENTAL","FEM-COMPRA DE UTILES DE ESCRITORIO (PENDIENTE)",29854,"45 Dias",{"$f":"+Tabla1[[#This Row],[Fecha de Registro]]+45","v":"2024-04-11"}]
[{"$f":"+MID(Tabla1[[#This Row],[Concepto]],1,3)","v":"REC"},"2023-05-26","ISFODOSU 202301","ONE WORLD NETWORK OF SCHOOLS","REC- TRAIN THE TRAINERS 2022-23 (PENDIENTE DE RECIBIR)",299342.34999999998,"45 Dias",{"$f":"+Tabla1[[#This Row],[Fecha de Registro]]+45","v":"2023-07-10"}]
[{"$f":"+MID(Tabla1[[#This Row],[Concepto]],1,3)","v":"JVM"},"2023-10-02","B1500000115","Operadora Panipueblo","JVM-ADQUISICION DE PRODUCTOS DE PANADERIA",59290,"45 Dias",{"$f":"+Tabla1[[#This Row],[Fecha de Registro]]+45","v":"2023-11-16"}]
[{"$f":"+MID(Tabla1[[#This Row],[Concepto]],1,3)","v":"JVM"},"2023-11-03","B1500000116","Operadora Panipueblo","JVM-ADQUISICION DE PRODUCTOS DE PANADERIA",37450,"45 Dias",{"$f":"+Tabla1[[#This Row],[Fecha de Registro]]+45","v":"2023-12-18"}]
[{"$f":"+MID(Tabla1[[#This Row],[Concepto]],1,3)","v":"JVM"},"2023-12-13","B1500000117","Operadora Panipueblo","JVM-ADQUISICION DE PRODUCTOS DE PANADERIA",25900,"45 Dias",{"$f":"+Tabla1[[#This Row],[Fecha de Registro]]+45","v":"2024-01-27"}]
[{"$f":"+MID(Tabla1[[#This Row],[Concepto]],1,3)","v":"JVM"},"2024-02-08","B1500000120","Operadora Panipueblo","JVM-ADQUISICION DE REMANTES DE ALIMENTOS Y BEBIDAS",43230,"45 Dias",{"$f":"+Tabla1[[#This Row],[Fecha de Registro]]+45","v":"2024-03-24"}]
[{"$f":"+MID(Tabla1[[#This Row],[Concepto]],1,3)","v":"REC"},"2024-01-09","2659","Org. Universitaria Inter. OUI-IOHE","REC-Pago cuota menbresía anual 2024 del Instituto por USD1,300.00  a una tasa de RD$58.7282",76346.66,"45 Dias",{"$f":"+Tabla1[[#This Row],[Fecha de Registro]]+45","v":"2024-02-23"}]
[{"$f":"+MID(Tabla1[[#This Row],[Concepto]],1,3)","v":"REC"},"2023-11-23","B1500000101","Organización de Estados Iberoamericanos","REC- ÚLTIMO PAGO , ESTRATEGIA CENTRADA EN LA ESCUELA SJM ISFODOSU-OEI",4508588.5599999996,"45 Dias",{"$f":"+Tabla1[[#This Row],[Fecha de Registro]]+45","v":"2024-01-07"}]
[{"$f":"+MID(Tabla1[[#This Row],[Concepto]],1,3)","v":"FEM"},"2024-02-23","B1500001047","PADRON OFFICE SUPPLY","FEM - ADQUISICION DE MATERIAL GASTABLE ORDEN (PENDIENTE)",135236.76,"45 Dias",{"$f":"+Tabla1[[#This Row],[Fecha de Registro]]+45","v":"2024-04-08"}]
[{"$f":"+MID(Tabla1[[#This Row],[Concepto]],1,3)","v":"LNM"},"2016-12-31","A010010010100000008","Pollo Licey ,Srl","LNM-FACTS VARIAS Pollo Licey . SRL/LNNM/PERIODO 2015",6995.01,"45 Dias",{"$f":"+Tabla1[[#This Row],[Fecha de Registro]]+45","v":"2017-02-14"}]
[{"$f":"+MID(Tabla1[[#This Row],[Concepto]],1,3)","v":"REC"},"2024-01-03","B1500001381","PROLIMDES COMERCIAL","REC-ADQUISICION DE 60 FARDOS DE PAPEL TOALLA 6/1",45312,"45 Dias",{"$f":"+Tabla1[[#This Row],[Fecha de Registro]]+45","v":"2024-02-17"}]
[{"$f":"+MID(Tabla1[[#This Row],[Concepto]],1,3)","v":"UM-"},"2019-09-27","B1500000011","R&S INTERNACIONAL SRL","UM-SERVICIOS DE FUMIGACION EN TODAS LAS AREAS DEL RECINTO UM",19824,"45 Dias",{"$f":"+Tabla1[[#This Row],[Fecha de Registro]]+45","v":"2019-11-11"}]
[{"$f":"+MID(Tabla1[[#This Row],[Concepto]],1,3)","v":"EPH"},"2018-11-29","B1500000016","Rafael Arnaldo Sosa Liriano","EPH-ADQUISICION DE REMANENTE DE ALIMENTACION PARA ESTUDIANTES DEL RECINTO",3025,"45 Dias",{"$f":"+Tabla1[[#This Row],[Fecha de Registro]]+45","v":"2019-01-13"}]
[{"$f":"+MID(Tabla1[[#This Row],[Concepto]],1,3)","v":"EPH"},"2019-01-25","B1500000021","Rafael Arnaldo Sosa Liriano","EPH-ADQUISICION DE REMANENTE DE ALIMENTACION PARA ESTUDIANTES DEL RECINTO",14775,"45 Dias",{"$f":"+Tabla1[[#This Row],[Fecha de Registro]]+45","v":"2019-03-11"}]
[{"$f":"+MID(Tabla1[[#This Row],[Concepto]],1,3)","v":"EPH"},"2019-01-25","B1500000022","Rafael Arnaldo Sosa Liriano","EPH-ADQUISICION DE REMANENTE DE ALIMENTACION PARA ESTUDIANTES DEL RECINTO",850,"45 Dias",{"$f":"+Tabla1[[#This Row],[Fecha de Registro]]+45","v":"2019-03-11"}]
[{"$f":"+MID(Tabla1[[#This Row],[Concepto]],1,3)","v":"EPH"},"2019-04-24","B1500000028","Rafael Arnaldo Sosa Liriano","EPH-ADQUISICION DE REMANENTE DE ALIMENTACION PARA ESTUDIANTES DEL RECINTO",37423,"45 Dias",{"$f":"+Tabla1[[#This Row],[Fecha de Registro]]+45","v":"2019-06-08"}]
[{"$f":"+MID(Tabla1[[#This Row],[Concepto]],1,3)","v":"EPH"},"2019-04-24","B1500000029","Rafael Arnaldo Sosa Liriano","EPH-ADQUISICION DE REMANENTE DE ALIMENTACION PARA ESTUDIANTES DEL RECINTO",2975,"45 Dias",{"$f":"+Tabla1[[#This Row],[Fecha de Registro]]+45","v":"2019-06-08"}]
[{"$f":"+MID(Tabla1[[#This Row],[Concepto]],1,3)","v":"EPH"},"2019-05-10","B1500000030","Rafael Arnaldo Sosa Liriano","EPH-ADQUISICION DE REMANENTE DE ALIMENTACION PARA USO DEL RECINTO",5675,"45 Dias",{"$f":"+Tabla1[[#This Row],[Fecha de Registro]]+45","v":"2019-06-24"}]
[{"$f":"+MID(Tabla1[[#This Row],[Concepto]],1,3)","v":"EMH"},"2016-12-31","A0200200022600000004","Ramon Valdez Perez","EMH-fact A0200200022600000004 DEL EMH/Ramon Valdez/PERIODO 2012",11600,"45 Dias",{"$f":"+Tabla1[[#This Row],[Fecha de Registro]]+45","v":"2017-02-14"}]
[{"$f":"+MID(Tabla1[[#This Row],[Concepto]],1,3)","v":"REC"},"2023-08-27","B1500000306","RANRAIBY, SRL","REC- SERVICIO DE CATERING PARA PROYECTO NACIONAL DISCIPLINA POSITIVA",89208,"45 Dias",{"$f":"+Tabla1[[#This Row],[Fecha de Registro]]+45","v":"2023-10-11"}]
[{"$f":"+MID(Tabla1[[#This Row],[Concepto]],1,3)","v":"REC"},"2023-08-27","B1500000307","RANRAIBY, SRL","REC- SERVICIO DE CATERING PROYECTO NACIONAL DISCIPLINA POSITIVA",212400,"45 Dias",{"$f":"+Tabla1[[#This Row],[Fecha de Registro]]+45","v":"2023-10-11"}]
[{"$f":"+MID(Tabla1[[#This Row],[Concepto]],1,3)","v":"REC"},"2023-11-19","B1500000341","RANRAIBY, SRL","REC- SERVICIO DE CATERING",405920,"45 Dias",{"$f":"+Tabla1[[#This Row],[Fecha de Registro]]+45","v":"2024-01-03"}]
[{"$f":"+MID(Tabla1[[#This Row],[Concepto]],1,3)","v":"REC"},"2024-01-15","0022","RENZO RONCAGLIOLO","REC-PAGO FACT. 0022, CORRESP. AL 40% ULTIMO PAGO CONTRATACION CONSULTORIA PARA ELABORACION LIBRO...",354708,"45 Dias",{"$f":"+Tabla1[[#This Row],[Fecha de Registro]]+45","v":"2024-02-29"}]
[{"$f":"+MID(Tabla1[[#This Row],[Concepto]],1,3)","v":"REC"},"2019-10-07","B1500000010","RHUMAN SITE, SRL","REC-CURSOS LEADER HAPPINESS OFFICER",270279,"45 Dias",{"$f":"+Tabla1[[#This Row],[Fecha de Registro]]+45","v":"2019-11-21"}]
[{"$f":"+MID(Tabla1[[#This Row],[Concepto]],1,3)","v":"JVM"},"2023-06-15","B1500001149","Rogelio Antonio Ureña Paredes","JVM-ADQUISICION DE ALIMENTOS Y BEBIDAS OR-2022-00138",44100.19,"45 Dias",{"$f":"+Tabla1[[#This Row],[Fecha de Registro]]+45","v":"2023-07-30"}]
[{"$f":"+MID(Tabla1[[#This Row],[Concepto]],1,3)","v":"JVM"},"2023-09-20","B1500001157","Rogelio Antonio Ureña Paredes","JVM-ADQUISICION DE ALIMENTOS Y BEBIDAS",50600,"45 Dias",{"$f":"+Tabla1[[#This Row],[Fecha de Registro]]+45","v":"2023-11-04"}]
[{"$f":"+MID(Tabla1[[#This Row],[Concepto]],1,3)","v":"JVM"},"2023-11-14","B1500001167","Rogelio Antonio Ureña Paredes","JVM-ADQUISICION DE ALIMENTOS Y BEBIDAS",34200,"45 Dias",{"$f":"+Tabla1[[#This Row],[Fecha de Registro]]+45","v":"2023-12-29"}]
[{"$f":"+MID(Tabla1[[#This Row],[Concepto]],1,3)","v":"JVM"},"2023-11-14","B1500001171","Rogelio Antonio Ureña Paredes","JVM-ADQUISICION DE ALIMENTOS Y BEBIDAS",127351.11,"45 Dias",{"$f":"+Tabla1[[#This Row],[Fecha de Registro]]+45","v":"2023-12-29"}]
[{"$f":"+MID(Tabla1[[#This Row],[Concepto]],1,3)","v":"JVM"},"2023-11-14","B1500001164","Rogelio Antonio Ureña Paredes","JVM-ADQUISICION DE ALIMENTOS Y BEBIDAS",123154.77,"45 Dias",{"$f":"+Tabla1[[#This Row],[Fecha de Registro]]+45","v":"2023-12-29"}]
[{"$f":"+MID(Tabla1[[#This Row],[Concepto]],1,3)","v":"JVM"},"2023-11-14","B1500001166","Rogelio Antonio Ureña Paredes","JVM-ADQUISICION DE ALIMENTOS Y BEBIDAS",53483.199999999997,"45 Dias",{"$f":"+Tabla1[[#This Row],[Fecha de Registro]]+45","v":"2023-12-29"}]
[{"$f":"+MID(Tabla1[[#This Row],[Concepto]],1,3)","v":"JVM"},"2023-11-14","B1500001168","Rogelio Antonio Ureña Paredes","JVM-COMPRA DE ALIMENTACIÓN",167600,"45 Dias",{"$f":"+Tabla1[[#This Row],[Fecha de Registro]]+45","v":"2023-12-29"}]
[{"$f":"+MID(Tabla1[[#This Row],[Concepto]],1,3)","v":"JVM"},"2023-11-14","B1500001169","Rogelio Antonio Ureña Paredes","JVM-COMPRA DE ALIMENTACIÓN",66600.009999999995,"45 Dias",{"$f":"+Tabla1[[#This Row],[Fecha de Registro]]+45","v":"2023-12-29"}]
[{"$f":"+MID(Tabla1[[#This Row],[Concepto]],1,3)","v":"JVM"},"2023-11-14","B1500001170","Rogelio Antonio Ureña Paredes","JVM-ADQUISICION DE ALIMENTOS Y BEBIDAS",66504.88,"45 Dias",{"$f":"+Tabla1[[#This Row],[Fecha de Registro]]+45","v":"2023-12-29"}]
[{"$f":"+MID(Tabla1[[#This Row],[Concepto]],1,3)","v":"JVM"},"2023-11-14","B1500001165","Rogelio Antonio Ureña Paredes","JVM-ADQUISICION DE ALIMENTOS Y BEBIDAS",18410.25,"45 Dias",{"$f":"+Tabla1[[#This Row],[Fecha de Registro]]+45","v":"2023-12-29"}]
[{"$f":"+MID(Tabla1[[#This Row],[Concepto]],1,3)","v":"JVM"},"2023-12-21","B1500001173","Rogelio Antonio Ureña Paredes","JVM- COMPRA DE ALIMENTOS.",98845.5,"45 Dias",{"$f":"+Tabla1[[#This Row],[Fecha de Registro]]+45","v":"2024-02-04"}]
[{"$f":"+MID(Tabla1[[#This Row],[Concepto]],1,3)","v":"FEM"},"2016-12-31","A010010010100002460","S & G Computer SRL","FEM-fact A010010010100002460/ FEM/ S &G Computer /Periodo 2012",52020,"45 Dias",{"$f":"+Tabla1[[#This Row],[Fecha de Registro]]+45","v":"2017-02-14"}]
[{"$f":"+MID(Tabla1[[#This Row],[Concepto]],1,3)","v":"REC"},"2023-11-10","B1500001145","SABE MG, SRL","REC-SERVICIOS DE ALMUERZOS PRE-EMPACADOS. OR-2023-0047",20921.400000000001,"45 Dias",{"$f":"+Tabla1[[#This Row],[Fecha de Registro]]+45","v":"2023-12-25"}]
[{"$f":"+MID(Tabla1[[#This Row],[Concepto]],1,3)","v":"REC"},"2023-10-01","B1500000135","Sanfra Foods & Catering SRL","REC- REFRIGERIOS Y ALMUERZOS DE ACTIVIDAD ACADEMICAS ADMINISTRATIVAS",262827.3,"45 Dias",{"$f":"+Tabla1[[#This Row],[Fecha de Registro]]+45","v":"2023-11-15"}]
[{"$f":"+MID(Tabla1[[#This Row],[Concepto]],1,3)","v":"REC"},"2023-11-01","B1500000143","Sanfra Foods & Catering SRL","REC- REFRIGERIOS Y ALMUERZOS DE ACTIVIDAD ACADEMICAS ADMINISTRATIVAS OR. 2023-00511",367676.2,"45 Dias",{"$f":"+Tabla1[[#This Row],[Fecha de Registro]]+45","v":"2023-12-16"}]
[{"$f":"+MID(Tabla1[[#This Row],[Concepto]],1,3)","v":"REC"},"2023-12-01","B1500000151","Sanfra Foods & Catering SRL","REC- REFRIGERIOS Y ALMUERZOS OR. 2023-00511",204960.69,"45 Dias",{"$f":"+Tabla1[[#This Row],[Fecha de Registro]]+45","v":"2024-01-15"}]
[{"$f":"+MID(Tabla1[[#This Row],[Concepto]],1,3)","v":"REC"},"2023-12-01","B1500000153","Sanfra Foods & Catering SRL","REC- REFRIGERIOS Y ALMUERZOS",323912.48,"45 Dias",{"$f":"+Tabla1[[#This Row],[Fecha de Registro]]+45","v":"2024-01-15"}]
[{"$f":"+MID(Tabla1[[#This Row],[Concepto]],1,3)","v":"REC"},"2023-12-15","B1500000157","Sanfra Foods & Catering SRL","REC- SERVICIO DE CATERING ORDEN NO. 2023-00672",323894.42,"45 Dias",{"$f":"+Tabla1[[#This Row],[Fecha de Registro]]+45","v":"2024-01-29"}]
[{"$f":"+MID(Tabla1[[#This Row],[Concepto]],1,3)","v":"REC"},"2024-01-01","B1500000163","Sanfra Foods & Catering SRL","REC- REFRIGERIOS Y ALMUERZOS",51945.96,"45 Dias",{"$f":"+Tabla1[[#This Row],[Fecha de Registro]]+45","v":"2024-02-15"}]
[{"$f":"+MID(Tabla1[[#This Row],[Concepto]],1,3)","v":"REC"},"2024-02-01","B1500000166","Sanfra Foods & Catering SRL","REC- REFRIGERIOS Y ALMUERZOS",22520.3,"45 Dias",{"$f":"+Tabla1[[#This Row],[Fecha de Registro]]+45","v":"2024-03-17"}]
[{"$f":"+MID(Tabla1[[#This Row],[Concepto]],1,3)","v":"REC"},"2024-02-22","B0300000001","Sanfra Foods & Catering SRL","REC- NOTA  DE DEBITO AFACTA LA FACTURA NCF B1500000135",9073.02,"45 Dias",{"$f":"+Tabla1[[#This Row],[Fecha de Registro]]+45","v":"2024-04-07"}]
[{"$f":"+MID(Tabla1[[#This Row],[Concepto]],1,3)","v":"REC"},"2024-02-28","B0400000003","Sanfra Foods & Catering SRL","REC- NOTA  DE CREDITO AFACTA LA FACTURA NCF B1500000163",-4244.46,"45 Dias",{"$f":"+Tabla1[[#This Row],[Fecha de Registro]]+45","v":"2024-04-13"}]
[{"$f":"+MID(Tabla1[[#This Row],[Concepto]],1,3)","v":"FEM"},"2024-01-05","B1500000006","SANTANA Y ROTHSCHILD DISTRIBUTION SRL","FEM-ADQUISICION E INSTALACION DE ACONDICIONADOR DE AIRE Y CONDENSADOR (PENDIENTE)",63433.99,"45 Dias",{"$f":"+Tabla1[[#This Row],[Fecha de Registro]]+45","v":"2024-02-19"}]
[{"$f":"+MID(Tabla1[[#This Row],[Concepto]],1,3)","v":"UM-"},"2023-11-30","B1500003281","SANTOS BALLAS SRL","UM-ADQUISICION DE AGUA EMBOTELLADA",45350,"45 Dias",{"$f":"+Tabla1[[#This Row],[Fecha de Registro]]+45","v":"2024-01-14"}]
[{"$f":"+MID(Tabla1[[#This Row],[Concepto]],1,3)","v":"JVM"},"2023-12-21","B1500003822","Services Travel, SRL","JVM-CONTRATACION DE SERVICIO Y ORGANIZACION DE EVENTO PARA PRESENTACION DE RESULTADOS DEL RECINTO",1200521.92,"45 Dias",{"$f":"+Tabla1[[#This Row],[Fecha de Registro]]+45","v":"2024-02-04"}]
[{"$f":"+MID(Tabla1[[#This Row],[Concepto]],1,3)","v":"JVM"},"2024-02-08","B1500003891","Services Travel, SRL","JVM-CONTRATACION DE SERVICIO DE TRANSPORTE Y ALIMENTACION PARA ESTUDIANTES Y DOCENTES",168908,"45 Dias",{"$f":"+Tabla1[[#This Row],[Fecha de Registro]]+45","v":"2024-03-24"}]
[{"$f":"+MID(Tabla1[[#This Row],[Concepto]],1,3)","v":"EMH"},"2024-02-06","B1500000941","SERVICIOS EMPRESARIALES CANAAN, SRL.","EMH-COMPRA DE TICKET DE COMBUSTIBLE (PENDIENTE)",66900,"45 Dias",{"$f":"+Tabla1[[#This Row],[Fecha de Registro]]+45","v":"2024-03-22"}]
[{"$f":"+MID(Tabla1[[#This Row],[Concepto]],1,3)","v":"LNM"},"2024-02-13","B1500000945","SERVICIOS EMPRESARIALES CANAAN, SRL.","LNM-COMPRA DE TICKET DE COMBUSTIBLE",156800,"45 Dias",{"$f":"+Tabla1[[#This Row],[Fecha de Registro]]+45","v":"2024-03-29"}]
[{"$f":"+MID(Tabla1[[#This Row],[Concepto]],1,3)","v":"REC"},"2020-07-20","B1500000129","SITCORP, SRL","REC- CIERRE DE PROYECTO DYNAMICS AX",464594.84,"45 Dias",{"$f":"+Tabla1[[#This Row],[Fecha de Registro]]+45","v":"2020-09-03"}]
[{"$f":"+MID(Tabla1[[#This Row],[Concepto]],1,3)","v":"JVM"},"2024-01-26","B1500000220","SLYKING GROUP, SRL","JVM-COMPRA DE PROVISIONES PARA USO DE LA  ALIMENTACIÓN",92055,"45 Dias",{"$f":"+Tabla1[[#This Row],[Fecha de Registro]]+45","v":"2024-03-11"}]
[{"$f":"+MID(Tabla1[[#This Row],[Concepto]],1,3)","v":"UM-"},"2024-02-07","B1500000224","SPRINGDALE COMERCIAL, SRL","UM-ADQUISICION DE BEBEDEROS",139800,"45 Dias",{"$f":"+Tabla1[[#This Row],[Fecha de Registro]]+45","v":"2024-03-23"}]
[{"$f":"+MID(Tabla1[[#This Row],[Concepto]],1,3)","v":"FEM"},"2024-02-08","B1500000225","SPRINGDALE COMERCIAL, SRL","FEM-ADQUISICION DE BEBEDEROS",97860,"45 Dias",{"$f":"+Tabla1[[#This Row],[Fecha de Registro]]+45","v":"2024-03-24"}]
[{"$f":"+MID(Tabla1[[#This Row],[Concepto]],1,3)","v":"REC"},"2024-02-20","B1500000011","SUBE TECNOLOGIES AND SERVICES, SRL","REC-SERVICIO DE MANTENIMIENTO PARA LOS 3 ASCENSORES DE RECTORIA",17700,"45 Dias",{"$f":"+Tabla1[[#This Row],[Fecha de Registro]]+45","v":"2024-04-05"}]
[{"$f":"+MID(Tabla1[[#This Row],[Concepto]],1,3)","v":"LNM"},"2023-06-22","B1500000436","SUPERCENTRO TAMBORIL, SRL","LNM-SERVICIOS DE CATERING EN  DIFERENTES ACTIVIDADES OR-2022-00281 (PENDIENTE POR RECIBIR)",177300,"45 Dias",{"$f":"+Tabla1[[#This Row],[Fecha de Registro]]+45","v":"2023-08-06"}]
[{"$f":"+MID(Tabla1[[#This Row],[Concepto]],1,3)","v":"JVM"},"2019-11-25","B1500000108","SUPLIDORA INDUSTRIAL DOMINICANA, S.R.L.","JVM-COMPRA DE PARAGUAS,POLOSHERT SERIGRAFIADOS  (PENDIENTE ESPERA DE EXPEDIENTE)",141305,"45 Dias",{"$f":"+Tabla1[[#This Row],[Fecha de Registro]]+45","v":"2020-01-09"}]
[{"$f":"+MID(Tabla1[[#This Row],[Concepto]],1,3)","v":"FEM"},"2023-09-11","B1500000501","SUPLIMADE COMERCIAL, SRL","FEM-ADQUISICION DE ALIMENTOS",46218.239999999998,"45 Dias",{"$f":"+Tabla1[[#This Row],[Fecha de Registro]]+45","v":"2023-10-26"}]
[{"$f":"+MID(Tabla1[[#This Row],[Concepto]],1,3)","v":"LNM"},"2023-09-20","B1500000535","SUPLIMADE COMERCIAL, SRL","LNM-ADQUISICION DE DISPENSADORA DE AGUA PARA EL RECINTO ORDEN 2023-00549",96955.59,"45 Dias",{"$f":"+Tabla1[[#This Row],[Fecha de Registro]]+45","v":"2023-11-04"}]
[{"$f":"+MID(Tabla1[[#This Row],[Concepto]],1,3)","v":"FEM"},"2023-09-28","B1500000516","SUPLIMADE COMERCIAL, SRL","FEM-ADQUISICION DE ALIMENTOS",316696.90000000002,"45 Dias",{"$f":"+Tabla1[[#This Row],[Fecha de Registro]]+45","v":"2023-11-12"}]
[{"$f":"+MID(Tabla1[[#This Row],[Concepto]],1,3)","v":"FEM"},"2023-09-28","B1500000517","SUPLIMADE COMERCIAL, SRL","FEM-ADQUISICION DE ALIMENTOS",11611.2,"45 Dias",{"$f":"+Tabla1[[#This Row],[Fecha de Registro]]+45","v":"2023-11-12"}]
[{"$f":"+MID(Tabla1[[#This Row],[Concepto]],1,3)","v":"LNM"},"2023-10-31","B1500000559","SUPLIMADE COMERCIAL, SRL","LNM-ADQUISICION DE ALIMENTOS",1011009.95,"45 Dias",{"$f":"+Tabla1[[#This Row],[Fecha de Registro]]+45","v":"2023-12-15"}]
[{"$f":"+MID(Tabla1[[#This Row],[Concepto]],1,3)","v":"LNM"},"2023-10-31","B1500000563","SUPLIMADE COMERCIAL, SRL","LNM-ADQUISICION DE ALIMENTOS",6420,"45 Dias",{"$f":"+Tabla1[[#This Row],[Fecha de Registro]]+45","v":"2023-12-15"}]
[{"$f":"+MID(Tabla1[[#This Row],[Concepto]],1,3)","v":"LNM"},"2023-10-31","B1500000564","SUPLIMADE COMERCIAL, SRL","LNM-ADQUISICION DE ALIMENTOS",65580.039999999994,"45 Dias",{"$f":"+Tabla1[[#This Row],[Fecha de Registro]]+45","v":"2023-12-15"}]
[{"$f":"+MID(Tabla1[[#This Row],[Concepto]],1,3)","v":"FEM"},"2023-11-22","B1500000582","SUPLIMADE COMERCIAL, SRL","FEM-COMPRA DE ALIMENTOS",93014.21,"45 Dias",{"$f":"+Tabla1[[#This Row],[Fecha de Registro]]+45","v":"2024-01-06"}]
[{"$f":"+MID(Tabla1[[#This Row],[Concepto]],1,3)","v":"LNM"},"2023-12-04","B1500000607","SUPLIMADE COMERCIAL, SRL","LNM-ADQUISICION DE ALIMENTOS",981910.24,"45 Dias",{"$f":"+Tabla1[[#This Row],[Fecha de Registro]]+45","v":"2024-01-18"}]
[{"$f":"+MID(Tabla1[[#This Row],[Concepto]],1,3)","v":"LNM"},"2023-12-04","B1500000600","SUPLIMADE COMERCIAL, SRL","LNM-ADQUISICION DE ALIMENTOS",7905,"45 Dias",{"$f":"+Tabla1[[#This Row],[Fecha de Registro]]+45","v":"2024-01-18"}]
[{"$f":"+MID(Tabla1[[#This Row],[Concepto]],1,3)","v":"LNM"},"2023-12-04","B1500000606","SUPLIMADE COMERCIAL, SRL","LNM-ADQUISICION DE ALIMENTOS",2800,"45 Dias",{"$f":"+Tabla1[[#This Row],[Fecha de Registro]]+45","v":"2024-01-18"}]
[{"$f":"+MID(Tabla1[[#This Row],[Concepto]],1,3)","v":"LNM"},"2023-12-04","B1500000605","SUPLIMADE COMERCIAL, SRL","LNM-ADQUISICION DE ALIMENTOS",142183.70000000001,"45 Dias",{"$f":"+Tabla1[[#This Row],[Fecha de Registro]]+45","v":"2024-01-18"}]
[{"$f":"+MID(Tabla1[[#This Row],[Concepto]],1,3)","v":"JVM"},"2023-12-08","B1500000612","SUPLIMADE COMERCIAL, SRL","JVM-ADQUISICION DE ALIMENTOS",33293.699999999997,"45 Dias",{"$f":"+Tabla1[[#This Row],[Fecha de Registro]]+45","v":"2024-01-22"}]
[{"$f":"+MID(Tabla1[[#This Row],[Concepto]],1,3)","v":"JVM"},"2023-12-08","B1500000613","SUPLIMADE COMERCIAL, SRL","JVM-ADQUISICION DE ALIMENTOS",85800,"45 Dias",{"$f":"+Tabla1[[#This Row],[Fecha de Registro]]+45","v":"2024-01-22"}]
[{"$f":"+MID(Tabla1[[#This Row],[Concepto]],1,3)","v":"FEM"},"2023-12-08","B1500000609","SUPLIMADE COMERCIAL, SRL","FEM-ADQUISICION DE ALIMENTOS",16538.88,"45 Dias",{"$f":"+Tabla1[[#This Row],[Fecha de Registro]]+45","v":"2024-01-22"}]
[{"$f":"+MID(Tabla1[[#This Row],[Concepto]],1,3)","v":"FEM"},"2023-12-08","B1500000611","SUPLIMADE COMERCIAL, SRL","FEM-COMPRA DE ALIMENTOS ORDEN 2023-00521",57339.5,"45 Dias",{"$f":"+Tabla1[[#This Row],[Fecha de Registro]]+45","v":"2024-01-22"}]
[{"$f":"+MID(Tabla1[[#This Row],[Concepto]],1,3)","v":"LNM"},"2023-12-14","B1500000624","SUPLIMADE COMERCIAL, SRL","LNM-COMPRA DE ALIMENTOS P/LOS ESTUDIANTES",13024,"45 Dias",{"$f":"+Tabla1[[#This Row],[Fecha de Registro]]+45","v":"2024-01-28"}]
[{"$f":"+MID(Tabla1[[#This Row],[Concepto]],1,3)","v":"LNM"},"2023-12-14","B1500000623","SUPLIMADE COMERCIAL, SRL","LNM-COMPRA DE ALIMENTOS P/ LOS EST,",36729.94,"45 Dias",{"$f":"+Tabla1[[#This Row],[Fecha de Registro]]+45","v":"2024-01-28"}]
[{"$f":"+MID(Tabla1[[#This Row],[Concepto]],1,3)","v":"LNM"},"2023-12-14","B1500000620","SUPLIMADE COMERCIAL, SRL","LNM-COMPRA DE ALIMENTOS ESTUDIANTES",4270,"45 Dias",{"$f":"+Tabla1[[#This Row],[Fecha de Registro]]+45","v":"2024-01-28"}]
[{"$f":"+MID(Tabla1[[#This Row],[Concepto]],1,3)","v":"LNM"},"2023-12-14","B1500000617","SUPLIMADE COMERCIAL, SRL","LNM-COMPRA DE ALIMENTOS P/PERSONAS",410427.58,"45 Dias",{"$f":"+Tabla1[[#This Row],[Fecha de Registro]]+45","v":"2024-01-28"}]
[{"$f":"+MID(Tabla1[[#This Row],[Concepto]],1,3)","v":"LNM"},"2023-12-15","B1500000625","SUPLIMADE COMERCIAL, SRL","LNM-COMPRA DE ALIMENTOS ORDEN 2023-00521",33040,"45 Dias",{"$f":"+Tabla1[[#This Row],[Fecha de Registro]]+45","v":"2024-01-29"}]
[{"$f":"+MID(Tabla1[[#This Row],[Concepto]],1,3)","v":"UM-"},"2024-01-07","B1500000642","SUPLIMADE COMERCIAL, SRL","UM-COMPRA DE ALIMENTOS ORDEN 2023-00304",101598,"45 Dias",{"$f":"+Tabla1[[#This Row],[Fecha de Registro]]+45","v":"2024-02-21"}]
[{"$f":"+MID(Tabla1[[#This Row],[Concepto]],1,3)","v":"FEM"},"2024-01-16","B1500000646","SUPLIMADE COMERCIAL, SRL","FEM-COMPRA DE ALIMENTOS (PENDIENTE)",70326.899999999994,"45 Dias",{"$f":"+Tabla1[[#This Row],[Fecha de Registro]]+45","v":"2024-03-01"}]
[{"$f":"+MID(Tabla1[[#This Row],[Concepto]],1,3)","v":"JVM"},"2024-01-16","B1500000645","SUPLIMADE COMERCIAL, SRL","JVM-COMPRA DE ALIMENTOS",60738.61,"45 Dias",{"$f":"+Tabla1[[#This Row],[Fecha de Registro]]+45","v":"2024-03-01"}]
[{"$f":"+MID(Tabla1[[#This Row],[Concepto]],1,3)","v":"JVM"},"2024-01-25","B1500000659","SUPLIMADE COMERCIAL, SRL","JVM-COMPRA DE ALIMENTOS (PENDIENTE)",83586.36,"45 Dias",{"$f":"+Tabla1[[#This Row],[Fecha de Registro]]+45","v":"2024-03-10"}]
[{"$f":"+MID(Tabla1[[#This Row],[Concepto]],1,3)","v":"JVM"},"2024-01-26","B1500000660","SUPLIMADE COMERCIAL, SRL","JVM-COMPRA DE ALIMENTOS (PENDIENTE)",85800,"45 Dias",{"$f":"+Tabla1[[#This Row],[Fecha de Registro]]+45","v":"2024-03-11"}]
[{"$f":"+MID(Tabla1[[#This Row],[Concepto]],1,3)","v":"LNM"},"2024-01-30","B1500000664","SUPLIMADE COMERCIAL, SRL","LNM-COMPRA DE ALIMENTOS",1522451.77,"45 Dias",{"$f":"+Tabla1[[#This Row],[Fecha de Registro]]+45","v":"2024-03-15"}]
[{"$f":"+MID(Tabla1[[#This Row],[Concepto]],1,3)","v":"LNM"},"2024-01-30","B1500000665","SUPLIMADE COMERCIAL, SRL","LNM-COMPRA DE ALIMENTOS",51525.29,"45 Dias",{"$f":"+Tabla1[[#This Row],[Fecha de Registro]]+45","v":"2024-03-15"}]
[{"$f":"+MID(Tabla1[[#This Row],[Concepto]],1,3)","v":"LNM"},"2024-01-30","B1500000666","SUPLIMADE COMERCIAL, SRL","LNM-COMPRA DE ALIMENTOS.",11606.05,"45 Dias",{"$f":"+Tabla1[[#This Row],[Fecha de Registro]]+45","v":"2024-03-15"}]
[{"$f":"+MID(Tabla1[[#This Row],[Concepto]],1,3)","v":"LNM"},"2024-01-30","B1500000667","SUPLIMADE COMERCIAL, SRL","LNM-COMPRA DE ALIMENTOS",22088.89,"45 Dias",{"$f":"+Tabla1[[#This Row],[Fecha de Registro]]+45","v":"2024-03-15"}]
[{"$f":"+MID(Tabla1[[#This Row],[Concepto]],1,3)","v":"LNM"},"2024-01-30","B1500000668","SUPLIMADE COMERCIAL, SRL","LNM-COMPRA DE ALIMENTOS",17381.400000000001,"45 Dias",{"$f":"+Tabla1[[#This Row],[Fecha de Registro]]+45","v":"2024-03-15"}]
[{"$f":"+MID(Tabla1[[#This Row],[Concepto]],1,3)","v":"LNM"},"2024-01-30","B1500000669","SUPLIMADE COMERCIAL, SRL","LNM-COMPRA DE ALIMENTOS",28350.6,"45 Dias",{"$f":"+Tabla1[[#This Row],[Fecha de Registro]]+45","v":"2024-03-15"}]
[{"$f":"+MID(Tabla1[[#This Row],[Concepto]],1,3)","v":"LNM"},"2024-01-30","B1500000670","SUPLIMADE COMERCIAL, SRL","LNM-COMPRA DE ALIMENTOS",71445.58,"45 Dias",{"$f":"+Tabla1[[#This Row],[Fecha de Registro]]+45","v":"2024-03-15"}]
[{"$f":"+MID(Tabla1[[#This Row],[Concepto]],1,3)","v":"LNM"},"2024-01-30","B1500000671","SUPLIMADE COMERCIAL, SRL","LNM-COMPRA DE ALIMENTOS",19590,"45 Dias",{"$f":"+Tabla1[[#This Row],[Fecha de Registro]]+45","v":"2024-03-15"}]
[{"$f":"+MID(Tabla1[[#This Row],[Concepto]],1,3)","v":"LNM"},"2024-02-09","B0300000006","SUPLIMADE COMERCIAL, SRL","LNM-NOTA DE DEBITO AFECTA FACT. B1500000624",1287,"45 Dias",{"$f":"+Tabla1[[#This Row],[Fecha de Registro]]+45","v":"2024-03-25"}]
[{"$f":"+MID(Tabla1[[#This Row],[Concepto]],1,3)","v":"FEM"},"2024-02-22","B1500000696","SUPLIMADE COMERCIAL, SRL","FEM-COMPRA DE ALIMENTOS (PENDIENTE)",120957.55,"45 Dias",{"$f":"+Tabla1[[#This Row],[Fecha de Registro]]+45","v":"2024-04-07"}]
[{"$f":"+MID(Tabla1[[#This Row],[Concepto]],1,3)","v":"FEM"},"2024-02-22","B1500000694","SUPLIMADE COMERCIAL, SRL","FEM-COMPRA DE ALIMENTOS (PENDIENTE)",101458.76,"45 Dias",{"$f":"+Tabla1[[#This Row],[Fecha de Registro]]+45","v":"2024-04-07"}]
[{"$f":"+MID(Tabla1[[#This Row],[Concepto]],1,3)","v":"FEM"},"2024-02-22","B1500000695","SUPLIMADE COMERCIAL, SRL","FEM-COMPRA DE ALIMENTOS (PENDIENTE)",152684.45000000001,"45 Dias",{"$f":"+Tabla1[[#This Row],[Fecha de Registro]]+45","v":"2024-04-07"}]
[{"$f":"+MID(Tabla1[[#This Row],[Concepto]],1,3)","v":"LNM"},"2024-02-28","B1500000701","SUPLIMADE COMERCIAL, SRL","LNM-COMPRA DE ALIMENTOS (PENDIENTE)",1618462.67,"45 Dias",{"$f":"+Tabla1[[#This Row],[Fecha de Registro]]+45","v":"2024-04-13"}]
[{"$f":"+MID(Tabla1[[#This Row],[Concepto]],1,3)","v":"LNM"},"2024-02-28","B1500000702","SUPLIMADE COMERCIAL, SRL","LNM-COMPRA DE ALIMENTOS (PENDIENTE)",92738.96,"45 Dias",{"$f":"+Tabla1[[#This Row],[Fecha de Registro]]+45","v":"2024-04-13"}]
[{"$f":"+MID(Tabla1[[#This Row],[Concepto]],1,3)","v":"LNM"},"2024-02-28","B1500000703","SUPLIMADE COMERCIAL, SRL","LNM-COMPRA DE ALIMENTOS (PENDIENTE)",8530.1,"45 Dias",{"$f":"+Tabla1[[#This Row],[Fecha de Registro]]+45","v":"2024-04-13"}]
[{"$f":"+MID(Tabla1[[#This Row],[Concepto]],1,3)","v":"LNM"},"2024-02-28","B1500000704","SUPLIMADE COMERCIAL, SRL","LNM-COMPRA DE ALIMENTOS (PENDIENTE)",13039,"45 Dias",{"$f":"+Tabla1[[#This Row],[Fecha de Registro]]+45","v":"2024-04-13"}]
[{"$f":"+MID(Tabla1[[#This Row],[Concepto]],1,3)","v":"LNM"},"2024-02-28","B1500000705","SUPLIMADE COMERCIAL, SRL","LNM-COMPRA DE ALIMENTOS (PENDIENTE)",26161.5,"45 Dias",{"$f":"+Tabla1[[#This Row],[Fecha de Registro]]+45","v":"2024-04-13"}]
[{"$f":"+MID(Tabla1[[#This Row],[Concepto]],1,3)","v":"LNM"},"2024-02-28","B1500000706","SUPLIMADE COMERCIAL, SRL","LNM-COMPRA DE ALIMENTOS (PENDIENTE)",169141.86,"45 Dias",{"$f":"+Tabla1[[#This Row],[Fecha de Registro]]+45","v":"2024-04-13"}]
[{"$f":"+MID(Tabla1[[#This Row],[Concepto]],1,3)","v":"LNM"},"2024-02-28","B1500000707","SUPLIMADE COMERCIAL, SRL","LNM-COMPRA DE ALIMENTOS (PENDIENTE)",29021,"45 Dias",{"$f":"+Tabla1[[#This Row],[Fecha de Registro]]+45","v":"2024-04-13"}]
[{"$f":"+MID(Tabla1[[#This Row],[Concepto]],1,3)","v":"LNM"},"2024-02-28","B1500000708","SUPLIMADE COMERCIAL, SRL","LNM-COMPRA DE ALIMENTOS (PENDIENTE)",55776.24,"45 Dias",{"$f":"+Tabla1[[#This Row],[Fecha de Registro]]+45","v":"2024-04-13"}]
[{"$f":"+MID(Tabla1[[#This Row],[Concepto]],1,3)","v":"JVM"},"2024-02-29","B1500000712","SUPLIMADE COMERCIAL, SRL","JVM-COMPRA DE ALIMENTOS (PENDIENTE)",28600,"45 Dias",{"$f":"+Tabla1[[#This Row],[Fecha de Registro]]+45","v":"2024-04-14"}]
[{"$f":"+MID(Tabla1[[#This Row],[Concepto]],1,3)","v":"UM-"},"2023-10-16","B1500000174","TA BUENO CAFETERIA, SRL","UM-SERVICIOS DE REFRIGERIO PARA DIVERSAS ACTIVIDADES DEL RECINTO",50740,"45 Dias",{"$f":"+Tabla1[[#This Row],[Fecha de Registro]]+45","v":"2023-11-30"}]
[{"$f":"+MID(Tabla1[[#This Row],[Concepto]],1,3)","v":"UM-"},"2023-10-26","B1500000175","TA BUENO CAFETERIA, SRL","UM-SERVICIOS DE REFRIGERIO PARA DIVERSAS ACTIVIDADES DEL RECINTO",15009.6,"45 Dias",{"$f":"+Tabla1[[#This Row],[Fecha de Registro]]+45","v":"2023-12-10"}]
[{"$f":"+MID(Tabla1[[#This Row],[Concepto]],1,3)","v":"UM-"},"2023-11-20","B1500000178","TA BUENO CAFETERIA, SRL","UM-SERVICIOS DE REFRIGERIO PARA DIVERSAS ACTIVIDADES DEL RECINTO",518397.6,"45 Dias",{"$f":"+Tabla1[[#This Row],[Fecha de Registro]]+45","v":"2024-01-04"}]
[{"$f":"+MID(Tabla1[[#This Row],[Concepto]],1,3)","v":"UM-"},"2023-11-20","B1500000177","TA BUENO CAFETERIA, SRL","UM-SERVICIOS DE REFRIGERIO PARA DIVERSAS ACTIVIDADES DEL RECINTO",302746.7,"45 Dias",{"$f":"+Tabla1[[#This Row],[Fecha de Registro]]+45","v":"2024-01-04"}]
[{"$f":"+MID(Tabla1[[#This Row],[Concepto]],1,3)","v":"UM-"},"2024-01-15","B1500000180","TA BUENO CAFETERIA, SRL","UM-SERVICIOS DE CATERING PARA DIFETRENTES ACTIVIDADES DEL RECINTO",138130.79999999999,"45 Dias",{"$f":"+Tabla1[[#This Row],[Fecha de Registro]]+45","v":"2024-02-29"}]
[{"$f":"+MID(Tabla1[[#This Row],[Concepto]],1,3)","v":"UM-"},"2024-01-15","B1500000181","TA BUENO CAFETERIA, SRL","UM-SERVICIOS DE CATERING PARA DIFETRENTES ACTIVIDADES DEL RECINTO",703793.3,"45 Dias",{"$f":"+Tabla1[[#This Row],[Fecha de Registro]]+45","v":"2024-02-29"}]
["UM-","2024-02-14","B0400000001","TA BUENO CAFETERIA, SRL","NOTA DE CREDITO AFECTA FACT B150000178/ SERVICIO DE CATERING",-49170,"45 Dias",{"$f":"+Tabla1[[#This Row],[Fecha de Registro]]+45","v":"2024-03-30"}]
[{"$f":"+MID(Tabla1[[#This Row],[Concepto]],1,3)","v":"FEM"},"2016-12-31","P010010010108132432 ","Technalab , S.A","FEM-fact P010010010108132432 /FEM/Technalab/periodo 2014",14455,"45 Dias",{"$f":"+Tabla1[[#This Row],[Fecha de Registro]]+45","v":"2017-02-14"}]
[{"$f":"+MID(Tabla1[[#This Row],[Concepto]],1,3)","v":"REC"},"2023-09-01","B1500002927","TECNAS EIRL","REC- MANTENIMIENTO DE ASCENSOR",23600,"45 Dias",{"$f":"+Tabla1[[#This Row],[Fecha de Registro]]+45","v":"2023-10-16"}]
[{"$f":"+MID(Tabla1[[#This Row],[Concepto]],1,3)","v":"REC"},"2023-10-02","B1500002947","TECNAS EIRL","REC- SERVICIO DE MANTENIMIENTO DE ASCENSORES",23600,"45 Dias",{"$f":"+Tabla1[[#This Row],[Fecha de Registro]]+45","v":"2023-11-16"}]
[{"$f":"+MID(Tabla1[[#This Row],[Concepto]],1,3)","v":"JVM"},"2023-12-07","B1500011153","TROPIGAS DOMINICANA ,SRL","JVM- COMPRA DE GAS LICUADO DE PETROLEO.",18840,"45 Dias",{"$f":"+Tabla1[[#This Row],[Fecha de Registro]]+45","v":"2024-01-21"}]
[{"$f":"+MID(Tabla1[[#This Row],[Concepto]],1,3)","v":"JVM"},"2024-02-06","B1500016324","TROPIGAS DOMINICANA ,SRL","JVM- COMPRA DE GAS LICUADO DE PETROLEO",21226.400000000001,"45 Dias",{"$f":"+Tabla1[[#This Row],[Fecha de Registro]]+45","v":"2024-03-22"}]
["UM-","2016-12-31","A010010010100002460","TV Cable San Juan","    UM-PARA INGRESAR LA CX P TV CABLE SAN JUAN AL 31/12/2016 *UM",7080,"45 Dias",{"$f":"+Tabla1[[#This Row],[Fecha de Registro]]+45","v":"2017-02-14"}]
[{"$f":"+MID(Tabla1[[#This Row],[Concepto]],1,3)","v":"JVM"},"2024-01-03","B1500000371","UNILIBROS, S.R.L.","JVM-COMPRA DE LIBROS USO DEL RECINTO BIBLIOTECA",46340,"45 Dias",{"$f":"+Tabla1[[#This Row],[Fecha de Registro]]+45","v":"2024-02-17"}]
[{"$f":"+MID(Tabla1[[#This Row],[Concepto]],1,3)","v":"REC"},"2023-12-08","B1500000250","UNIQUE MANAGEMENT SOLUTIONS I. MARTINEZ,","REC-CONTRATACIÓN DE FIRMA PARA  EVALUACIÓN, SELECCIÓN E IMPLEMENTACIÓN DE TALENTO",451987.20000000001,"45 Dias",{"$f":"+Tabla1[[#This Row],[Fecha de Registro]]+45","v":"2024-01-22"}]
[{"$f":"+MID(Tabla1[[#This Row],[Concepto]],1,3)","v":"REC"},"2024-01-04","B1500001145","UNIVERSAL DE COMPUTOS, SRL","REC- COMPRA DE COMPUTADORAS DE ESCRITORIO (PENDIENTE)",3433084.92,"45 Dias",{"$f":"+Tabla1[[#This Row],[Fecha de Registro]]+45","v":"2024-02-18"}]
[{"$f":"+MID(Tabla1[[#This Row],[Concepto]],1,3)","v":"REC"},"2023-09-14","B1500000850","Universidad ISA","REC-MAESTRIA EN DOBLE TITULACION MAESTRIA EN BIOLOGIA",999372,"45 Dias",{"$f":"+Tabla1[[#This Row],[Fecha de Registro]]+45","v":"2023-10-29"}]
[{"$f":"+MID(Tabla1[[#This Row],[Concepto]],1,3)","v":"REC"},"2023-12-04","FE2500","UNIVERSITAS XX1 SOLUCIONES Y TECNOL -OCU","REC- (PENDIENTE DE RECIBIR)  USD 52,813.00 A UNA TASA DE RD$ 60 TERCER PAGO DE MANTENIMIENTO DE ...",3168780,"45 Dias",{"$f":"+Tabla1[[#This Row],[Fecha de Registro]]+45","v":"2024-01-18"}]
[{"$f":"+MID(Tabla1[[#This Row],[Concepto]],1,3)","v":"FEM"},"2023-12-04","B1500000344","UVRO SOLUCIONES EMPRESARIALES, SRL","FEM- COMPRA DE ALIMENTOS. (PENDIENTE DE RECIBIR)",3478,"45 Dias",{"$f":"+Tabla1[[#This Row],[Fecha de Registro]]+45","v":"2024-01-18"}]
[{"$f":"+MID(Tabla1[[#This Row],[Concepto]],1,3)","v":"FEM"},"2023-12-04","B1500000343","UVRO SOLUCIONES EMPRESARIALES, SRL","FEM- COMPRA DE ALIMENTOS. (PENDIENTE DE RECIBIR)",27169.5,"45 Dias",{"$f":"+Tabla1[[#This Row],[Fecha de Registro]]+45","v":"2024-01-18"}]
[{"$f":"+MID(Tabla1[[#This Row],[Concepto]],1,3)","v":"FEM"},"2024-02-12","B1500000355","UVRO SOLUCIONES EMPRESARIALES, SRL","FEM- COMPRA DE ALIMENTOS. (PENDIENTE DE RECIBIR)",10738,"45 Dias",{"$f":"+Tabla1[[#This Row],[Fecha de Registro]]+45","v":"2024-03-28"}]
["EMH","2016-12-31","A010010010200000201","V.R.O. Contratista","    EMH-fact A010010010200000201/EMH/V.R.O/ periodo 2013",15104,"45 Dias",{"$f":"+Tabla1[[#This Row],[Fecha de Registro]]+45","v":"2017-02-14"}]
[{"$f":"+MID(Tabla1[[#This Row],[Concepto]],1,3)","v":"FEM"},"2023-08-31","B1500000408","VEGETALES DE LA ROSA RAMIREZ","FEM-ALIMENTOS PARA LOS ESTUDIANTES",13825,"45 Dias",{"$f":"+Tabla1[[#This Row],[Fecha de Registro]]+45","v":"2023-10-15"}]
[{"$f":"+MID(Tabla1[[#This Row],[Concepto]],1,3)","v":"FEM"},"2023-08-31","B1500000709","VEGETALES DE LA ROSA RAMIREZ","FEM-ALIMENTOS PARA LOS ESTUDIANTES",43940,"45 Dias",{"$f":"+Tabla1[[#This Row],[Fecha de Registro]]+45","v":"2023-10-15"}]
[{"$f":"+MID(Tabla1[[#This Row],[Concepto]],1,3)","v":"JVM"},"2022-11-10","B1500000272","VEGETALES MAS Y SUERO JIMENEZ","JVM-COMPRA DE ALIMENTOS Y BEBIDAS PARA USO DEL RECINTO. OR-2020-00109",63710,"45 Dias",{"$f":"+Tabla1[[#This Row],[Fecha de Registro]]+45","v":"2022-12-25"}]
[{"$f":"+MID(Tabla1[[#This Row],[Concepto]],1,3)","v":"REC"},"2015-11-16","A010010011500000354","Yaex Corp.de Operaciones Alimenticias","REC-REFRIGERIO Y ALMUERZO REUNION EQUIPO DE COMPRAS TODOS LOS RECINTOS",23735.7,"45 Dias",{"$f":"+Tabla1[[#This Row],[Fecha de Registro]]+45","v":"2015-12-31"}]
[{"$f":"+MID(Tabla1[[#This Row],[Concepto]],1,3)","v":"FEM"},"2023-12-15","B1500000179","YAXIS COMERCIAL, SRL","FEM- COMPRA DE ALIMENTOS.",3084.16,"45 Dias",{"$f":"+Tabla1[[#This Row],[Fecha de Registro]]+45","v":"2024-01-29"}]
[{"$f":"+MID(Tabla1[[#This Row],[Concepto]],1,3)","v":"FEM"},"2024-01-04","B1500000183","YAXIS COMERCIAL, SRL","FEM-COMPRA DE ALIMENTOS(PENDIENTE)",121675.16,"45 Dias",{"$f":"+Tabla1[[#This Row],[Fecha de Registro]]+45","v":"2024-02-18"}]
[{"$f":"+MID(Tabla1[[#This Row],[Concepto]],1,3)","v":"EMH"},"2024-01-18","B1500000187","YAXIS COMERCIAL, SRL","EMH-COMPRA DE ALIMENTOS",17963.14,"45 Dias",{"$f":"+Tabla1[[#This Row],[Fecha de Registro]]+45","v":"2024-03-03"}]
[{"$f":"+MID(Tabla1[[#This Row],[Concepto]],1,3)","v":"FEM"},"2024-01-18","B1500000185","YAXIS COMERCIAL, SRL","FEM-COMPRA DE ALIMENTOS",236160.48,"45 Dias",{"$f":"+Tabla1[[#This Row],[Fecha de Registro]]+45","v":"2024-03-03"}]
[{"$f":"+MID(Tabla1[[#This Row],[Concepto]],1,3)","v":"EMH"},"2024-01-19","B1500000189","YAXIS COMERCIAL, SRL","EMH-COMPRA DE ALIMENTOS",169981.5,"45 Dias",{"$f":"+Tabla1[[#This Row],[Fecha de Registro]]+45","v":"2024-03-04"}]
[{"$f":"+MID(Tabla1[[#This Row],[Concepto]],1,3)","v":"FEM"},"2024-01-22","B1500000190","YAXIS COMERCIAL, SRL","FEM-COMPRA DE ALIMENTOS",191896.32000000001,"45 Dias",{"$f":"+Tabla1[[#This Row],[Fecha de Registro]]+45","v":"2024-03-07"}]
[{"$f":"+MID(Tabla1[[#This Row],[Concepto]],1,3)","v":"FEM"},"2024-01-23","B1500000193","YAXIS COMERCIAL, SRL","FEM-COMPRA DE ALIMENTOS(PENDIENTE)",4000,"45 Dias",{"$f":"+Tabla1[[#This Row],[Fecha de Registro]]+45","v":"2024-03-08"}]
[{"$f":"+MID(Tabla1[[#This Row],[Concepto]],1,3)","v":"FEM"},"2024-01-23","B1500000194","YAXIS COMERCIAL, SRL","FEM-COMPRA DE ALIMENTOS(PENDIENTE)",19366.28,"45 Dias",{"$f":"+Tabla1[[#This Row],[Fecha de Registro]]+45","v":"2024-03-08"}]
[{"$f":"+MID(Tabla1[[#This Row],[Concepto]],1,3)","v":"EMH"},"2024-01-24","B1500000186","YAXIS COMERCIAL, SRL","EMH-COMPRA DE ALIMENTOS",169950.45,"45 Dias",{"$f":"+Tabla1[[#This Row],[Fecha de Registro]]+45","v":"2024-03-09"}]
[{"$f":"+MID(Tabla1[[#This Row],[Concepto]],1,3)","v":"FEM"},"2024-01-24","B1500000192","YAXIS COMERCIAL, SRL","FEM-COMPRA DE ALIMENTOS",169920,"45 Dias",{"$f":"+Tabla1[[#This Row],[Fecha de Registro]]+45","v":"2024-03-09"}]
[{"$f":"+MID(Tabla1[[#This Row],[Concepto]],1,3)","v":"FEM"},"2024-01-26","B1500000191","YAXIS COMERCIAL, SRL","FEM-ADQUISICION DE TROFEOS (PENDIENTE)",39641.629999999997,"45 Dias",{"$f":"+Tabla1[[#This Row],[Fecha de Registro]]+45","v":"2024-03-11"}]
[{"$f":"+MID(Tabla1[[#This Row],[Concepto]],1,3)","v":"EMH"},"2024-02-22","B1500000202","YAXIS COMERCIAL, SRL","EMH-ADQUISICION DE ALIMENTOS",153177.15,"45 Dias",{"$f":"+Tabla1[[#This Row],[Fecha de Registro]]+45","v":"2024-04-07"}]
[{"$f":"+MID(Tabla1[[#This Row],[Concepto]],1,3)","v":"EMH"},"2024-02-22","B1500000203","YAXIS COMERCIAL, SRL","EMH-ADQUISICION DE ALIMENTOS",144176.5,"45 Dias",{"$f":"+Tabla1[[#This Row],[Fecha de Registro]]+45","v":"2024-04-07"}]
[{"$f":"+MID(Tabla1[[#This Row],[Concepto]],1,3)","v":"FEM"},"2024-02-23","B1500000200","YAXIS COMERCIAL, SRL","FEM-ADQUISICION DE ALIMENTOS (PENDIENTE)",316163.84000000003,"45 Dias",{"$f":"+Tabla1[[#This Row],[Fecha de Registro]]+45","v":"2024-04-08"}]
["REC","2024-02-16","B1500011135","SEGURO NACIONAL DE SALUD","REC-SEGURO COMPLEMENTARIO PARA EMPLEADOS DEL ISFODOSU FEBRERO (PENDIENTE)",708828.4,"46 Dias",{"$f":"+Tabla1[[#This Row],[Fecha de Registro]]+45","v":"2024-04-01"}]
[{"$f":"+MID(Tabla1[[#This Row],[Concepto]],1,3)","v":"FEM"},"2024-02-23","B1500000201","YAXIS COMERCIAL, SRL","FEM-ADQUISICION DE ALIMENTOS (PENDIENTE)",53733.68,"45 Dias",{"$f":"+Tabla1[[#This Row],[Fecha de Registro]]+45","v":"2024-04-08"}]
["REC","2024-02-19","B1500011964","SEGUROS UNIVERSAL, SA","REC-SEGURO COMPLEMENTARIO EMPLEADOS DEL ISFODOSU MARZO 2024 (PENDIENTE)",123800,"45 Dias",{"$f":"+Tabla1[[#This Row],[Fecha de Registro]]+45","v":"2024-04-04"}]
[{"$f":"+MID(Tabla1[[#This Row],[Concepto]],1,3)","v":"REC"},"2024-02-19","B1500011995","SEGUROS UNIVERSAL, SA","REC-SEGURO COMPLEMENTARIO EMPLEADOS DEL ISFODOSU MARZO 2024 (PENDIENTE)",54350,"45 Dias",{"$f":"+Tabla1[[#This Row],[Fecha de Registro]]+45","v":"2024-04-04"}]
[{"$f":"+MID(Tabla1[[#This Row],[Concepto]],1,3)","v":"REC"},"2024-02-22","B0400265922","SEGUROS UNIVERSAL, SA","REC-N/C AFECTA FACT B1500011964",-2476,"45 Dias",{"$f":"+Tabla1[[#This Row],[Fecha de Registro]]+45","v":"2024-04-07"}]
[{"$f":"+MID(Tabla1[[#This Row],[Concepto]],1,3)","v":"REC"},"2024-02-26","E450000001312","Cecomsa, S.A.","REC-ADQUISIICON DE EQUIPOS INFORMATICOS PORTATILES",68343059.530000001,"45 Dias",{"$f":"+Tabla1[[#This Row],[Fecha de Registro]]+45","v":"2024-04-11"}]
[{"$f":"+MID(Tabla1[[#This Row],[Concepto]],1,3)","v":"LNM"},"2024-02-11","B1500012413","Wind Telecom S.A.","LNM- CONTRATO DE INTERNET 50MB RECINTO LNM,  USD2,656.02 A UNA TASA DE RD$59.0101",156732.01,"45 Dias",{"$f":"+Tabla1[[#This Row],[Fecha de Registro]]+45","v":"2024-03-27"}]
[null,null,"TOTAL ",null,null,{"$f":"SUBTOTAL(109,Tabla1[ Monto de la Deuda RD$ ])","v":174347103.16999999}]
[]
[]
[]
[]
[]
[]
[]
[]
[]
[]
[]
[]
[]
[]
[]
[]
["LIC JOSE ERNESTO JIMENEZ"]
["DIRECTOR FINANCIERO, ISFODOSU"]